Beneficiary,Category/Purpose,Department,     Net value,VAT Value,Gross,Date incurred -Payment Date
11KBW Limited,Legal Fees/Advocacy,Adult Strategic Management,"1,620.00",324,"1,944.00",03/02/2016
15 Dovedale Avenue,Supptd Accommodation for Social Care Clients,Long Term Team - LD,"6,177.10",0,"6,177.10",27/01/2016
15 Dovedale Avenue,Supptd Accommodation for Social Care Clients,Long Term Team - LD,"5,308.25",0,"5,308.25",25/02/2016
15 Dovedale Avenue,Supptd Accommodation for Social Care Clients,Long Term Team - LD,"6,111.43",0,"6,111.43",24/03/2016
1st Car Magazine - First Car Ltd,Legal Fees/Advocacy,TFL funded revenue schemes,750,150,900,17/02/2016
24 Seven Fostering Services Ltd,Foster Payments,Childrens Placements,"3,321.43",0,"3,321.43",06/01/2016
24 Seven Fostering Services Ltd,Foster Payments,Leaving Care Placements,"1,285.71",0,"1,285.71",08/02/2016
24 Seven Fostering Services Ltd,Foster Payments,Childrens Placements,"1,928.57",0,"1,928.57",08/02/2016
24 Seven Fostering Services Ltd,Foster Payments,Leaving Care Placements,"3,321.43",0,"3,321.43",08/02/2016
24 Seven Fostering Services Ltd,Foster Payments,Leaving Care Placements,"3,321.43",0,"3,321.43",08/02/2016
36 Bedford Row,Legal Fees/Advocacy,Barnet Council Legal Services,"2,700.00",540,"3,240.00",06/01/2016
36 Bedford Row,Legal Fees/Advocacy,Barnet Council Legal Services,800,160,960,02/03/2016
36 Bedford Row,Legal Fees/Advocacy,Barnet Council Legal Services,"6,900.00","1,380.00","8,280.00",15/03/2016
36 Bedford Row,Legal Fees/Advocacy,Barnet Council Legal Services,"23,450.00","4,690.00","28,140.00",15/03/2016
4OC Ltd,Consultants Fees,IT Contractors,"12,376.25","2,475.25","14,851.50",24/03/2016
5 St Andrew's Hill,Legal Fees/Advocacy,Development Control,700,140,840,03/02/2016
7 Palmer Crescent,Residential Placements,Long Term Team - LD,"6,642.86",0,"6,642.86",28/01/2016
7 Palmer Crescent,Residential Placements,Long Term Team - LD,"6,214.29",0,"6,214.29",25/02/2016
7 Palmer Crescent,Residential Placements,Long Term Team - LD,"6,642.85",0,"6,642.85",29/03/2016
A T Bone & Sons Ltd,Grounds Maintenance/Landscaping,Street Cleansing,760,152,912,06/01/2016
A.R.C.S Environmental Ltd,"Private Contractors, Third Party Payments",,"1,195.00",239,"1,434.00",11/03/2016
A.S.A.P (Asperger's Syndrome Access,Grants and Subscriptions,Voluntary Org Grants,"4,000.00",0,"4,000.00",21/01/2016
AA DriveTech,Staff training (General),Divisional Director Environment & Cultur,"4,735.00",947,"5,682.00",18/01/2016
AA DriveTech,Staff training (General),Divisional Director Environment & Cultur,639,127.8,766.8,05/02/2016
ABC Housing,Foster Payments,Asylum Client Expenditure,"1,328.35",0,"1,328.35",08/01/2016
ABC Housing,Foster Payments,Asylum Client Expenditure,"1,328.35",0,"1,328.35",05/02/2016
ABC Housing,Foster Payments,Asylum Client Expenditure,"1,242.65",0,"1,242.65",08/03/2016
ABC Housing,Semi Independent,Leaving Care Placements,"1,328.35",0,"1,328.35",06/01/2016
ABC Housing,Semi Independent,Leaving Care Placements,"2,878.35",0,"2,878.35",06/01/2016
ABC Housing,Semi Independent,Leaving Care Placements,"2,878.35",0,"2,878.35",06/01/2016
ABC Housing,Semi Independent,Leaving Care Placements,"1,328.35",0,"1,328.35",08/02/2016
ABC Housing,Semi Independent,Leaving Care Placements,"2,878.35",0,"2,878.35",08/02/2016
ABC Housing,Semi Independent,Leaving Care Placements,"2,878.35",0,"2,878.35",08/02/2016
ABC Housing,Semi Independent,Leaving Care Placements,"1,242.65",0,"1,242.65",08/03/2016
ABC Housing,Semi Independent,Leaving Care Placements,"2,692.65",0,"2,692.65",08/03/2016
ABC Housing,Semi Independent,Leaving Care Placements,"2,692.65",0,"2,692.65",08/03/2016
Abfallbehalter & Container Weber UK,Refuse Collection,,431,86.2,517.2,08/02/2016
Abfallbehalter & Container Weber UK,Refuse Collection,,679.5,135.9,815.4,24/02/2016
ABI College,Other Professional Fees,Welfare to Work,"2,035.00",0,"2,035.00",10/02/2016
ABI Support Services Ltd,Residential Placements,Long Term Team - LD,"6,585.20",0,"6,585.20",26/01/2016
ABI Support Services Ltd,Residential Placements,Long Term Team - LD,"2,037.14",0,"2,037.14",26/01/2016
ABI Support Services Ltd,Residential Placements,Long Term Team - LD,"1,905.71",0,"1,905.71",24/02/2016
ABI Support Services Ltd,Residential Placements,Long Term Team - LD,"6,160.35",0,"6,160.35",24/02/2016
ABI Support Services Ltd,Residential Placements,Long Term Team - LD,"2,037.15",0,"2,037.15",24/03/2016
ABI Support Services Ltd,Residential Placements,Long Term Team - LD,"6,585.19",0,"6,585.19",24/03/2016
Abilities Development,Day Care Payments,Personalisation - LD,"3,885.00",0,"3,885.00",17/03/2016
Abintegro Ltd,Staff training (General),Personnel Management,"16,000.00","3,200.00","19,200.00",30/03/2016
Above Beyond Care,Semi Independent,Childrens Placements,"2,885.25",0,"2,885.25",06/01/2016
Above Beyond Care,Semi Independent,Childrens Placements,"3,126.97",0,"3,126.97",06/01/2016
Above Beyond Care,Semi Independent,Childrens Placements,"4,021.71",0,"4,021.71",06/01/2016
Above Beyond Care,Semi Independent,Childrens Placements,"1,109.57",0,"1,109.57",08/02/2016
Above Beyond Care,Semi Independent,Childrens Placements,"2,219.14",0,"2,219.14",08/02/2016
Above Beyond Care,Semi Independent,Childrens Placements,"3,577.71",0,"3,577.71",08/02/2016
Above Beyond Care,Semi Independent,Childrens Placements,"2,968.21",0,"2,968.21",08/03/2016
Above Beyond Care,Semi Independent,Childrens Placements,"3,338.66",0,"3,338.66",08/03/2016
Academy Consulting,Consultants Fees,,"1,750.00",350,"2,100.00",14/01/2016
Academy Consulting,Consultants Fees,,"4,176.90",835.38,"5,012.28",27/01/2016
Academy Consulting,Consultants Fees,,"1,875.00",375,"2,250.00",07/03/2016
Academy Consulting,Consultants Fees,,441,88.2,529.2,18/03/2016
Accedo Care Ltd,Residential Placements,Long Term Team - LD,871.9,0,871.9,26/01/2016
Accedo Care Ltd,Residential Placements,Long Term Team - LD,815.65,0,815.65,24/02/2016
Accedo Care Ltd,Residential Placements,Long Term Team - LD,871.89,0,871.89,24/03/2016
Access Independent,Consultants Fees,Freedom Pass & Taxicards,"5,479.50","1,095.90","6,575.40",29/02/2016
Access Independent,Consultants Fees,Freedom Pass & Taxicards,"6,960.00","1,392.00","8,352.00",04/03/2016
Access Independent,Consultants Fees,Freedom Pass & Taxicards,"6,286.50","1,257.30","7,543.80",24/03/2016
Accident Claims Hotline,Other Agencies/Local Authorities 3rd Party Payment,Motor Insurance,"1,716.00",0,"1,716.00",23/02/2016
ACH of London LLP,Adults & Social - Client Charges,Long Term Team - LD,-451.63,0,-451.63,26/01/2016
ACH of London LLP,Residential Placements,Long Term Team - LD,"7,085.71",0,"7,085.71",26/01/2016
ACH of London LLP,Adults & Social - Client Charges,Long Term Team - LD,-422.49,0,-422.49,24/02/2016
ACH of London LLP,Residential Placements,Long Term Team - LD,"6,628.57",0,"6,628.57",24/02/2016
ACH of London LLP,Residential Placements,Long Term Team - LD,"7,085.72",0,"7,085.72",24/03/2016
ACH of London LLP,Adults & Social - Client Charges,Long Term Team - LD,-451.62,0,-451.62,24/03/2016
ACORN MONTESSORI SCHOOL,Voluntary Organisations TPP,2 year old offer,"2,708.75",0,"2,708.75",05/01/2016
ACORN MONTESSORI SCHOOL,Voluntary Organisations TPP,Dsg Nursery Educ Grant 3yrs & 4yrs,"9,090.00",0,"9,090.00",05/01/2016
ACORN MONTESSORI SCHOOL,Voluntary Organisations TPP,Dsg Nursery Educ Grant 3yrs & 4yrs,"1,155.00",0,"1,155.00",07/03/2016
ACORN MONTESSORI SCHOOL,Voluntary Organisations TPP,2 year old offer,"2,378.75",0,"2,378.75",07/03/2016
ACORN MONTESSORI SCHOOL,Voluntary Organisations TPP,Dsg Nursery Educ Grant 3yrs & 4yrs,"15,823.50",0,"15,823.50",07/03/2016
Acrylic Design UK Ltd,Other Professional Fees,Network & Traffic Team,"2,800.00",560,"3,360.00",23/02/2016
ACS BPS Ltd,"Equipment Lease, Purchase, Maintenance and Repair",Car Parking,"1,392.33",278.47,"1,670.80",14/01/2016
ACS BPS Ltd,"Equipment Lease, Purchase, Maintenance and Repair",Car Parking,"-1,392.33",-278.47,"-1,670.80",24/02/2016
ACS BPS Ltd,"Equipment Lease, Purchase, Maintenance and Repair",Car Parking,"1,392.33",278.47,"1,670.80",24/02/2016
ACS BPS Ltd,"Equipment Lease, Purchase, Maintenance and Repair",Car Parking,"1,422.30",284.46,"1,706.76",25/02/2016
ACS BPS Ltd,"Equipment Lease, Purchase, Maintenance and Repair",Car Parking,"1,392.33",278.47,"1,670.80",15/03/2016
ACS BPS Ltd,"Equipment Lease, Purchase, Maintenance and Repair",Car Parking,"1,392.33",278.47,"1,670.80",30/03/2016
Active Care Ltd,Residential Schools,Ind & Non Maint Res Sch,"2,400.00",0,"2,400.00",01/03/2016
Active Care Ltd,Residential Schools,Ind & Non Maint Res Sch,"2,700.00",0,"2,700.00",29/03/2016
Addington Medical Centre,Miscellaneous Supplies & Services Cost,Barnet: Sexual Health Services,"1,012.44",0,"1,012.44",04/02/2016
Adhd Support Group Harrow,Other Agencies/Local Authorities 3rd Party Payment,Voluntary Org Grants,"1,805.40",0,"1,805.40",29/02/2016
Adhd Support Group Harrow,"Counselling, Therapy",IYSS,"6,950.75",0,"6,950.75",23/03/2016
Adler &  Rosenberg Surgery,Miscellaneous Supplies & Services Cost,Barnet: Health Check Programme,"1,825.00",0,"1,825.00",04/01/2016
ADOBE,"Computer Software, Purchase and Maintenance",IT Contractors,"32,438.00",0,"32,438.00",12/01/2016
ADOBE,"Computer Software, Purchase and Maintenance",IT Contractors,"19,931.73",0,"19,931.73",13/01/2016
Adolphus Care,Supptd Accommodation for Social Care Clients,Personalisation - LD,"2,237.31",0,"2,237.31",27/01/2016
Adolphus Care,Supptd Accommodation for Social Care Clients,Long Term Team - PD,"2,897.66",0,"2,897.66",27/01/2016
Adolphus Care,Adults & Social - Client Charges,Long Term Team - PD,-295.65,0,-295.65,27/01/2016
Adolphus Care,Supptd Accommodation for Social Care Clients,Long Term Team - LD,"3,289.81",0,"3,289.81",27/01/2016
Adolphus Care,Supptd Accommodation for Social Care Clients,Long Term Team - LD,"4,717.31",0,"4,717.31",27/01/2016
Adolphus Care,Supptd Accommodation for Social Care Clients,Long Term Team - LD,"13,365.14",0,"13,365.14",27/01/2016
Adolphus Care,Supptd Accommodation for Social Care Clients,Long Term Team - LD,"17,215.76",0,"17,215.76",27/01/2016
Adolphus Care,Supptd Accommodation for Social Care Clients,Long Term Team - LD,"5,811.71",0,"5,811.71",11/02/2016
Adolphus Care,Supptd Accommodation for Social Care Clients,Personalisation - LD,"2,092.97",0,"2,092.97",25/02/2016
Adolphus Care,Supptd Accommodation for Social Care Clients,Long Term Team - PD,"2,710.71",0,"2,710.71",25/02/2016
Adolphus Care,Adults & Social - Client Charges,Long Term Team - PD,-276.58,0,-276.58,25/02/2016
Adolphus Care,Supptd Accommodation for Social Care Clients,Long Term Team - LD,"3,077.56",0,"3,077.56",25/02/2016
Adolphus Care,Supptd Accommodation for Social Care Clients,Long Term Team - LD,"4,412.97",0,"4,412.97",25/02/2016
Adolphus Care,Supptd Accommodation for Social Care Clients,Long Term Team - LD,"4,731.14",0,"4,731.14",25/02/2016
Adolphus Care,Supptd Accommodation for Social Care Clients,Long Term Team - LD,"8,604.71",0,"8,604.71",25/02/2016
Adolphus Care,Supptd Accommodation for Social Care Clients,Long Term Team - OP,"42,205.71",0,"42,205.71",09/03/2016
Adolphus Care,Supptd Accommodation for Social Care Clients,Personalisation - LD,"2,237.32",0,"2,237.32",24/03/2016
Adolphus Care,Adults & Social - Client Charges,Long Term Team - PD,-295.65,0,-295.65,24/03/2016
Adolphus Care,Supptd Accommodation for Social Care Clients,Long Term Team - PD,"2,897.66",0,"2,897.66",24/03/2016
Adolphus Care,Supptd Accommodation for Social Care Clients,Long Term Team - LD,"3,289.81",0,"3,289.81",24/03/2016
Adolphus Care,Supptd Accommodation for Social Care Clients,Long Term Team - LD,"4,717.32",0,"4,717.32",24/03/2016
Adolphus Care,Supptd Accommodation for Social Care Clients,Long Term Team - LD,"5,057.43",0,"5,057.43",24/03/2016
Adolphus Care,Supptd Accommodation for Social Care Clients,Long Term Team - LD,"9,198.15",0,"9,198.15",24/03/2016
Adolphus Care,Supptd Accommodation for Social Care Clients,Long Term Team - OP,"10,903.15",0,"10,903.15",24/03/2016
Adrian Davis,Legal Fees/Advocacy,Homelessness,650,130,780,21/03/2016
Adrian Hall,Legal Fees/Advocacy,Hounslow Inter Authority Agreement,935,187,"1,122.00",31/03/2016
Advanced Ticketing Ltd,Event Suppliers,Harrow Arts Centre,814.76,162.95,977.71,05/01/2016
Advanced Ticketing Ltd,Event Suppliers,Harrow Arts Centre,548.86,109.77,658.63,09/02/2016
Advanced Ticketing Ltd,Event Suppliers,Harrow Arts Centre,448.05,89.61,537.66,09/03/2016
Advanced Ticketing Ltd,Event Suppliers,Harrow Arts Centre,702.35,140.47,842.82,24/03/2016
Affinity Water,Water Rates/Charges (including sewage),Cemetries & Breakspear Crematorium,527.75,0,527.75,04/01/2016
Affinity Water,Water Rates/Charges (including sewage),Public Con's,631.41,0,631.41,04/01/2016
Affinity Water,Water Rates/Charges (including sewage),Public Con's,783.35,0,783.35,04/01/2016
Affinity Water,Water Rates/Charges (including sewage),Cemetries & Breakspear Crematorium,844.35,0,844.35,04/01/2016
Affinity Water,Water Rates/Charges (including sewage),Harrow Arts Centre,"2,281.61",0,"2,281.61",04/01/2016
Affinity Water,Water Rates/Charges (including sewage),Depot,910.55,0,910.55,06/01/2016
Affinity Water,Water Rates/Charges (including sewage),Civic Centre Accommodation,-522.47,0,-522.47,13/01/2016
Affinity Water,Water Rates/Charges (including sewage),Civic Centre Accommodation,522.47,0,522.47,13/01/2016
Affinity Water,Water Rates/Charges (including sewage),Estates & Community Halls,"3,206.74",0,"3,206.74",13/01/2016
Affinity Water,Water Rates/Charges (including sewage),Estates & Community Halls,"3,195.73",0,"3,195.73",18/01/2016
Affinity Water,Water Rates/Charges (including sewage),Public Con's,215.75,0,215.75,27/01/2016
Affinity Water,Water Rates/Charges (including sewage),Allotments,"1,388.89",0,"1,388.89",27/01/2016
Affinity Water,Water Rates/Charges (including sewage),Depot,"1,175.79",0,"1,175.79",29/01/2016
Affinity Water,Water Rates/Charges (including sewage),,"2,355.13",471.03,"2,826.16",29/01/2016
Affinity Water,Water Rates/Charges (including sewage),Harrow Arts Centre,"5,877.20",0,"5,877.20",03/02/2016
Affinity Water,Water Rates/Charges (including sewage),Civic Centre Accommodation,-522.47,0,-522.47,12/02/2016
Affinity Water,Water Rates/Charges (including sewage),Civic Centre Accommodation,522.47,0,522.47,12/02/2016
Affinity Water,Water Rates/Charges (including sewage),Civic Centre Accommodation,965.89,0,965.89,24/02/2016
Affinity Water,Water Rates/Charges (including sewage),Estates & Community Halls,"2,842.39",0,"2,842.39",02/03/2016
Affinity Water,Water Rates/Charges (including sewage),Harrow Arts Centre,"8,047.88",0,"8,047.88",04/03/2016
Affinity Water,Water Rates/Charges (including sewage),Estates & Community Halls,"1,291.44",0,"1,291.44",07/03/2016
Affinity Water,Water Rates/Charges (including sewage),Allotments,500.67,0,500.67,09/03/2016
Affinity Water,Water Rates/Charges (including sewage),Parks/Open Spaces & Playing Fields,525.5,0,525.5,09/03/2016
Affinity Water,Water Rates/Charges (including sewage),Parks/Open Spaces & Playing Fields,728.4,0,728.4,09/03/2016
Affinity Water,Water Rates/Charges (including sewage),Parks/Open Spaces & Playing Fields,"1,249.01",0,"1,249.01",09/03/2016
Affinity Water,Water Rates/Charges (including sewage),Estates & Community Halls,"-2,893.90",0,"-2,893.90",31/03/2016
Affinity Water,Water Rates/Charges (including sewage),Estates & Community Halls,-902.25,0,-902.25,31/03/2016
Affinity Water,Water Rates/Charges (including sewage),Estates & Community Halls,-603.98,0,-603.98,31/03/2016
Affinity Water,Water Rates/Charges (including sewage),Estates & Community Halls,-584.9,0,-584.9,31/03/2016
Affinity Water,Water Rates/Charges (including sewage),Estates & Community Halls,584.9,0,584.9,31/03/2016
Affinity Water,Water Rates/Charges (including sewage),Estates & Community Halls,603.98,0,603.98,31/03/2016
Affinity Water,Water Rates/Charges (including sewage),Estates & Community Halls,902.25,0,902.25,31/03/2016
Affinity Water,Water Rates/Charges (including sewage),Estates & Community Halls,"2,893.90",0,"2,893.90",31/03/2016
Afghan Association Paiwand,Other Professional Fees,Education Strategy-Enhancing Achievement,"4,110.00",0,"4,110.00",24/02/2016
Afghan Association Paiwand,Foster Payments,Asylum Client Expenditure,"1,045.71",0,"1,045.71",22/01/2016
Afghan Association Paiwand,Foster Payments,Asylum Client Expenditure,"1,220.00",0,"1,220.00",22/01/2016
Afghan Association Paiwand,Foster Payments,Asylum Client Expenditure,"1,525.00",0,"1,525.00",22/01/2016
Afghan Association Paiwand,Foster Payments,Asylum Client Expenditure,"2,745.00",0,"2,745.00",22/01/2016
Afghan Association Paiwand,Foster Payments,Asylum Client Expenditure,"3,266.10",0,"3,266.10",22/01/2016
Afghan Association Paiwand,Foster Payments,Asylum Client Expenditure,"1,220.00",0,"1,220.00",05/02/2016
Afghan Association Paiwand,Foster Payments,Asylum Client Expenditure,"1,220.00",0,"1,220.00",05/02/2016
Afghan Association Paiwand,Foster Payments,Asylum Client Expenditure,"1,220.00",0,"1,220.00",05/02/2016
Afghan Association Paiwand,Foster Payments,Asylum Client Expenditure,"1,437.85",0,"1,437.85",05/02/2016
Afghan Association Paiwand,Foster Payments,Asylum Client Expenditure,"1,451.60",0,"1,451.60",05/02/2016
Afghan Association Paiwand,Foster Payments,Asylum Client Expenditure,"1,742.85",0,"1,742.85",05/02/2016
Afghan Association Paiwand,Foster Payments,Asylum Client Expenditure,"1,220.00",0,"1,220.00",02/03/2016
Afghan Association Paiwand,Foster Payments,Asylum Client Expenditure,"1,220.00",0,"1,220.00",02/03/2016
Afghan Association Paiwand,Foster Payments,Asylum Client Expenditure,"1,220.00",0,"1,220.00",02/03/2016
Afghan Association Paiwand,Foster Payments,Asylum Client Expenditure,"1,220.00",0,"1,220.00",02/03/2016
Afghan Association Paiwand,Foster Payments,Asylum Client Expenditure,"1,220.00",0,"1,220.00",02/03/2016
Afghan Association Paiwand,Foster Payments,Asylum Client Expenditure,"1,525.00",0,"1,525.00",29/03/2016
Afghan Association Paiwand,Foster Payments,Asylum Client Expenditure,"1,525.00",0,"1,525.00",29/03/2016
Afghan Association Paiwand,Foster Payments,Asylum Client Expenditure,"1,525.00",0,"1,525.00",29/03/2016
Afghan Association Paiwand,Foster Payments,Asylum Client Expenditure,"1,525.00",0,"1,525.00",29/03/2016
Afghan Association Paiwand,Foster Payments,Asylum Client Expenditure,"1,525.00",0,"1,525.00",29/03/2016
African Cultural Association,Other Professional Fees,Community Learning Trust,"2,124.00",0,"2,124.00",01/03/2016
Age UK Harrow,Other Agencies/Local Authorities 3rd Party Payment,Voluntary Org Grants,"3,093.96",0,"3,093.96",08/02/2016
Agripa Solutions Ltd,Refuse Collection,Garden Waste,"1,360.00",272,"1,632.00",09/02/2016
Agripa Solutions Ltd,Refuse Collection,Garden Waste,"2,400.00",480,"2,880.00",09/02/2016
Agripa Solutions Ltd,IT consumables,Food Waste,"1,700.00",340,"2,040.00",10/02/2016
Airwave Solutions Limited,"Equipment Lease, Purchase, Maintenance and Repair",Community Resilience,"1,162.92",232.58,"1,395.50",09/02/2016
Airwave Solutions Limited,"Equipment Lease, Purchase, Maintenance and Repair",Community Resilience,"1,521.01",304.2,"1,825.21",09/02/2016
Airwave Solutions Limited,"Equipment Lease, Purchase, Maintenance and Repair",Community Resilience,"-1,162.92",-232.58,"-1,395.50",31/03/2016
Airwave Solutions Limited,"Equipment Lease, Purchase, Maintenance and Repair",Community Resilience,"1,162.92",232.58,"1,395.50",31/03/2016
Aisa Medical Ltd,Consultants Fees,Mental Health - Non Pooled/ DoLS,"1,812.71",0,"1,812.71",08/01/2016
AKDesign Consultants Limited,Building Maintenance Exit Costs,Housing Repairs,575,115,690,09/02/2016
AKDesign Consultants Limited,Building Maintenance Exit Costs,Housing Repairs,"2,072.00",414.4,"2,486.40",30/03/2016
Albion Building Consultants,Consultants Fees,Bob Lawrence Library,115,0,115,29/02/2016
Albion Building Consultants,Consultants Fees,Bob Lawrence Library,"2,700.00",540,"3,240.00",29/02/2016
ALDWYCH (HARROW) LTD,Accommodation,Housing Needs,"2,790.00",0,"2,790.00",22/03/2016
Alexander Booth,Legal Fees/Advocacy,Barnet Council Legal Services,"1,250.00",250,"1,500.00",05/01/2016
Alexander Shaw Solicitors LLP,Legal Fees/Advocacy,Hounslow Inter Authority Agreement,"4,500.00",0,"4,500.00",04/01/2016
Alexandra Court,Adults & Social - Client Charges,Long Term Team - OP,-559.33,0,-559.33,26/01/2016
Alexandra Court,Residential Placements,Long Term Team - OP,"2,037.14",0,"2,037.14",26/01/2016
Alexandra Court,Adults & Social - Client Charges,Long Term Team - OP,-523.24,0,-523.24,24/02/2016
Alexandra Court,Residential Placements,Long Term Team - OP,"1,905.71",0,"1,905.71",24/02/2016
Alexandra Court,Residential Placements,Long Term Team - OP,"2,037.15",0,"2,037.15",24/03/2016
Alexandra Court,Adults & Social - Client Charges,Long Term Team - OP,-559.33,0,-559.33,24/03/2016
Ali McClure Education and Parenting,Consultants Fees,Early Years Project,"1,050.00",0,"1,050.00",08/03/2016
Aligned Assets Limited,"Computer Software, Purchase and Maintenance",WEB Team,"12,389.75","2,477.95","14,867.70",06/01/2016
All Containers Ltd,Storage and Archiving,,628,125.6,753.6,06/01/2016
All Containers Ltd,Storage and Archiving,,777,155.4,932.4,06/01/2016
All Saints Playgroup,Voluntary Organisations TPP,Dsg Nursery Educ Grant 3yrs & 4yrs,"3,294.00",0,"3,294.00",05/01/2016
All Saints Playgroup,Voluntary Organisations TPP,Dsg Nursery Educ Grant 3yrs & 4yrs,"10,253.10",0,"10,253.10",07/03/2016
All Saints Pre-school,Client Activities,Dsg Outborough Placement-Fees,"3,142.50",0,"3,142.50",11/01/2016
All Saints Pre-school,Voluntary Organisations TPP,2 year old offer,"1,633.50",0,"1,633.50",28/01/2016
All Saints Pre-school,Voluntary Organisations TPP,Dsg Nursery Educ Grant 3yrs & 4yrs,"3,088.80",0,"3,088.80",28/01/2016
All Saints Pre-school,Voluntary Organisations TPP,2 year old offer,"2,178.00",0,"2,178.00",07/03/2016
All Saints Pre-school,Voluntary Organisations TPP,Dsg Nursery Educ Grant 3yrs & 4yrs,"6,659.40",0,"6,659.40",07/03/2016
All Saints' Trust,Grants to Voluntary Organisations,Community Learning Trust,"2,000.00",0,"2,000.00",31/03/2016
All Saints' Trust,Grant Transfers or Delegations,St Bernadette's Catholic Primary ASC,"57,374.64",0,"57,374.64",15/02/2016
All Saints' Trust,Grant Transfers or Delegations,St Bernadette's Catholic Primary,"379,626.34",0,"379,626.34",15/02/2016
All Saints' Trust,DfE - Schools SEN,St Bernadette's Catholic Primary,"13,989.84",0,"13,989.84",09/03/2016
Allen Groundcare Ltd,Other Professional Fees,Arboriculture,550,110,660,10/02/2016
Allfor Care Alpha Care Recruitment,Domiciliary Care,Personalisation - PD,514.88,0,514.88,05/01/2016
Allfor Care Alpha Care Recruitment,Domiciliary Care,Personalisation - PD,675.8,0,675.8,05/01/2016
Allfor Care Alpha Care Recruitment,Domiciliary Care,Personalisation - OP,675.8,0,675.8,05/01/2016
Allfor Care Alpha Care Recruitment,Domiciliary Care,Personalisation - OP,675.8,0,675.8,05/01/2016
Allfor Care Alpha Care Recruitment,Domiciliary Care,Personalisation - PD,751.08,0,751.08,05/01/2016
Allfor Care Alpha Care Recruitment,Domiciliary Care,Personalisation - PD,751.08,0,751.08,05/01/2016
Allfor Care Alpha Care Recruitment,Domiciliary Care,Personalisation - OP,"1,029.76",0,"1,029.76",05/01/2016
Allfor Care Alpha Care Recruitment,Domiciliary Care,Personalisation - OP,"1,029.76",0,"1,029.76",05/01/2016
Allfor Care Alpha Care Recruitment,Domiciliary Care,Personalisation - OP,"1,040.72",0,"1,040.72",05/01/2016
Allfor Care Alpha Care Recruitment,Domiciliary Care,Personalisation - OP,"1,040.72",0,"1,040.72",05/01/2016
Allfor Care Alpha Care Recruitment,Domiciliary Care,Personalisation - PD,"1,072.88",0,"1,072.88",05/01/2016
Allfor Care Alpha Care Recruitment,Domiciliary Care,Personalisation - PD,"1,072.88",0,"1,072.88",05/01/2016
Allfor Care Alpha Care Recruitment,Domiciliary Care,Personalisation - OP,"1,126.32",0,"1,126.32",05/01/2016
Allfor Care Alpha Care Recruitment,Domiciliary Care,Personalisation - OP,"1,126.32",0,"1,126.32",05/01/2016
Allfor Care Alpha Care Recruitment,Domiciliary Care,Long Term Team - LD,"1,222.84",0,"1,222.84",05/01/2016
Allfor Care Alpha Care Recruitment,Domiciliary Care,Long Term Team - LD,"1,222.84",0,"1,222.84",05/01/2016
Allfor Care Alpha Care Recruitment,Domiciliary Care,Personalisation - OP,"1,415.92",0,"1,415.92",05/01/2016
Allfor Care Alpha Care Recruitment,Domiciliary Care,Personalisation - OP,"1,415.92",0,"1,415.92",05/01/2016
Allfor Care Alpha Care Recruitment,Domiciliary Care,Personalisation - OP,"1,652.12",0,"1,652.12",05/01/2016
Allfor Care Alpha Care Recruitment,Domiciliary Care,Personalisation - OP,"1,652.12",0,"1,652.12",05/01/2016
Allfor Care Alpha Care Recruitment,Domiciliary Care,Personalisation - PD,"1,802.08",0,"1,802.08",05/01/2016
Allfor Care Alpha Care Recruitment,Domiciliary Care,Personalisation - PD,"1,802.08",0,"1,802.08",05/01/2016
Allfor Care Alpha Care Recruitment,Domiciliary Care,Personalisation - PD,"1,802.08",0,"1,802.08",05/01/2016
Allfor Care Alpha Care Recruitment,Domiciliary Care,Personalisation - PD,"1,802.08",0,"1,802.08",05/01/2016
Allfor Care Alpha Care Recruitment,Domiciliary Care,Personalisation - PD,675.8,0,675.8,01/02/2016
Allfor Care Alpha Care Recruitment,Domiciliary Care,Personalisation - OP,"1,029.76",0,"1,029.76",01/02/2016
Allfor Care Alpha Care Recruitment,Domiciliary Care,Personalisation - OP,"1,040.72",0,"1,040.72",01/02/2016
Allfor Care Alpha Care Recruitment,Domiciliary Care,Personalisation - PD,"1,802.08",0,"1,802.08",01/02/2016
Allfor Care Alpha Care Recruitment,Domiciliary Care,Personalisation - OP,"2,102.64",0,"2,102.64",01/02/2016
Allfor Care Alpha Care Recruitment,Domiciliary Care,Personalisation - PD,675.8,0,675.8,10/02/2016
Allfor Care Alpha Care Recruitment,Domiciliary Care,Personalisation - OP,675.8,0,675.8,10/02/2016
Allfor Care Alpha Care Recruitment,Domiciliary Care,Personalisation - PD,"1,394.68",0,"1,394.68",10/02/2016
Allfor Care Alpha Care Recruitment,Domiciliary Care,Personalisation - OP,"1,415.92",0,"1,415.92",10/02/2016
Allfor Care Alpha Care Recruitment,Domiciliary Care,Personalisation - PD,"1,636.03",0,"1,636.03",10/02/2016
Allfor Care Alpha Care Recruitment,Domiciliary Care,Personalisation - PD,"1,705.54",0,"1,705.54",10/02/2016
Allfor Care Alpha Care Recruitment,Domiciliary Care,Personalisation - OP,"1,952.04",0,"1,952.04",10/02/2016
Allfor Care Alpha Care Recruitment,Domiciliary Care,Children With Disabilities Client Costs,542.7,0,542.7,18/02/2016
Allfor Care Alpha Care Recruitment,Domiciliary Care,Children With Disabilities Client Costs,596.97,0,596.97,18/02/2016
Allfor Care Alpha Care Recruitment,Domiciliary Care,Children With Disabilities Client Costs,723.6,0,723.6,18/02/2016
Allfor Care Alpha Care Recruitment,Domiciliary Care,Children With Disabilities Client Costs,795.96,0,795.96,18/02/2016
Allfor Care Alpha Care Recruitment,Domiciliary Care,Children With Disabilities Client Costs,814.05,0,814.05,18/02/2016
Allfor Care Alpha Care Recruitment,Domiciliary Care,Children With Disabilities Client Costs,904.5,0,904.5,18/02/2016
Allfor Care Alpha Care Recruitment,Domiciliary Care,Children With Disabilities Client Costs,"1,555.76",0,"1,555.76",18/02/2016
Allfor Care Alpha Care Recruitment,Domiciliary Care,Children With Disabilities Client Costs,"1,736.66",0,"1,736.66",18/02/2016
Allfor Care Alpha Care Recruitment,Domiciliary Care,Children With Disabilities Client Costs,"1,736.66",0,"1,736.66",18/02/2016
Allfor Care Alpha Care Recruitment,Domiciliary Care,Children With Disabilities Client Costs,"1,772.84",0,"1,772.84",18/02/2016
Allfor Care Alpha Care Recruitment,Domiciliary Care,Children With Disabilities Client Costs,"1,202.28",0,"1,202.28",18/02/2016
Allfor Care Alpha Care Recruitment,Domiciliary Care,Children With Disabilities Client Costs,751.44,0,751.44,18/02/2016
Allfor Care Alpha Care Recruitment,Domiciliary Care,Children With Disabilities Client Costs,777.12,0,777.12,18/02/2016
Allfor Care Alpha Care Recruitment,Domiciliary Care,Children With Disabilities Client Costs,"1,248.96",0,"1,248.96",18/02/2016
Allfor Care Alpha Care Recruitment,Domiciliary Care,Children With Disabilities Client Costs,"1,274.64",0,"1,274.64",18/02/2016
Allfor Care Alpha Care Recruitment,Domiciliary Care,Children With Disabilities Client Costs,751.44,0,751.44,18/02/2016
Allfor Care Alpha Care Recruitment,Domiciliary Care,Children With Disabilities Client Costs,751.44,0,751.44,18/02/2016
Allfor Care Alpha Care Recruitment,Domiciliary Care,Children With Disabilities Client Costs,"1,274.64",0,"1,274.64",18/02/2016
Allfor Care Alpha Care Recruitment,Domiciliary Care,Children With Disabilities Client Costs,"1,274.64",0,"1,274.64",18/02/2016
Allfor Care Alpha Care Recruitment,Domiciliary Care,Children With Disabilities Client Costs,751.44,0,751.44,18/02/2016
Allfor Care Alpha Care Recruitment,Domiciliary Care,Children With Disabilities Client Costs,"2,125.59",0,"2,125.59",18/02/2016
Allfor Care Alpha Care Recruitment,Domiciliary Care,Personalisation - PD,514.88,0,514.88,23/02/2016
Allfor Care Alpha Care Recruitment,Domiciliary Care,Personalisation - PD,675.8,0,675.8,23/02/2016
Allfor Care Alpha Care Recruitment,Domiciliary Care,Personalisation - PD,751.08,0,751.08,23/02/2016
Allfor Care Alpha Care Recruitment,Domiciliary Care,Personalisation - PD,"1,072.88",0,"1,072.88",23/02/2016
Allfor Care Alpha Care Recruitment,Domiciliary Care,Long Term Team - LD,"1,222.84",0,"1,222.84",23/02/2016
Allfor Care Alpha Care Recruitment,Domiciliary Care,Personalisation - OP,"1,652.12",0,"1,652.12",23/02/2016
Allfor Care Alpha Care Recruitment,Domiciliary Care,Personalisation - PD,"1,737.72",0,"1,737.72",23/02/2016
Allfor Care Alpha Care Recruitment,Domiciliary Care,Personalisation - PD,941.27,0,941.27,02/03/2016
Allfor Care Alpha Care Recruitment,Domiciliary Care,Personalisation - OP,"1,029.76",0,"1,029.76",02/03/2016
Allfor Care Alpha Care Recruitment,Domiciliary Care,Personalisation - PD,"1,158.48",0,"1,158.48",02/03/2016
Allfor Care Alpha Care Recruitment,Domiciliary Care,Personalisation - PD,"1,158.48",0,"1,158.48",02/03/2016
Allfor Care Alpha Care Recruitment,Domiciliary Care,Personalisation - PD,"1,158.48",0,"1,158.48",02/03/2016
Allfor Care Alpha Care Recruitment,Domiciliary Care,Personalisation - OP,"1,415.92",0,"1,415.92",02/03/2016
Allfor Care Alpha Care Recruitment,Domiciliary Care,Children With Disabilities Client Costs,795.96,0,795.96,07/03/2016
Allfor Care Alpha Care Recruitment,Domiciliary Care,Children With Disabilities Client Costs,723.6,0,723.6,22/03/2016
Allfor Care Alpha Care Recruitment,Domiciliary Care,Children With Disabilities Client Costs,828.48,0,828.48,22/03/2016
Allfor Care Alpha Care Recruitment,Domiciliary Care,Children With Disabilities Client Costs,"1,197.60",0,"1,197.60",22/03/2016
Allfor Care Alpha Care Recruitment,Domiciliary Care,Children With Disabilities Client Costs,"2,170.82",0,"2,170.82",22/03/2016
Allfor Care ISF,Social Care Personal Budgets,Personalisation - LD,"1,068.00",0,"1,068.00",18/01/2016
Allfor Care ISF,Adults & Social - Net P.B.'s,Personalisation - OP,-144.44,0,-144.44,18/02/2016
Allfor Care ISF,Social Care Personal Budgets,Personalisation - OP,"1,064.80",0,"1,064.80",18/02/2016
Allfor Care ISF,Social Care Personal Budgets,Personalisation - LD,"1,068.00",0,"1,068.00",18/02/2016
Allfor Care ISF,Social Care Personal Budgets,Personalisation - OP,"1,064.80",0,"1,064.80",07/03/2016
Allfor Care ISF,Adults & Social - Net P.B.'s,Personalisation - OP,-144.44,0,-144.44,07/03/2016
Allfor Care ISF,Social Care Personal Budgets,Personalisation - LD,"1,068.00",0,"1,068.00",07/03/2016
Allfor Care ISF,Social Care Personal Budgets,Personalisation - OP,"9,487.44",0,"9,487.44",18/03/2016
Allfor Care ISF,Adults & Social - Net P.B.'s,Personalisation - OP,"-11,068.68",0,"-11,068.68",18/03/2016
Allfor Care ISF,Adults & Social - Net P.B.'s,Personalisation - OP,-144.44,0,-144.44,18/03/2016
Allfor Care ISF,Social Care Personal Budgets,Personalisation - OP,"1,064.80",0,"1,064.80",18/03/2016
Allfor Care ISF,Social Care Personal Budgets,Personalisation - LD,"1,068.00",0,"1,068.00",18/03/2016
Allpay Ltd,Miscellaneous Supplies & Services Cost,Children Looked After Team 1,"1,000.00",0,"1,000.00",12/01/2016
Allpay Ltd,Miscellaneous Supplies & Services Cost,Children Looked After Team 1,"1,000.00",0,"1,000.00",12/01/2016
Allpay Ltd,Miscellaneous Supplies & Services Cost,MASH Team,"1,000.00",0,"1,000.00",12/01/2016
Allpay Ltd,Miscellaneous Supplies & Services Cost,MASH Team,"1,000.00",0,"1,000.00",12/01/2016
Allpay Ltd,Miscellaneous Supplies & Services Cost,Children Looked After Team 1,"-2,000.00",0,"-2,000.00",13/01/2016
Allpay Ltd,Miscellaneous Supplies & Services Cost,MASH Team,"-2,000.00",0,"-2,000.00",13/01/2016
Allpay Ltd,Miscellaneous Supplies & Services Cost,Children Looked After Team 1,"2,000.00",0,"2,000.00",13/01/2016
Allpay Ltd,Miscellaneous Supplies & Services Cost,MASH Team,"2,000.00",0,"2,000.00",13/01/2016
Alpha Laundry Systems,Building Maintenance Exit Costs,Cyclical Maintenance,931.2,186.24,"1,117.44",27/01/2016
Alpha Laundry Systems,Building Maintenance Exit Costs,Cyclical Maintenance,923.64,184.73,"1,108.37",24/02/2016
Alpha Preparatory School,Voluntary Organisations TPP,Dsg Nursery Educ Grant 3yrs & 4yrs,"4,158.00",0,"4,158.00",06/01/2016
Alpha Preparatory School,Voluntary Organisations TPP,Dsg Nursery Educ Grant 3yrs & 4yrs,"4,455.00",0,"4,455.00",06/01/2016
Alpha Preparatory School,Voluntary Organisations TPP,Dsg Nursery Educ Grant 3yrs & 4yrs,"5,751.90",0,"5,751.90",07/03/2016
Alpha Preparatory School,Voluntary Organisations TPP,Dsg Nursery Educ Grant 3yrs & 4yrs,"8,508.15",0,"8,508.15",07/03/2016
Altwood Housing Ltd,Accommodation,Bed&Breakfast,"59,460.00","11,892.00","71,352.00",22/01/2016
Altwood Housing Ltd,Accommodation,Bed&Breakfast,"59,769.00","11,953.80","71,722.80",08/02/2016
Altwood Housing Ltd,Accommodation,Bed&Breakfast,"46,626.00","9,325.20","55,951.20",24/02/2016
Altwood Housing Ltd,Accommodation,Bed&Breakfast,"-46,626.00","-9,325.20","-55,951.20",31/03/2016
Altwood Housing Ltd,Accommodation,Bed&Breakfast,"46,626.00","9,325.20","55,951.20",31/03/2016
Altwood Housing Ltd,Residential Placements,Childrens Placements,"1,200.00",240,"1,440.00",06/01/2016
Altwood Housing Ltd,Residential Placements,Childrens Placements,"1,200.00",240,"1,440.00",06/01/2016
Altwood Housing Ltd,Residential Placements,Childrens Placements,800,160,960,08/02/2016
Altwood Housing Ltd,Residential Placements,Childrens Placements,"1,240.00",248,"1,488.00",08/02/2016
Altwood Housing Ltd,Social Services Clients - Other Payments,Childrens Placements,"2,240.00",448,"2,688.00",30/03/2016
Alzheimer's Society,Day Care Payments,Service Level Agreement,540,0,540,27/01/2016
Alzheimer's Society,Day Care Payments,Service Level Agreement,585,0,585,24/03/2016
Amac Express Services,Transport (Private Hire),P-DSG Transport Educ - Ops,"6,851.22","1,370.24","8,221.46",08/01/2016
Amac Express Services,Transport (Private Hire),P-DSG Transport Educ - Ops,"27,404.88",0,"27,404.88",08/01/2016
Amac Express Services,Transport (Private Hire),P-DSG Transport Educ - Ops,"9,269.44","1,853.89","11,123.33",11/02/2016
Amac Express Services,Transport (Private Hire),P-DSG Transport Educ - Ops,"37,077.76",0,"37,077.76",11/02/2016
Amac Express Services,Transport (Private Hire),P-DSG Transport Educ - Ops,"7,672.48","1,534.50","9,206.98",11/03/2016
Amac Express Services,Transport (Private Hire),P-DSG Transport Educ - Ops,"30,689.92",0,"30,689.92",11/03/2016
Amberol Ltd,"Equipment Lease, Purchase, Maintenance and Repair",Parks/Open Spaces & Playing Fields,"2,349.15",469.83,"2,818.98",15/03/2016
Amberol Ltd,"Equipment Lease, Purchase, Maintenance and Repair",Parks/Open Spaces & Playing Fields,751.86,150.37,902.23,22/03/2016
Ambient Landscapes Ltd,Grounds Maintenance/Landscaping,,"12,978.07","2,595.61","15,573.68",13/01/2016
Ambient Landscapes Ltd,Grounds Maintenance/Landscaping,,"6,043.95","1,208.79","7,252.74",02/03/2016
Ambient Landscapes Ltd,Grounds Maintenance/Landscaping,,"2,695.00",539,"3,234.00",09/03/2016
Ambient Landscapes Ltd,Grounds Maintenance/Landscaping,,600,120,720,16/03/2016
Ambient Landscapes Ltd,Consultants Fees,,"1,500.00",300,"1,800.00",16/03/2016
Ambient Landscapes Ltd,Grounds Maintenance/Landscaping,,890,178,"1,068.00",18/03/2016
Ambient Landscapes Ltd,Grounds Maintenance/Landscaping,,"6,594.03","1,318.81","7,912.84",21/03/2016
Ambitious about Autism,Residential Placements,Long Term Team - LD,"6,800.00",0,"6,800.00",31/03/2016
Ambitious about Autism,Professional Services - Curriculum,Ind Residential Day School Placement,"22,980.00",0,"22,980.00",10/02/2016
Ambitious about Autism,Professional Services - Curriculum,Ind Residential Day School Placement,"31,317.00",0,"31,317.00",10/02/2016
Ambitious about Autism,Professional Services - Curriculum,Ind Residential Day School Placement,"31,892.99",0,"31,892.99",29/03/2016
Amethyst Horticulture,Tree Work,Parks/Open Spaces & Playing Fields,"1,144.00",228.8,"1,372.80",05/02/2016
AMSL (First Central Account),Other Agencies/Local Authorities 3rd Party Payment,Motor Insurance,"-2,005.86",0,"-2,005.86",08/03/2016
AMSL (First Central Account),Other Agencies/Local Authorities 3rd Party Payment,Motor Insurance,"2,005.86",0,"2,005.86",08/03/2016
Amy Stout,Legal Fees/Advocacy,Hounslow Inter Authority Agreement,700,0,700,09/03/2016
Amy Turner Design,Refuse Collection,Business & Commercial Team,709.6,0,709.6,11/01/2016
Andrew Powell,Legal Fees/Advocacy,Barnet Council Legal Services,"3,850.00",770,"4,620.00",15/03/2016
Angela Piears,Legal Fees/Advocacy,Hounslow Inter Authority Agreement,675,135,810,09/03/2016
Angela Piears,Legal Fees/Advocacy,Hounslow Inter Authority Agreement,"1,425.00",285,"1,710.00",09/03/2016
Anglia DNA,Social Services Clients - Other Payments,Cin Team 1,715,143,858,05/01/2016
Anglia DNA,Social Services Clients - Other Payments,CIN Team 2,515,103,618,12/01/2016
Anglia DNA,Social Services Clients - Other Payments,CIN Team 3,650,130,780,12/01/2016
Anglia DNA,Social Services Clients - Other Payments,Children Looked After Team 1,690,138,828,17/02/2016
Anglia DNA,Social Services Clients - Other Payments,Children Looked After Team 1,560,112,672,17/03/2016
Annodata Ltd,Leases of Computer Equipment (ICT),Community Premises,515.62,103.12,618.74,05/01/2016
Anthony Gold Solicitors,Legal Fees/Advocacy,Anti-Social Behaviour,"1,219.50",243.9,"1,463.40",17/03/2016
Any Skips Ltd,Refuse Collection,Estates & Community Halls,"3,150.00",630,"3,780.00",07/01/2016
Any Skips Ltd,"Private Contractors, Third Party Payments",Music Teaching,560,112,672,08/02/2016
Any Skips Ltd,"Private Contractors, Third Party Payments",Music Teaching,560,112,672,10/02/2016
AON UK Limited NST LIB,Insurance Premiums,Insurance Services,-434.58,0,-434.58,27/01/2016
AON UK Limited NST LIB,Insurance Premiums,General Housing Revenue Account (HRA),"2,928.41",0,"2,928.41",27/01/2016
AON UK Limited NST LIB,Miscellaneous Income,General Housing Revenue Account (HRA),-234.01,0,-234.01,27/01/2016
Apetito Ltd,Catering  - Costs and Equipment,Adults Catering,616.75,0,616.75,01/03/2016
Apetito Ltd,Catering  - Costs and Equipment,Adults Catering,510.19,0,510.19,29/03/2016
Apple Tree Day Nursery,Voluntary Organisations TPP,2 year old offer,"1,815.00",0,"1,815.00",06/01/2016
Apple Tree Day Nursery,Voluntary Organisations TPP,Dsg Nursery Educ Grant 3yrs & 4yrs,"2,079.00",0,"2,079.00",06/01/2016
Apple Tree Day Nursery,Voluntary Organisations TPP,Dsg Nursery Educ Grant 3yrs & 4yrs,"4,653.00",0,"4,653.00",06/01/2016
Apple Tree Day Nursery,Voluntary Organisations TPP,2 year old offer,"1,815.00",0,"1,815.00",07/03/2016
Apple Tree Day Nursery,Voluntary Organisations TPP,2 year old offer,"1,815.00",0,"1,815.00",07/03/2016
Apple Tree Day Nursery,Voluntary Organisations TPP,Dsg Nursery Educ Grant 3yrs & 4yrs,"6,930.00",0,"6,930.00",07/03/2016
Apple Tree Day Nursery,Voluntary Organisations TPP,Dsg Nursery Educ Grant 3yrs & 4yrs,"9,644.25",0,"9,644.25",07/03/2016
APSE South and South West,Burials/Cremations,Divisional Director Environment & Cultur,"1,767.29",353.46,"2,120.75",02/02/2016
Arbor Master,Grounds Maintenance/Landscaping,,950,190,"1,140.00",24/02/2016
Arbor Master,Grounds Maintenance/Landscaping,,585,117,702,24/03/2016
Arbor Master,Grounds Maintenance/Landscaping,,"3,800.00",760,"4,560.00",24/03/2016
Arbory Residential Home,Residential Placements,Long Term Team - OP,"2,008.35",0,"2,008.35",13/01/2016
Arbory Residential Home,Residential Placements,Long Term Team - OP,"2,008.36",0,"2,008.36",17/02/2016
Arbory Residential Home,Residential Placements,Long Term Team - OP,"1,878.79",0,"1,878.79",21/03/2016
Arcadis,Other Professional Fees,,500,100,600,16/02/2016
Arcadis,Other Professional Fees,,"1,500.00",300,"1,800.00",16/02/2016
Ardent,Landlord Repairs Exit Costs,,"5,310.00","1,062.00","6,372.00",24/03/2016
Ardent,Landlord Repairs Exit Costs,,975,195,"1,170.00",21/01/2016
Ardent,Landlord Repairs Exit Costs,,"1,696.56",339.31,"2,035.87",27/01/2016
Ardent,Landlord Repairs Exit Costs,,"18,826.67","3,765.33","22,592.00",01/02/2016
Ardent,Landlord Repairs Exit Costs,Facilities Management,"6,485.00","1,297.00","7,782.00",09/02/2016
Ardent,Landlord Repairs Exit Costs,,"13,925.00","2,785.00","16,710.00",09/02/2016
Ardent,Landlord Repairs Exit Costs,,"2,675.00",535,"3,210.00",24/02/2016
Ardent,Landlord Repairs Exit Costs,,"1,750.00",350,"2,100.00",24/03/2016
Ardent,Landlord Repairs Exit Costs,,"4,627.00",925.4,"5,552.40",29/03/2016
Ardent,Landlord Repairs Exit Costs,,"22,672.53","4,534.51","27,207.04",29/03/2016
Ardent,Landlord Repairs Exit Costs,,"5,450.00","1,090.00","6,540.00",31/03/2016
Area Camden Ltd,Residential Placements,Childrens Placements,"15,500.00",0,"15,500.00",06/01/2016
Area Camden Ltd,Residential Placements,Childrens Placements,"15,500.00",0,"15,500.00",08/02/2016
Area Camden Ltd,Residential Placements,Childrens Placements,"14,500.00",0,"14,500.00",08/03/2016
Argent Litho Limited,Printing (external),Wiseworks,742,0,742,13/01/2016
Argent Litho Limited,Printing (external),Wiseworks,"1,513.00",0,"1,513.00",29/01/2016
Argos Business Solutions,"Equipment Lease, Purchase, Maintenance and Repair",Housing Repairs,435.43,87.09,522.52,22/01/2016
Argos Business Solutions,Social Services Clients - Other Payments,Cin Team 1,674.06,134.81,808.87,27/01/2016
Argos Business Solutions,Social Services Clients - Other Payments,CIN Team 2,799.44,159.89,959.33,16/03/2016
Argos Business Solutions,Social Services Clients - Other Payments,CIN Team 3,"1,264.75",252.95,"1,517.70",16/03/2016
ArjoHuntleigh Healthcare Ltd,"Equipment Lease, Purchase, Maintenance and Repair",Bedford House,616.96,123.39,740.35,29/01/2016
ArjoHuntleigh Healthcare Ltd,"Equipment Lease, Purchase, Maintenance and Repair",Bedford House,455.2,91.04,546.24,08/02/2016
Ark Elvin Academy,Grants and Subscriptions,CLA Pupil Premium Grant,"1,500.00",0,"1,500.00",21/03/2016
Armstrong York Asbestos,"Private Contractors, Third Party Payments",,500,100,600,22/01/2016
Armstrong York Asbestos,"Private Contractors, Third Party Payments",Housing Repairs,-500,-100,-600,12/02/2016
Armstrong York Asbestos,"Private Contractors, Third Party Payments",Housing Repairs,500,100,600,12/02/2016
Armstrong York Asbestos,"Private Contractors, Third Party Payments",Housing Repairs,500,100,600,15/02/2016
Armstrong York Asbestos,"Private Contractors, Third Party Payments",Non-Delegated Building Maintenance,440,88,528,29/02/2016
Armstrong York Asbestos,"Private Contractors, Third Party Payments",,"1,000.00",200,"1,200.00",24/03/2016
Arrow Transport & Solutions Ltd,Transport (Private Hire),P-DSG Transport Educ - Ops,720,144,864,29/02/2016
Ashgale House (Allied Care),Adults & Social - Client Charges,Long Term Team - PD,-344.99,0,-344.99,26/01/2016
Ashgale House (Allied Care),Residential Placements,Long Term Team - PD,"3,700.12",0,"3,700.12",26/01/2016
Ashgale House (Allied Care),Residential Placements,Long Term Team - PD,"3,461.40",0,"3,461.40",24/02/2016
Ashgale House (Allied Care),Adults & Social - Client Charges,Long Term Team - PD,-322.73,0,-322.73,24/02/2016
Ashgale House (Allied Care),Residential Placements,Long Term Team - PD,"3,700.11",0,"3,700.11",24/03/2016
Ashgale House (Allied Care),Adults & Social - Client Charges,Long Term Team - PD,-344.98,0,-344.98,24/03/2016
Asian People's Disability Alliance,Day Care Payments,Personalisation - LD,630.5,0,630.5,01/02/2016
Asian People's Disability Alliance,Day Care Payments,Personalisation - LD,"1,197.76",0,"1,197.76",01/02/2016
Asian People's Disability Alliance,Day Care Payments,Personalisation - LD,"1,197.95",0,"1,197.95",01/02/2016
Asian People's Disability Alliance,Day Care Payments,Personalisation - LD,504.4,0,504.4,29/02/2016
Asian People's Disability Alliance,Day Care Payments,Personalisation - LD,"1,008.64",0,"1,008.64",29/02/2016
Asian People's Disability Alliance,Day Care Payments,Personalisation - LD,"1,008.80",0,"1,008.80",29/02/2016
Asian People's Disability Alliance,Day Care Payments,Personalisation - LD,504.4,0,504.4,29/03/2016
Asian People's Disability Alliance,Day Care Payments,Personalisation - LD,"1,071.68",0,"1,071.68",29/03/2016
Asian People's Disability Alliance,Day Care Payments,Personalisation - LD,"1,071.85",0,"1,071.85",29/03/2016
Aspen Village Ltd,Recovery of Costs (External - Non Vatable),Long Term Team - PD,-496,0,-496,26/01/2016
Aspen Village Ltd,Nursing Care,Long Term Team - PD,"2,743.99",0,"2,743.99",26/01/2016
Aspen Village Ltd,Nursing Care,Long Term Team - OP,"2,267.65",0,"2,267.65",26/01/2016
Aspen Village Ltd,Residential Placements,Long Term Team - PD,"3,381.21",0,"3,381.21",26/01/2016
Aspen Village Ltd,Residential Placements,Long Term Team - PD,"1,344.07",0,"1,344.07",26/01/2016
Aspen Village Ltd,Adults & Social - Client Charges,Long Term Team - PD,-361.19,0,-361.19,26/01/2016
Aspen Village Ltd,Recovery of Costs (External - Non Vatable),Long Term Team - PD,-464,0,-464,24/02/2016
Aspen Village Ltd,Nursing Care,Long Term Team - PD,"2,566.96",0,"2,566.96",24/02/2016
Aspen Village Ltd,Nursing Care,Long Term Team - OP,"2,121.35",0,"2,121.35",24/02/2016
Aspen Village Ltd,Adults & Social - Client Charges,Long Term Team - PD,-337.89,0,-337.89,24/02/2016
Aspen Village Ltd,Residential Placements,Long Term Team - PD,"1,257.36",0,"1,257.36",24/02/2016
Aspen Village Ltd,Residential Placements,Long Term Team - PD,"3,163.07",0,"3,163.07",24/02/2016
Aspen Village Ltd,Recovery of Costs (External - Non Vatable),Long Term Team - PD,-496,0,-496,24/03/2016
Aspen Village Ltd,Nursing Care,Long Term Team - PD,"2,743.98",0,"2,743.98",24/03/2016
Aspen Village Ltd,Nursing Care,Long Term Team - OP,"2,267.65",0,"2,267.65",24/03/2016
Aspen Village Ltd,Residential Placements,Long Term Team - PD,"3,381.22",0,"3,381.22",24/03/2016
Aspen Village Ltd,Residential Placements,Long Term Team - PD,"1,344.07",0,"1,344.07",24/03/2016
Aspen Village Ltd,Adults & Social - Client Charges,Long Term Team - PD,-361.2,0,-361.2,24/03/2016
Aspen Village Ltd,Adults & Social - Client Charges,Long Term Team - OP,-920.28,0,-920.28,24/03/2016
Aspen Village Ltd,Respite Costs,Long Term Team - OP,"8,524.21",0,"8,524.21",24/03/2016
Assetgrove Lettings Ltd,Accommodation,Bed&Breakfast,720,0,720,26/01/2016
Assetgrove Lettings Ltd,Accommodation,Bed&Breakfast,930,0,930,26/01/2016
Assetgrove Lettings Ltd,Accommodation,Bed&Breakfast,"1,860.00",0,"1,860.00",26/01/2016
Assetgrove Lettings Ltd,Accommodation,Bed&Breakfast,"1,860.00",0,"1,860.00",31/03/2016
Assetgrove Lettings Ltd,Accommodation,Bed&Breakfast,"2,940.00",0,"2,940.00",31/03/2016
Assetgrove Lettings Ltd,Accommodation,Bed&Breakfast,"3,380.00",0,"3,380.00",31/03/2016
Assetgrove Lettings Ltd,Social Services Clients - Other Payments,CIN Team 2,525,0,525,15/01/2016
Assoc of Directors of Public Health,Miscellaneous Supplies & Services Cost,Harrow Public Health,"6,103.00",0,"6,103.00",22/03/2016
Assoc of Directors of Public Health,Miscellaneous Supplies & Services Cost,Barnet Public Health,"9,689.00",0,"9,689.00",22/03/2016
Associated Newspapers Ltd,Advertising,Liquor Licensing,"4,000.00",800,"4,800.00",01/02/2016
Associated Newspapers Ltd,Advertising,Liquor Licensing,"2,000.00",400,"2,400.00",14/03/2016
Association of School,Other Professional Fees,Harrow Schools Improvement Partnership,"1,674.60",334.92,"2,009.52",16/02/2016
Aston House,Adults & Social - Client Charges,Long Term Team - OP,-610.04,0,-610.04,26/01/2016
Aston House,Recovery of Costs (External - Non Vatable),Long Term Team - OP,-496,0,-496,26/01/2016
Aston House,Nursing Care,Long Term Team - OP,"2,848.06",0,"2,848.06",26/01/2016
Aston House,Adults & Social - Client Charges,Long Term Team - OP,-570.68,0,-570.68,24/02/2016
Aston House,Recovery of Costs (External - Non Vatable),Long Term Team - OP,-464,0,-464,24/02/2016
Aston House,Nursing Care,Long Term Team - OP,"2,664.31",0,"2,664.31",24/02/2016
Aston House,Nursing Care,Long Term Team - OP,"2,848.06",0,"2,848.06",24/03/2016
Aston House,Recovery of Costs (External - Non Vatable),Long Term Team - OP,-496,0,-496,24/03/2016
Aston House,Adults & Social - Client Charges,Long Term Team - OP,-610.03,0,-610.03,24/03/2016
ASTRO LETTINGS LTD,Section 17,CIN Team 2,"1,550.00",0,"1,550.00",04/01/2016
ASTRO LETTINGS LTD,Section 17,CIN Team 2,"1,550.00",0,"1,550.00",09/02/2016
Atkins Limited,Consultants Fees,,"2,280.00",456,"2,736.00",06/01/2016
Atkins Limited,Consultants Fees,,"3,534.00",706.8,"4,240.80",06/01/2016
Atkins Limited,Consultants Fees,,"5,500.00","1,100.00","6,600.00",06/01/2016
Atkins Limited,Consultants Fees,,"5,000.00","1,000.00","6,000.00",07/01/2016
Atkins Limited,Consultants Fees,,"4,000.00",800,"4,800.00",01/02/2016
Atkins Limited,Consultants Fees,,"9,035.00","1,807.00","10,842.00",16/02/2016
Atkins Limited,Consultants Fees,,"4,287.00",857.4,"5,144.40",17/02/2016
Atkins Limited,Consultants Fees,,"2,981.00",596.2,"3,577.20",24/02/2016
Atkins Limited,Consultants Fees,,"6,875.00","1,375.00","8,250.00",24/02/2016
Atkins Limited,Consultants Fees,,"3,100.00",620,"3,720.00",03/03/2016
Atkins Limited,Consultants Fees,,"5,630.44","1,126.09","6,756.53",10/03/2016
Atkins Limited,Consultants Fees,,"7,223.31","1,444.66","8,667.97",10/03/2016
Atkins Limited,Consultants Fees,,800,160,960,16/03/2016
Atkins Limited,Consultants Fees,,"17,487.50","3,497.50","20,985.00",21/03/2016
Atkins Limited,Consultants Fees,,"-3,682.50",-736.5,"-4,419.00",31/03/2016
Atkins Limited,Consultants Fees,,"3,682.50",736.5,"4,419.00",31/03/2016
Atomwide LTD,Other Professional Fees,Harrow Schools Improvement Partnership,"10,080.00","2,016.00","12,096.00",17/02/2016
Atomwide LTD,Other Professional Fees,Harrow Schools Improvement Partnership,500,100,600,02/03/2016
Audiolink Ltd,"Equipment Lease, Purchase, Maintenance and Repair",Car Parking,"1,555.00",0,"1,555.00",11/01/2016
Audiolink Ltd,"Equipment Lease, Purchase, Maintenance and Repair",Parking A/C-On Street Enfrcmnt,760,152,912,24/03/2016
Autism Consultants Ltd,Day Care Payments,Personalisation - LD,"2,436.00",0,"2,436.00",01/02/2016
Autism Consultants Ltd,Day Care Payments,Personalisation - LD,"3,480.00",0,"3,480.00",29/02/2016
Autism Consultants Ltd,Day Care Payments,Personalisation - LD,"2,610.00",0,"2,610.00",29/03/2016
Autism Wessex,Adults & Social - Client Charges,Long Term Team - LD,-356.28,0,-356.28,26/01/2016
Autism Wessex,Residential Placements,Long Term Team - LD,"4,242.79",0,"4,242.79",26/01/2016
Autism Wessex,Residential Placements,Long Term Team - LD,"2,037.14",0,"2,037.14",26/01/2016
Autism Wessex,Adults & Social - Client Charges,Long Term Team - LD,-333.29,0,-333.29,24/02/2016
Autism Wessex,Residential Placements,Long Term Team - LD,"3,969.06",0,"3,969.06",24/02/2016
Autism Wessex,Residential Placements,Long Term Team - LD,"1,905.71",0,"1,905.71",24/02/2016
Autism Wessex,Adults & Social - Client Charges,Long Term Team - LD,-356.28,0,-356.28,24/03/2016
Autism Wessex,Residential Placements,Long Term Team - LD,"4,242.80",0,"4,242.80",24/03/2016
Autism Wessex,Residential Placements,Long Term Team - LD,"2,037.15",0,"2,037.15",24/03/2016
Auto Items Ltd,Fire Extinguishers,TFL funded revenue schemes,"2,441.00",488.2,"2,929.20",18/02/2016
Avanti House School,Grants and Subscriptions,TU In/Out Boro Accadem. Prov.,"8,308.47",0,"8,308.47",02/02/2016
AVCO Systems Ltd,"Computer Software, Purchase and Maintenance",Other Strategic School Support,"1,220.00",244,"1,464.00",10/02/2016
Avery Healthcare,Adults & Social - Client Charges,Long Term Team - OP,-336.89,0,-336.89,29/01/2016
Avery Healthcare,Residential Placements,Long Term Team - OP,"1,002.86",0,"1,002.86",29/01/2016
Avery Healthcare,Adults & Social - Client Charges,Long Term Team - OP,-559.33,0,-559.33,29/01/2016
Avery Healthcare,Nursing Care,Long Term Team - OP,"1,390.79",0,"1,390.79",29/01/2016
Avery Healthcare,Recovery of Costs (External - Non Vatable),Long Term Team - OP,-192,0,-192,29/01/2016
Avery Healthcare,Nursing Care,Long Term Team - OP,"1,102.47",0,"1,102.47",29/01/2016
Avery Healthcare,Nursing Care,Long Term Team - OP,951.3,0,951.3,29/01/2016
Avery Healthcare,Nursing Care,Long Term Team - OP,"1,660.71",0,"1,660.71",29/01/2016
Avery Healthcare,Adults & Social - Client Charges,Long Term Team - OP,-559.33,0,-559.33,29/01/2016
Avery Healthcare,Recovery of Costs (External - Non Vatable),Long Term Team - OP,-496,0,-496,29/01/2016
Avery Healthcare,Adults & Social - Client Charges,Long Term Team - OP,"-1,120.16",0,"-1,120.16",29/01/2016
Avery Healthcare,Nursing Care,Long Term Team - OP,"2,737.79",0,"2,737.79",29/01/2016
Avery Healthcare,Nursing Care,Long Term Team - OP,"2,737.79",0,"2,737.79",29/01/2016
Avery Healthcare,Nursing Care,Long Term Team - OP,115.14,0,115.14,29/01/2016
Avery Healthcare,Recovery of Costs (External - Non Vatable),Long Term Team - OP,-496,0,-496,29/01/2016
Avery Healthcare,Adults & Social - Client Charges,Long Term Team - OP,"-1,027.83",0,"-1,027.83",29/01/2016
Avery Healthcare,Residential Placements,Long Term Team - OP,"2,170.00",0,"2,170.00",29/01/2016
Avery Healthcare,Adults & Social - Client Charges,Long Term Team - OP,-826.68,0,-826.68,29/01/2016
Avery Healthcare,Nursing Care,Long Term Team - OP,"1,364.00",0,"1,364.00",29/01/2016
Avery Healthcare,Nursing Care,Long Term Team - OP,"2,737.79",0,"2,737.79",29/01/2016
Avery Healthcare,Recovery of Costs (External - Non Vatable),Long Term Team - OP,-496,0,-496,29/01/2016
Avery Healthcare,Adults & Social - Client Charges,Long Term Team - OP,-877.08,0,-877.08,29/01/2016
Avery Healthcare,Adults & Social - Client Charges,Long Term Team - OP,-559.33,0,-559.33,29/01/2016
Avery Healthcare,Residential Placements,Long Term Team - OP,"1,996.40",0,"1,996.40",29/01/2016
Avery Healthcare,Residential Placements,Long Term Team - OP,"2,037.14",0,"2,037.14",29/01/2016
Avery Healthcare,Adults & Social - Client Charges,Long Term Team - OP,-559.33,0,-559.33,29/01/2016
Avery Healthcare,Residential Placements,Long Term Team - OP,"2,063.71",0,"2,063.71",29/01/2016
Avery Healthcare,Adults & Social - Client Charges,Long Term Team - OP,-559.33,0,-559.33,29/01/2016
Avery Healthcare,Adults & Social - Client Charges,Long Term Team - OP,-559.33,0,-559.33,29/01/2016
Avery Healthcare,Residential Placements,Long Term Team - OP,"2,063.71",0,"2,063.71",29/01/2016
Avery Healthcare,Adults & Social - Client Charges,Long Term Team - OP,-833.15,0,-833.15,29/01/2016
Avery Healthcare,Nursing Care,Long Term Team - OP,"2,848.06",0,"2,848.06",29/01/2016
Avery Healthcare,Recovery of Costs (External - Non Vatable),Long Term Team - OP,-496,0,-496,29/01/2016
Avery Healthcare,Adults & Social - Client Charges,Long Term Team - OP,-711.85,0,-711.85,29/01/2016
Avery Healthcare,Recovery of Costs (External - Non Vatable),Long Term Team - OP,-496,0,-496,29/01/2016
Avery Healthcare,Nursing Care,Long Term Team - OP,"2,737.79",0,"2,737.79",29/01/2016
Avery Healthcare,Adults & Social - Client Charges,Long Term Team - OP,-684.08,0,-684.08,29/01/2016
Avery Healthcare,Recovery of Costs (External - Non Vatable),Long Term Team - OP,-496,0,-496,29/01/2016
Avery Healthcare,Nursing Care,Long Term Team - OP,"2,711.22",0,"2,711.22",29/01/2016
Avery Healthcare,Residential Placements,Long Term Team - OP,"2,170.00",0,"2,170.00",29/01/2016
Avery Healthcare,Adults & Social - Client Charges,Long Term Team - OP,-636.52,0,-636.52,29/01/2016
Avery Healthcare,Adults & Social - Client Charges,Long Term Team - OP,-743.6,0,-743.6,29/01/2016
Avery Healthcare,Recovery of Costs (External - Non Vatable),Long Term Team - OP,-496,0,-496,29/01/2016
Avery Healthcare,Nursing Care,Long Term Team - OP,"2,786.50",0,"2,786.50",29/01/2016
Avery Healthcare,Nursing Care,Long Term Team - OP,"2,743.99",0,"2,743.99",29/01/2016
Avery Healthcare,Recovery of Costs (External - Non Vatable),Long Term Team - OP,-496,0,-496,29/01/2016
Avery Healthcare,Adults & Social - Client Charges,Long Term Team - OP,-682.66,0,-682.66,29/01/2016
Avery Healthcare,Recovery of Costs (External - Non Vatable),Long Term Team - OP,-496,0,-496,29/01/2016
Avery Healthcare,Adults & Social - Client Charges,Long Term Team - OP,-727.48,0,-727.48,29/01/2016
Avery Healthcare,Nursing Care,Long Term Team - OP,"2,794.92",0,"2,794.92",29/01/2016
Avery Healthcare,Nursing Care,Long Term Team - OP,"2,737.79",0,"2,737.79",29/01/2016
Avery Healthcare,Recovery of Costs (External - Non Vatable),Long Term Team - OP,-496,0,-496,29/01/2016
Avery Healthcare,Adults & Social - Client Charges,Long Term Team - OP,-663.98,0,-663.98,29/01/2016
Avery Healthcare,Residential Placements,Long Term Team - PD,"1,660.71",0,"1,660.71",29/01/2016
Avery Healthcare,Adults & Social - Client Charges,Long Term Team - OP,-559.33,0,-559.33,29/01/2016
Avery Healthcare,Nursing Care,Long Term Team - OP,"3,100.00",0,"3,100.00",29/01/2016
Avery Healthcare,Recovery of Costs (External - Non Vatable),Long Term Team - OP,-496,0,-496,29/01/2016
Avery Healthcare,Nursing Care,Long Term Team - OP,-367.13,0,-367.13,29/01/2016
Avery Healthcare,Adults & Social - Client Charges,Long Term Team - OP,-559.33,0,-559.33,29/01/2016
Avery Healthcare,Recovery of Costs (External - Non Vatable),Long Term Team - OP,-496,0,-496,29/01/2016
Avery Healthcare,Nursing Care,Long Term Team - OP,"2,737.79",0,"2,737.79",29/01/2016
Avery Healthcare,Recovery of Costs (External - Non Vatable),Long Term Team - OP,-496,0,-496,29/01/2016
Avery Healthcare,Nursing Care,Long Term Team - OP,"2,737.79",0,"2,737.79",29/01/2016
Avery Healthcare,Adults & Social - Client Charges,Long Term Team - OP,-559.33,0,-559.33,29/01/2016
Avery Healthcare,Recovery of Costs (External - Non Vatable),Long Term Team - OP,-496,0,-496,29/01/2016
Avery Healthcare,Nursing Care,Long Term Team - OP,"2,737.79",0,"2,737.79",29/01/2016
Avery Healthcare,Adults & Social - Client Charges,Long Term Team - OP,-559.33,0,-559.33,29/01/2016
Avery Healthcare,Adults & Social - Client Charges,Long Term Team - OP,-559.33,0,-559.33,29/01/2016
Avery Healthcare,Recovery of Costs (External - Non Vatable),Long Term Team - OP,-496,0,-496,29/01/2016
Avery Healthcare,Nursing Care,Long Term Team - OP,"2,737.79",0,"2,737.79",29/01/2016
Avery Healthcare,Nursing Care,Long Term Team - OP,"2,737.79",0,"2,737.79",29/01/2016
Avery Healthcare,Recovery of Costs (External - Non Vatable),Long Term Team - OP,-496,0,-496,29/01/2016
Avery Healthcare,Adults & Social - Client Charges,Long Term Team - OP,-559.33,0,-559.33,29/01/2016
Avery Healthcare,Recovery of Costs (External - Non Vatable),Long Term Team - OP,-496,0,-496,29/01/2016
Avery Healthcare,Nursing Care,Long Term Team - OP,"2,737.79",0,"2,737.79",29/01/2016
Avery Healthcare,Adults & Social - Client Charges,Long Term Team - OP,-559.33,0,-559.33,29/01/2016
Avery Healthcare,Nursing Care,Long Term Team - OP,"2,737.79",0,"2,737.79",29/01/2016
Avery Healthcare,Recovery of Costs (External - Non Vatable),Long Term Team - OP,-496,0,-496,29/01/2016
Avery Healthcare,Adults & Social - Client Charges,Long Term Team - OP,-548.92,0,-548.92,29/01/2016
Avery Healthcare,Nursing Care,Long Term Team - OP,"2,826.36",0,"2,826.36",29/01/2016
Avery Healthcare,Adults & Social - Client Charges,Long Term Team - OP,-608.75,0,-608.75,29/01/2016
Avery Healthcare,Recovery of Costs (External - Non Vatable),Long Term Team - OP,-496,0,-496,29/01/2016
Avery Healthcare,Recovery of Costs (External - Non Vatable),Long Term Team - OP,-496,0,-496,29/01/2016
Avery Healthcare,Nursing Care,Long Term Team - OP,"2,786.50",0,"2,786.50",29/01/2016
Avery Healthcare,Adults & Social - Client Charges,Long Term Team - OP,-559.33,0,-559.33,29/01/2016
Avery Healthcare,Recovery of Costs (External - Non Vatable),Long Term Team - OP,-496,0,-496,29/01/2016
Avery Healthcare,Adults & Social - Client Charges,Long Term Team - OP,-543.96,0,-543.96,29/01/2016
Avery Healthcare,Nursing Care,Long Term Team - OP,"2,878.57",0,"2,878.57",29/01/2016
Avery Healthcare,Adults & Social - Client Charges,Long Term Team - OP,-527.9,0,-527.9,29/01/2016
Avery Healthcare,Residential Placements,Long Term Team - OP,"2,391.43",0,"2,391.43",29/01/2016
Avery Healthcare,Residential Placements,Long Term Team - OP,"2,435.71",0,"2,435.71",29/01/2016
Avery Healthcare,Adults & Social - Client Charges,Long Term Team - OP,-559.33,0,-559.33,29/01/2016
Avery Healthcare,Adults & Social - Client Charges,Long Term Team - OP,-501.09,0,-501.09,29/01/2016
Avery Healthcare,Respite Costs,Long Term Team - OP,"2,391.43",0,"2,391.43",29/01/2016
Avery Healthcare,Nursing Care,Long Term Team - OP,"2,737.79",0,"2,737.79",29/01/2016
Avery Healthcare,Recovery of Costs (External - Non Vatable),Long Term Team - OP,-496,0,-496,29/01/2016
Avery Healthcare,Recovery of Costs (External - Non Vatable),Long Term Team - OP,-496,0,-496,29/01/2016
Avery Healthcare,Nursing Care,Long Term Team - OP,"2,737.79",0,"2,737.79",29/01/2016
Avery Healthcare,Nursing Care,Long Term Team - PD,"2,737.79",0,"2,737.79",29/01/2016
Avery Healthcare,Recovery of Costs (External - Non Vatable),Long Term Team - PD,-496,0,-496,29/01/2016
Avery Healthcare,Recovery of Costs (External - Non Vatable),Long Term Team - OP,-496,0,-496,29/01/2016
Avery Healthcare,Nursing Care,Long Term Team - OP,"2,786.50",0,"2,786.50",29/01/2016
Avery Healthcare,Recovery of Costs (External - Non Vatable),Long Term Team - OP,-496,0,-496,29/01/2016
Avery Healthcare,Nursing Care,Long Term Team - OP,"2,799.79",0,"2,799.79",29/01/2016
Avery Healthcare,Recovery of Costs (External - Non Vatable),Long Term Team - OP,-496,0,-496,29/01/2016
Avery Healthcare,Nursing Care,Long Term Team - OP,"3,100.00",0,"3,100.00",29/01/2016
Avery Healthcare,Recovery of Costs (External - Non Vatable),Long Term Team - OP,-496,0,-496,29/01/2016
Avery Healthcare,Nursing Care,Long Term Team - OP,"3,786.43",0,"3,786.43",29/01/2016
Avery Healthcare,Adults & Social - Client Charges,Long Term Team - OP,-518.32,0,-518.32,29/01/2016
Avery Healthcare,Respite Costs,Long Term Team - OP,"2,785.72",0,"2,785.72",29/01/2016
Avery Healthcare,Residential Placements,Long Term Team - OP,"4,088.57",0,"4,088.57",29/01/2016
Avery Healthcare,Adults & Social - Client Charges,Long Term Team - OP,-956.27,0,-956.27,29/01/2016
Avery Healthcare,Nursing Care,Long Term Team - OP,"3,600.00",0,"3,600.00",29/01/2016
Avery Healthcare,Recovery of Costs (External - Non Vatable),Long Term Team - OP,-448,0,-448,29/01/2016
Avery Healthcare,Adults & Social - Client Charges,Long Term Team - OP,"2,730.17",0,"2,730.17",29/01/2016
Avery Healthcare,Nursing Care,Long Term Team - OP,"1,635.72",0,"1,635.72",29/01/2016
Avery Healthcare,Recovery of Costs (External - Non Vatable),Long Term Team - OP,-496,0,-496,29/01/2016
Avery Healthcare,Nursing Care,Long Term Team - OP,"5,950.00",0,"5,950.00",29/01/2016
Avery Healthcare,Nursing Care,Long Term Team - OP,61.99,0,61.99,29/01/2016
Avery Healthcare,Nursing Care,Long Term Team - OP,"13,717.50",0,"13,717.50",29/01/2016
Avery Healthcare,Recovery of Costs (External - Non Vatable),Long Term Team - OP,"1,760.00",0,"1,760.00",26/02/2016
Avery Healthcare,Adults & Social - Client Charges,Long Term Team - OP,"1,984.71",0,"1,984.71",26/02/2016
Avery Healthcare,Nursing Care,Long Term Team - OP,"-9,714.73",0,"-9,714.73",26/02/2016
Avery Healthcare,Adults & Social - Client Charges,Long Term Team - OP,-523.24,0,-523.24,26/02/2016
Avery Healthcare,Nursing Care,Long Term Team - OP,"1,301.06",0,"1,301.06",26/02/2016
Avery Healthcare,Adults & Social - Client Charges,Long Term Team - OP,-523.24,0,-523.24,26/02/2016
Avery Healthcare,Nursing Care,Long Term Team - OP,"1,553.57",0,"1,553.57",26/02/2016
Avery Healthcare,Nursing Care,Long Term Team - OP,"2,561.16",0,"2,561.16",26/02/2016
Avery Healthcare,Recovery of Costs (External - Non Vatable),Long Term Team - OP,-464,0,-464,26/02/2016
Avery Healthcare,Adults & Social - Client Charges,Long Term Team - OP,"-1,047.89",0,"-1,047.89",26/02/2016
Avery Healthcare,Adults & Social - Client Charges,Long Term Team - OP,-961.52,0,-961.52,26/02/2016
Avery Healthcare,Recovery of Costs (External - Non Vatable),Long Term Team - OP,-464,0,-464,26/02/2016
Avery Healthcare,Nursing Care,Long Term Team - OP,107.71,0,107.71,26/02/2016
Avery Healthcare,Nursing Care,Long Term Team - OP,"2,561.16",0,"2,561.16",26/02/2016
Avery Healthcare,Adults & Social - Client Charges,Long Term Team - OP,-773.35,0,-773.35,26/02/2016
Avery Healthcare,Residential Placements,Long Term Team - OP,"2,030.00",0,"2,030.00",26/02/2016
Avery Healthcare,Nursing Care,Long Term Team - OP,"1,276.00",0,"1,276.00",26/02/2016
Avery Healthcare,Nursing Care,Long Term Team - OP,"2,561.16",0,"2,561.16",26/02/2016
Avery Healthcare,Recovery of Costs (External - Non Vatable),Long Term Team - OP,-464,0,-464,26/02/2016
Avery Healthcare,Adults & Social - Client Charges,Long Term Team - OP,-820.49,0,-820.49,26/02/2016
Avery Healthcare,Residential Placements,Long Term Team - OP,"1,867.60",0,"1,867.60",26/02/2016
Avery Healthcare,Adults & Social - Client Charges,Long Term Team - OP,-523.24,0,-523.24,26/02/2016
Avery Healthcare,Adults & Social - Client Charges,Long Term Team - OP,-523.24,0,-523.24,26/02/2016
Avery Healthcare,Residential Placements,Long Term Team - OP,"1,905.71",0,"1,905.71",26/02/2016
Avery Healthcare,Respite Costs,Long Term Team - OP,"1,930.56",0,"1,930.56",26/02/2016
Avery Healthcare,Adults & Social - Client Charges,Long Term Team - OP,-523.25,0,-523.25,26/02/2016
Avery Healthcare,Adults & Social - Client Charges,Long Term Team - OP,-523.24,0,-523.24,26/02/2016
Avery Healthcare,Residential Placements,Long Term Team - OP,"1,930.57",0,"1,930.57",26/02/2016
Avery Healthcare,Adults & Social - Client Charges,Long Term Team - OP,-523.24,0,-523.24,26/02/2016
Avery Healthcare,Residential Placements,Long Term Team - OP,"1,930.57",0,"1,930.57",26/02/2016
Avery Healthcare,Recovery of Costs (External - Non Vatable),Long Term Team - OP,-464,0,-464,26/02/2016
Avery Healthcare,Adults & Social - Client Charges,Long Term Team - OP,-779.4,0,-779.4,26/02/2016
Avery Healthcare,Nursing Care,Long Term Team - OP,"2,664.31",0,"2,664.31",26/02/2016
Avery Healthcare,Nursing Care,Long Term Team - OP,"2,561.16",0,"2,561.16",26/02/2016
Avery Healthcare,Recovery of Costs (External - Non Vatable),Long Term Team - OP,-464,0,-464,26/02/2016
Avery Healthcare,Adults & Social - Client Charges,Long Term Team - OP,-665.92,0,-665.92,26/02/2016
Avery Healthcare,Nursing Care,Long Term Team - OP,"2,536.30",0,"2,536.30",26/02/2016
Avery Healthcare,Adults & Social - Client Charges,Long Term Team - OP,-639.95,0,-639.95,26/02/2016
Avery Healthcare,Recovery of Costs (External - Non Vatable),Long Term Team - OP,-464,0,-464,26/02/2016
Avery Healthcare,Residential Placements,Long Term Team - OP,"2,030.00",0,"2,030.00",26/02/2016
Avery Healthcare,Adults & Social - Client Charges,Long Term Team - OP,-595.45,0,-595.45,26/02/2016
Avery Healthcare,Nursing Care,Long Term Team - OP,"2,606.73",0,"2,606.73",26/02/2016
Avery Healthcare,Recovery of Costs (External - Non Vatable),Long Term Team - OP,-464,0,-464,26/02/2016
Avery Healthcare,Adults & Social - Client Charges,Long Term Team - OP,-695.63,0,-695.63,26/02/2016
Avery Healthcare,Adults & Social - Client Charges,Long Term Team - OP,-638.62,0,-638.62,26/02/2016
Avery Healthcare,Recovery of Costs (External - Non Vatable),Long Term Team - OP,-464,0,-464,26/02/2016
Avery Healthcare,Nursing Care,Long Term Team - OP,"2,566.96",0,"2,566.96",26/02/2016
Avery Healthcare,Nursing Care,Long Term Team - OP,"2,614.60",0,"2,614.60",26/02/2016
Avery Healthcare,Recovery of Costs (External - Non Vatable),Long Term Team - OP,-464,0,-464,26/02/2016
Avery Healthcare,Adults & Social - Client Charges,Long Term Team - OP,-680.55,0,-680.55,26/02/2016
Avery Healthcare,Adults & Social - Client Charges,Long Term Team - OP,-621.14,0,-621.14,26/02/2016
Avery Healthcare,Recovery of Costs (External - Non Vatable),Long Term Team - OP,-464,0,-464,26/02/2016
Avery Healthcare,Nursing Care,Long Term Team - OP,"2,561.16",0,"2,561.16",26/02/2016
Avery Healthcare,Respite Costs,Long Term Team - OP,"1,500.00",0,"1,500.00",26/02/2016
Avery Healthcare,Adults & Social - Client Charges,Long Term Team - OP,"-1,643.16",0,"-1,643.16",26/02/2016
Avery Healthcare,Adults & Social - Client Charges,Long Term Team - OP,956.27,0,956.27,26/02/2016
Avery Healthcare,Residential Placements,Long Term Team - OP,"2,237.14",0,"2,237.14",26/02/2016
Avery Healthcare,Residential Placements,Long Term Team - PD,"1,553.57",0,"1,553.57",26/02/2016
Avery Healthcare,Nursing Care,Long Term Team - OP,-343.44,0,-343.44,26/02/2016
Avery Healthcare,Recovery of Costs (External - Non Vatable),Long Term Team - OP,-464,0,-464,26/02/2016
Avery Healthcare,Adults & Social - Client Charges,Long Term Team - OP,-523.24,0,-523.24,26/02/2016
Avery Healthcare,Nursing Care,Long Term Team - OP,"2,900.00",0,"2,900.00",26/02/2016
Avery Healthcare,Nursing Care,Long Term Team - OP,"2,561.16",0,"2,561.16",26/02/2016
Avery Healthcare,Recovery of Costs (External - Non Vatable),Long Term Team - OP,-464,0,-464,26/02/2016
Avery Healthcare,Adults & Social - Client Charges,Long Term Team - OP,-523.24,0,-523.24,26/02/2016
Avery Healthcare,Adults & Social - Client Charges,Long Term Team - OP,-523.24,0,-523.24,26/02/2016
Avery Healthcare,Recovery of Costs (External - Non Vatable),Long Term Team - OP,-464,0,-464,26/02/2016
Avery Healthcare,Nursing Care,Long Term Team - OP,"2,561.16",0,"2,561.16",26/02/2016
Avery Healthcare,Adults & Social - Client Charges,Long Term Team - OP,-523.24,0,-523.24,26/02/2016
Avery Healthcare,Nursing Care,Long Term Team - OP,"2,561.16",0,"2,561.16",26/02/2016
Avery Healthcare,Recovery of Costs (External - Non Vatable),Long Term Team - OP,-464,0,-464,26/02/2016
Avery Healthcare,Adults & Social - Client Charges,Long Term Team - OP,-523.24,0,-523.24,26/02/2016
Avery Healthcare,Recovery of Costs (External - Non Vatable),Long Term Team - OP,-464,0,-464,26/02/2016
Avery Healthcare,Nursing Care,Long Term Team - OP,"2,561.16",0,"2,561.16",26/02/2016
Avery Healthcare,Nursing Care,Long Term Team - OP,"2,561.16",0,"2,561.16",26/02/2016
Avery Healthcare,Recovery of Costs (External - Non Vatable),Long Term Team - OP,-464,0,-464,26/02/2016
Avery Healthcare,Adults & Social - Client Charges,Long Term Team - OP,-523.24,0,-523.24,26/02/2016
Avery Healthcare,Adults & Social - Client Charges,Long Term Team - OP,-513.51,0,-513.51,26/02/2016
Avery Healthcare,Recovery of Costs (External - Non Vatable),Long Term Team - OP,-464,0,-464,26/02/2016
Avery Healthcare,Nursing Care,Long Term Team - OP,"2,561.16",0,"2,561.16",26/02/2016
Avery Healthcare,Residential Placements,Long Term Team - OP,"2,237.14",0,"2,237.14",26/02/2016
Avery Healthcare,Adults & Social - Client Charges,Long Term Team - OP,-641.31,0,-641.31,26/02/2016
Avery Healthcare,Adults & Social - Client Charges,Long Term Team - OP,-569.48,0,-569.48,26/02/2016
Avery Healthcare,Recovery of Costs (External - Non Vatable),Long Term Team - OP,-464,0,-464,26/02/2016
Avery Healthcare,Nursing Care,Long Term Team - OP,"2,644.01",0,"2,644.01",26/02/2016
Avery Healthcare,Adults & Social - Client Charges,Long Term Team - OP,-523.24,0,-523.24,26/02/2016
Avery Healthcare,Recovery of Costs (External - Non Vatable),Long Term Team - OP,-464,0,-464,26/02/2016
Avery Healthcare,Nursing Care,Long Term Team - OP,"2,606.73",0,"2,606.73",26/02/2016
Avery Healthcare,Adults & Social - Client Charges,Long Term Team - OP,-508.87,0,-508.87,26/02/2016
Avery Healthcare,Nursing Care,Long Term Team - OP,"2,692.86",0,"2,692.86",26/02/2016
Avery Healthcare,Recovery of Costs (External - Non Vatable),Long Term Team - OP,-464,0,-464,26/02/2016
Avery Healthcare,Adults & Social - Client Charges,Long Term Team - OP,-514.96,0,-514.96,26/02/2016
Avery Healthcare,Residential Placements,Long Term Team - OP,"2,237.14",0,"2,237.14",26/02/2016
Avery Healthcare,Adults & Social - Client Charges,Long Term Team - OP,-523.24,0,-523.24,26/02/2016
Avery Healthcare,Residential Placements,Long Term Team - OP,"2,278.57",0,"2,278.57",26/02/2016
Avery Healthcare,Adults & Social - Client Charges,Long Term Team - OP,-468.76,0,-468.76,26/02/2016
Avery Healthcare,Respite Costs,Long Term Team - OP,"2,237.14",0,"2,237.14",26/02/2016
Avery Healthcare,Adults & Social - Client Charges,Long Term Team - OP,-523.24,0,-523.24,26/02/2016
Avery Healthcare,Nursing Care,Long Term Team - OP,"2,900.00",0,"2,900.00",26/02/2016
Avery Healthcare,Recovery of Costs (External - Non Vatable),Long Term Team - OP,-464,0,-464,26/02/2016
Avery Healthcare,Nursing Care,Long Term Team - OP,"2,561.16",0,"2,561.16",26/02/2016
Avery Healthcare,Recovery of Costs (External - Non Vatable),Long Term Team - OP,-464,0,-464,26/02/2016
Avery Healthcare,Nursing Care,Long Term Team - OP,"2,561.16",0,"2,561.16",26/02/2016
Avery Healthcare,Recovery of Costs (External - Non Vatable),Long Term Team - OP,-464,0,-464,26/02/2016
Avery Healthcare,Nursing Care,Long Term Team - PD,"2,561.16",0,"2,561.16",26/02/2016
Avery Healthcare,Recovery of Costs (External - Non Vatable),Long Term Team - PD,-464,0,-464,26/02/2016
Avery Healthcare,Recovery of Costs (External - Non Vatable),Long Term Team - OP,-464,0,-464,26/02/2016
Avery Healthcare,Nursing Care,Long Term Team - OP,"2,606.73",0,"2,606.73",26/02/2016
Avery Healthcare,Nursing Care,Long Term Team - OP,"2,619.16",0,"2,619.16",26/02/2016
Avery Healthcare,Recovery of Costs (External - Non Vatable),Long Term Team - OP,-464,0,-464,26/02/2016
Avery Healthcare,Nursing Care,Long Term Team - OP,"2,664.31",0,"2,664.31",26/02/2016
Avery Healthcare,Recovery of Costs (External - Non Vatable),Long Term Team - OP,-464,0,-464,26/02/2016
Avery Healthcare,Recovery of Costs (External - Non Vatable),Long Term Team - OP,-864,0,-864,26/02/2016
Avery Healthcare,Nursing Care,Long Term Team - OP,"4,760.56",0,"4,760.56",26/02/2016
Avery Healthcare,Adults & Social - Client Charges,Long Term Team - OP,"-1,571.50",0,"-1,571.50",26/02/2016
Avery Healthcare,Recovery of Costs (External - Non Vatable),Long Term Team - OP,-464,0,-464,26/02/2016
Avery Healthcare,Nursing Care,Long Term Team - OP,"2,900.00",0,"2,900.00",26/02/2016
Avery Healthcare,Nursing Care,Long Term Team - OP,"3,542.14",0,"3,542.14",26/02/2016
Avery Healthcare,Recovery of Costs (External - Non Vatable),Long Term Team - OP,-464,0,-464,26/02/2016
Avery Healthcare,Adults & Social - Client Charges,Long Term Team - OP,-484.88,0,-484.88,26/02/2016
Avery Healthcare,Residential Placements,Long Term Team - OP,"6,557.14",0,"6,557.14",26/02/2016
Avery Healthcare,Adults & Social - Client Charges,Long Term Team - OP,"-1,533.64",0,"-1,533.64",26/02/2016
Avery Healthcare,Nursing Care,Long Term Team - OP,"12,832.50",0,"12,832.50",26/02/2016
Avery Healthcare,Adults & Social - Client Charges,Long Term Team - OP,-559.33,0,-559.33,29/03/2016
Avery Healthcare,Nursing Care,Long Term Team - OP,"1,390.80",0,"1,390.80",29/03/2016
Avery Healthcare,Nursing Care,Long Term Team - OP,"1,660.72",0,"1,660.72",29/03/2016
Avery Healthcare,Adults & Social - Client Charges,Long Term Team - OP,-559.33,0,-559.33,29/03/2016
Avery Healthcare,Nursing Care,Long Term Team - OP,"2,737.78",0,"2,737.78",29/03/2016
Avery Healthcare,Recovery of Costs (External - Non Vatable),Long Term Team - OP,-496,0,-496,29/03/2016
Avery Healthcare,Adults & Social - Client Charges,Long Term Team - OP,"-1,120.17",0,"-1,120.17",29/03/2016
Avery Healthcare,Recovery of Costs (External - Non Vatable),Long Term Team - OP,-496,0,-496,29/03/2016
Avery Healthcare,Adults & Social - Client Charges,Long Term Team - OP,"-1,027.82",0,"-1,027.82",29/03/2016
Avery Healthcare,Nursing Care,Long Term Team - OP,"2,737.78",0,"2,737.78",29/03/2016
Avery Healthcare,Nursing Care,Long Term Team - OP,115.15,0,115.15,29/03/2016
Avery Healthcare,Adults & Social - Client Charges,Long Term Team - OP,-826.68,0,-826.68,29/03/2016
Avery Healthcare,Residential Placements,Long Term Team - OP,"2,170.00",0,"2,170.00",29/03/2016
Avery Healthcare,Adults & Social - Client Charges,Long Term Team - OP,-505.2,0,-505.2,29/03/2016
Avery Healthcare,Residential Placements,Long Term Team - OP,"1,864.00",0,"1,864.00",29/03/2016
Avery Healthcare,Nursing Care,Long Term Team - OP,"1,364.00",0,"1,364.00",29/03/2016
Avery Healthcare,Nursing Care,Long Term Team - OP,"2,737.78",0,"2,737.78",29/03/2016
Avery Healthcare,Recovery of Costs (External - Non Vatable),Long Term Team - OP,-496,0,-496,29/03/2016
Avery Healthcare,Adults & Social - Client Charges,Long Term Team - OP,-877.08,0,-877.08,29/03/2016
Avery Healthcare,Adults & Social - Client Charges,Long Term Team - OP,-559.33,0,-559.33,29/03/2016
Avery Healthcare,Residential Placements,Long Term Team - OP,"1,996.40",0,"1,996.40",29/03/2016
Avery Healthcare,Adults & Social - Client Charges,Long Term Team - OP,-559.33,0,-559.33,29/03/2016
Avery Healthcare,Residential Placements,Long Term Team - OP,"2,037.15",0,"2,037.15",29/03/2016
Avery Healthcare,Adults & Social - Client Charges,Long Term Team - OP,-559.33,0,-559.33,29/03/2016
Avery Healthcare,Residential Placements,Long Term Team - OP,"2,063.72",0,"2,063.72",29/03/2016
Avery Healthcare,Residential Placements,Long Term Team - OP,"2,063.72",0,"2,063.72",29/03/2016
Avery Healthcare,Adults & Social - Client Charges,Long Term Team - OP,-559.33,0,-559.33,29/03/2016
Avery Healthcare,Adults & Social - Client Charges,Long Term Team - OP,-833.14,0,-833.14,29/03/2016
Avery Healthcare,Nursing Care,Long Term Team - OP,"2,848.06",0,"2,848.06",29/03/2016
Avery Healthcare,Recovery of Costs (External - Non Vatable),Long Term Team - OP,-496,0,-496,29/03/2016
Avery Healthcare,Nursing Care,Long Term Team - OP,"2,737.78",0,"2,737.78",29/03/2016
Avery Healthcare,Recovery of Costs (External - Non Vatable),Long Term Team - OP,-496,0,-496,29/03/2016
Avery Healthcare,Adults & Social - Client Charges,Long Term Team - OP,-711.85,0,-711.85,29/03/2016
Avery Healthcare,Nursing Care,Long Term Team - OP,"2,711.21",0,"2,711.21",29/03/2016
Avery Healthcare,Recovery of Costs (External - Non Vatable),Long Term Team - OP,-496,0,-496,29/03/2016
Avery Healthcare,Adults & Social - Client Charges,Long Term Team - OP,-684.08,0,-684.08,29/03/2016
Avery Healthcare,Adults & Social - Client Charges,Long Term Team - OP,-636.52,0,-636.52,29/03/2016
Avery Healthcare,Residential Placements,Long Term Team - OP,"2,170.00",0,"2,170.00",29/03/2016
Avery Healthcare,Nursing Care,Long Term Team - OP,"2,786.50",0,"2,786.50",29/03/2016
Avery Healthcare,Recovery of Costs (External - Non Vatable),Long Term Team - OP,-496,0,-496,29/03/2016
Avery Healthcare,Adults & Social - Client Charges,Long Term Team - OP,-743.6,0,-743.6,29/03/2016
Avery Healthcare,Nursing Care,Long Term Team - OP,"2,743.98",0,"2,743.98",29/03/2016
Avery Healthcare,Adults & Social - Client Charges,Long Term Team - OP,-682.67,0,-682.67,29/03/2016
Avery Healthcare,Recovery of Costs (External - Non Vatable),Long Term Team - OP,-496,0,-496,29/03/2016
Avery Healthcare,Adults & Social - Client Charges,Long Term Team - OP,-727.48,0,-727.48,29/03/2016
Avery Healthcare,Recovery of Costs (External - Non Vatable),Long Term Team - OP,-496,0,-496,29/03/2016
Avery Healthcare,Nursing Care,Long Term Team - OP,"2,794.91",0,"2,794.91",29/03/2016
Avery Healthcare,Adults & Social - Client Charges,Long Term Team - OP,-663.97,0,-663.97,29/03/2016
Avery Healthcare,Recovery of Costs (External - Non Vatable),Long Term Team - OP,-496,0,-496,29/03/2016
Avery Healthcare,Nursing Care,Long Term Team - OP,"2,737.78",0,"2,737.78",29/03/2016
Avery Healthcare,Residential Placements,Long Term Team - PD,"1,660.72",0,"1,660.72",29/03/2016
Avery Healthcare,Adults & Social - Client Charges,Long Term Team - OP,-559.33,0,-559.33,29/03/2016
Avery Healthcare,Nursing Care,Long Term Team - OP,"3,100.00",0,"3,100.00",29/03/2016
Avery Healthcare,Recovery of Costs (External - Non Vatable),Long Term Team - OP,-496,0,-496,29/03/2016
Avery Healthcare,Nursing Care,Long Term Team - OP,-367.13,0,-367.13,29/03/2016
Avery Healthcare,Recovery of Costs (External - Non Vatable),Long Term Team - OP,-496,0,-496,29/03/2016
Avery Healthcare,Nursing Care,Long Term Team - OP,"2,732.91",0,"2,732.91",29/03/2016
Avery Healthcare,Adults & Social - Client Charges,Long Term Team - OP,-559.33,0,-559.33,29/03/2016
Avery Healthcare,Nursing Care,Long Term Team - OP,"2,737.78",0,"2,737.78",29/03/2016
Avery Healthcare,Recovery of Costs (External - Non Vatable),Long Term Team - OP,-496,0,-496,29/03/2016
Avery Healthcare,Adults & Social - Client Charges,Long Term Team - OP,-559.33,0,-559.33,29/03/2016
Avery Healthcare,Adults & Social - Client Charges,Long Term Team - OP,-559.33,0,-559.33,29/03/2016
Avery Healthcare,Recovery of Costs (External - Non Vatable),Long Term Team - OP,-496,0,-496,29/03/2016
Avery Healthcare,Nursing Care,Long Term Team - OP,"2,737.78",0,"2,737.78",29/03/2016
Avery Healthcare,Nursing Care,Long Term Team - OP,"2,737.78",0,"2,737.78",29/03/2016
Avery Healthcare,Recovery of Costs (External - Non Vatable),Long Term Team - OP,-496,0,-496,29/03/2016
Avery Healthcare,Adults & Social - Client Charges,Long Term Team - OP,-559.33,0,-559.33,29/03/2016
Avery Healthcare,Adults & Social - Client Charges,Long Term Team - OP,-559.33,0,-559.33,29/03/2016
Avery Healthcare,Recovery of Costs (External - Non Vatable),Long Term Team - OP,-496,0,-496,29/03/2016
Avery Healthcare,Nursing Care,Long Term Team - OP,"2,737.78",0,"2,737.78",29/03/2016
Avery Healthcare,Recovery of Costs (External - Non Vatable),Long Term Team - OP,-496,0,-496,29/03/2016
Avery Healthcare,Adults & Social - Client Charges,Long Term Team - OP,-559.33,0,-559.33,29/03/2016
Avery Healthcare,Nursing Care,Long Term Team - OP,"2,737.78",0,"2,737.78",29/03/2016
Avery Healthcare,Adults & Social - Client Charges,Long Term Team - OP,-548.92,0,-548.92,29/03/2016
Avery Healthcare,Recovery of Costs (External - Non Vatable),Long Term Team - OP,-496,0,-496,29/03/2016
Avery Healthcare,Nursing Care,Long Term Team - OP,"2,737.78",0,"2,737.78",29/03/2016
Avery Healthcare,Nursing Care,Long Term Team - OP,"2,826.36",0,"2,826.36",29/03/2016
Avery Healthcare,Recovery of Costs (External - Non Vatable),Long Term Team - OP,-496,0,-496,29/03/2016
Avery Healthcare,Adults & Social - Client Charges,Long Term Team - OP,-608.75,0,-608.75,29/03/2016
Avery Healthcare,Adults & Social - Client Charges,Long Term Team - OP,-559.33,0,-559.33,29/03/2016
Avery Healthcare,Recovery of Costs (External - Non Vatable),Long Term Team - OP,-496,0,-496,29/03/2016
Avery Healthcare,Nursing Care,Long Term Team - OP,"2,786.50",0,"2,786.50",29/03/2016
Avery Healthcare,Residential Placements,Long Term Team - OP,"2,391.43",0,"2,391.43",29/03/2016
Avery Healthcare,Adults & Social - Client Charges,Long Term Team - OP,-621.19,0,-621.19,29/03/2016
Avery Healthcare,Residential Placements,Long Term Team - OP,"2,391.43",0,"2,391.43",29/03/2016
Avery Healthcare,Adults & Social - Client Charges,Long Term Team - OP,-559.33,0,-559.33,29/03/2016
Avery Healthcare,Nursing Care,Long Term Team - OP,"2,878.57",0,"2,878.57",29/03/2016
Avery Healthcare,Adults & Social - Client Charges,Long Term Team - OP,-543.96,0,-543.96,29/03/2016
Avery Healthcare,Recovery of Costs (External - Non Vatable),Long Term Team - OP,-496,0,-496,29/03/2016
Avery Healthcare,Residential Placements,Long Term Team - OP,"2,391.43",0,"2,391.43",29/03/2016
Avery Healthcare,Adults & Social - Client Charges,Long Term Team - OP,-550.47,0,-550.47,29/03/2016
Avery Healthcare,Adults & Social - Client Charges,Long Term Team - OP,-559.33,0,-559.33,29/03/2016
Avery Healthcare,Residential Placements,Long Term Team - OP,"2,435.72",0,"2,435.72",29/03/2016
Avery Healthcare,Respite Costs,Long Term Team - OP,"2,391.43",0,"2,391.43",29/03/2016
Avery Healthcare,Adults & Social - Client Charges,Long Term Team - OP,-501.1,0,-501.1,29/03/2016
Avery Healthcare,Adults & Social - Client Charges,Long Term Team - OP,-559.33,0,-559.33,29/03/2016
Avery Healthcare,Nursing Care,Long Term Team - OP,"3,100.00",0,"3,100.00",29/03/2016
Avery Healthcare,Recovery of Costs (External - Non Vatable),Long Term Team - OP,-496,0,-496,29/03/2016
Avery Healthcare,Nursing Care,Long Term Team - OP,"2,737.78",0,"2,737.78",29/03/2016
Avery Healthcare,Recovery of Costs (External - Non Vatable),Long Term Team - OP,-496,0,-496,29/03/2016
Avery Healthcare,Nursing Care,Long Term Team - OP,"2,737.78",0,"2,737.78",29/03/2016
Avery Healthcare,Recovery of Costs (External - Non Vatable),Long Term Team - OP,-496,0,-496,29/03/2016
Avery Healthcare,Recovery of Costs (External - Non Vatable),Long Term Team - PD,-496,0,-496,29/03/2016
Avery Healthcare,Nursing Care,Long Term Team - PD,"2,737.78",0,"2,737.78",29/03/2016
Avery Healthcare,Nursing Care,Long Term Team - OP,"2,786.50",0,"2,786.50",29/03/2016
Avery Healthcare,Recovery of Costs (External - Non Vatable),Long Term Team - OP,-496,0,-496,29/03/2016
Avery Healthcare,Nursing Care,Long Term Team - OP,"2,799.78",0,"2,799.78",29/03/2016
Avery Healthcare,Recovery of Costs (External - Non Vatable),Long Term Team - OP,-496,0,-496,29/03/2016
Avery Healthcare,Recovery of Costs (External - Non Vatable),Long Term Team - OP,-496,0,-496,29/03/2016
Avery Healthcare,Nursing Care,Long Term Team - OP,"2,848.06",0,"2,848.06",29/03/2016
Avery Healthcare,Nursing Care,Long Term Team - OP,"3,100.00",0,"3,100.00",29/03/2016
Avery Healthcare,Recovery of Costs (External - Non Vatable),Long Term Team - OP,-496,0,-496,29/03/2016
Avery Healthcare,Recovery of Costs (External - Non Vatable),Long Term Team - OP,-496,0,-496,29/03/2016
Avery Healthcare,Nursing Care,Long Term Team - OP,"3,786.43",0,"3,786.43",29/03/2016
Avery Healthcare,Adults & Social - Client Charges,Long Term Team - OP,-518.32,0,-518.32,29/03/2016
Avery Healthcare,Nursing Care,Long Term Team - OP,"13,717.50",0,"13,717.50",29/03/2016
AVI Contracts Ltd,Landlord Repairs Exit Costs,,"3,350.00",670,"4,020.00",17/02/2016
AVI Contracts Ltd,Landlord Repairs Exit Costs,,"2,775.00",555,"3,330.00",21/03/2016
AVI Contracts Ltd,Building Maintenance Exit Costs,,"15,744.84","3,148.97","18,893.81",23/03/2016
Avica UK Limited,Cleaning and Domestic Materials,Transport S S - Ops,679.76,135.95,815.71,20/01/2016
Avica UK Limited,Cleaning and Domestic Materials,Estates & Community Halls,423.44,84.69,508.13,16/02/2016
Avica UK Limited,Cleaning and Domestic Materials,Estates & Community Halls,720.35,144.07,864.42,16/02/2016
Avica UK Limited,Cleaning and Domestic Materials,Estates & Community Halls,916.8,183.36,"1,100.16",29/02/2016
Avica UK Limited,Cleaning and Domestic Materials,Cedars Childrens Centre,434.08,86.82,520.9,01/02/2016
Avica UK Limited,Cleaning and Domestic Materials,Vaughan NRC,2.52,0.5,3.02,01/02/2016
Avica UK Limited,Cleaning and Domestic Materials,Vaughan NRC,3.23,0.65,3.88,01/02/2016
Avica UK Limited,Cleaning and Domestic Materials,Vaughan NRC,5.94,1.19,7.13,01/02/2016
Avica UK Limited,Cleaning and Domestic Materials,Vaughan NRC,12.91,2.58,15.49,01/02/2016
Avica UK Limited,Cleaning and Domestic Materials,Vaughan NRC,27.1,5.42,32.52,01/02/2016
Avica UK Limited,Cleaning and Domestic Materials,Vaughan NRC,47.3,9.46,56.76,01/02/2016
Avica UK Limited,Cleaning and Domestic Materials,Vaughan NRC,47.5,9.5,57,01/02/2016
Avica UK Limited,Cleaning and Domestic Materials,Vaughan NRC,61.05,12.21,73.26,01/02/2016
Avica UK Limited,Cleaning and Domestic Materials,Vaughan NRC,70.1,14.02,84.12,01/02/2016
Avica UK Limited,Cleaning and Domestic Materials,Vaughan NRC,91.7,18.34,110.04,01/02/2016
Avica UK Limited,Cleaning and Domestic Materials,Vaughan NRC,97.9,19.58,117.48,01/02/2016
Avica UK Limited,Cleaning and Domestic Materials,Vaughan NRC,193.7,38.74,232.44,01/02/2016
Avica UK Limited,Cleaning and Domestic Materials,Cedars Childrens Centre,"1,075.63",215.13,"1,290.76",01/02/2016
Avica UK Limited,Cleaning and Domestic Materials,Roxborough Park,673.52,134.7,808.22,02/02/2016
Avica UK Limited,Cleaning and Domestic Materials,Roxborough Park,-673.52,-134.7,-808.22,05/02/2016
Avica UK Limited,Cleaning and Domestic Materials,Roxborough Park,673.52,134.7,808.22,05/02/2016
Avondale Park Primary School,Grants and Subscriptions,CLA Pupil Premium Grant,"1,500.00",0,"1,500.00",21/03/2016
Axiell ALM Limited,Repairs for Voids and Vandalism,Harrow Museum,"3,119.00",623.8,"3,742.80",06/01/2016
Ayer Associates Limited,Consultants Fees,,650,130,780,04/01/2016
Ayer Associates Limited,Consultants Fees,,"2,000.00",400,"2,400.00",06/01/2016
Ayer Associates Limited,Consultants Fees,,"11,479.92","2,295.98","13,775.90",29/01/2016
Ayer Associates Limited,Consultants Fees,General Housing Revenue Account (HRA),"7,800.00","1,560.00","9,360.00",24/02/2016
Ayer Associates Limited,Consultants Fees,,"8,053.13","1,610.63","9,663.76",24/02/2016
Ayer Associates Limited,Consultants Fees,General Housing Revenue Account (HRA),"13,000.00","2,600.00","15,600.00",15/03/2016
Ayer Associates Limited,Consultants Fees,,"7,210.59","1,442.12","8,652.71",30/03/2016
Ayer Associates Limited,Consultants Fees,General Housing Revenue Account (HRA),"8,200.00","1,640.00","9,840.00",30/03/2016
Ayerst Environmental Ltd,Building Maintenance Exit Costs,,"1,980.00",396,"2,376.00",12/01/2016
Ayerst Environmental Ltd,Building Maintenance Exit Costs,,"4,290.00",858,"5,148.00",12/01/2016
Ayerst Environmental Ltd,Building Maintenance Exit Costs,,"2,640.00",528,"3,168.00",08/02/2016
Ayerst Environmental Ltd,Building Maintenance Exit Costs,,"2,805.00",561,"3,366.00",09/02/2016
Ayerst Environmental Ltd,Building Maintenance Exit Costs,,990,198,"1,188.00",10/02/2016
Ayerst Environmental Ltd,Building Maintenance Exit Costs,,"1,485.00",297,"1,782.00",10/02/2016
Ayerst Environmental Ltd,Building Maintenance Exit Costs,,"1,485.00",297,"1,782.00",10/02/2016
Ayerst Environmental Ltd,Building Maintenance Exit Costs,,495,99,594,02/03/2016
Ayerst Environmental Ltd,Building Maintenance Exit Costs,,495,99,594,03/03/2016
Ayerst Environmental Ltd,Building Maintenance Exit Costs,,"1,485.00",297,"1,782.00",09/03/2016
Ayerst Environmental Ltd,Building Maintenance Exit Costs,Housing Repairs,990,198,"1,188.00",10/03/2016
Ayerst Environmental Ltd,Building Maintenance Exit Costs,,495,99,594,24/03/2016
Ayerst Environmental Ltd,Building Maintenance Exit Costs,,825,165,990,24/03/2016
Ayerst Environmental Ltd,Building Maintenance Exit Costs,,495,99,594,29/03/2016
Ayerst Environmental Ltd,Building Maintenance Exit Costs,,495,99,594,30/03/2016
Ayerst Environmental Ltd,Building Maintenance Exit Costs,,495,99,594,30/03/2016
Aylward Primary School,Voluntary Organisations TPP,Dsg Nursery Educ Grant 3yrs & 4yrs,"9,504.00",0,"9,504.00",05/01/2016
Aylward Primary School,Grants and Subscriptions,TU In/Out Boro Accadem. Prov.,"29,148.00",0,"29,148.00",25/01/2016
Aylward Primary School,Grants and Subscriptions,TU In/Out Boro Accadem. Prov.,"25,231.99",0,"25,231.99",02/02/2016
Aylward Primary School,Voluntary Organisations TPP,Dsg Nursery Educ Grant 3yrs & 4yrs,"10,855.35",0,"10,855.35",07/03/2016
B & H BUILDERS,Landlord Repairs Exit Costs,,"9,876.00",0,"9,876.00",22/01/2016
Ballards Lane Surgery,Miscellaneous Supplies & Services Cost,Barnet: Health Check Programme,"1,305.00",0,"1,305.00",21/03/2016
Balmore County House,Adults & Social - Client Charges,Long Term Team - OP,"-1,261.32",0,"-1,261.32",26/01/2016
Balmore County House,Recovery of Costs (External - Non Vatable),Long Term Team - OP,-784,0,-784,26/01/2016
Balmore County House,Nursing Care,Long Term Team - OP,"4,501.77",0,"4,501.77",26/01/2016
Baltimore Consulting Group,Consultants Fees,Mental Health - Non Pooled/ DoLS,800,160,960,14/01/2016
Baltimore Consulting Group,Consultants Fees,Mental Health - Non Pooled/ DoLS,"1,200.00",240,"1,440.00",14/01/2016
Baltimore Consulting Group,Consultants Fees,Mental Health - Non Pooled/ DoLS,"1,600.00",320,"1,920.00",14/01/2016
Baltimore Consulting Group,Consultants Fees,Mental Health - Non Pooled/ DoLS,"1,600.00",320,"1,920.00",14/01/2016
Baltimore Consulting Group,Consultants Fees,Mental Health - Non Pooled/ DoLS,"1,600.00",320,"1,920.00",14/01/2016
Baltimore Consulting Group,Consultants Fees,Mental Health - Non Pooled/ DoLS,"1,600.00",320,"1,920.00",14/01/2016
Baltimore Consulting Group,Consultants Fees,Mental Health - Non Pooled/ DoLS,"1,600.00",320,"1,920.00",14/01/2016
Baltimore Consulting Group,Consultants Fees,Mental Health - Non Pooled/ DoLS,"1,600.00",320,"1,920.00",14/01/2016
Baltimore Consulting Group,Consultants Fees,Mental Health - Non Pooled/ DoLS,"2,000.00",400,"2,400.00",14/01/2016
Baltimore Consulting Group,Consultants Fees,Mental Health - Non Pooled/ DoLS,"2,000.00",400,"2,400.00",14/01/2016
Baltimore Consulting Group,Consultants Fees,Mental Health - Non Pooled/ DoLS,800,160,960,19/01/2016
Baltimore Consulting Group,Consultants Fees,Mental Health - Non Pooled/ DoLS,"2,800.00",560,"3,360.00",03/02/2016
Baltimore Consulting Group,Consultants Fees,Mental Health - Non Pooled/ DoLS,"1,600.00",320,"1,920.00",10/02/2016
Baltimore Consulting Group,Consultants Fees,Mental Health - Non Pooled/ DoLS,"1,800.00",360,"2,160.00",17/02/2016
Baltimore Consulting Group,Consultants Fees,Mental Health - Non Pooled/ DoLS,"1,600.00",320,"1,920.00",02/03/2016
Baltimore Consulting Group,Consultants Fees,Mental Health - Non Pooled/ DoLS,"1,800.00",360,"2,160.00",02/03/2016
Baltimore Consulting Group,Consultants Fees,Mental Health - Non Pooled/ DoLS,"1,600.00",320,"1,920.00",09/03/2016
Baltimore Consulting Group,Consultants Fees,Mental Health - Non Pooled/ DoLS,"1,600.00",320,"1,920.00",09/03/2016
Baltimore Consulting Group,Consultants Fees,Mental Health - Non Pooled/ DoLS,"1,600.00",320,"1,920.00",16/03/2016
Baltimore Consulting Group,Consultants Fees,Mental Health - Non Pooled/ DoLS,"1,600.00",320,"1,920.00",24/03/2016
BankSearch Information,Grants and Subscriptions,Policy and Research,"1,600.00",320,"1,920.00",08/03/2016
Barchester Healthcare Homes Ltd,Recovery of Costs (External - Non Vatable),Long Term Team - OP,736,0,736,26/01/2016
BARCLAYS BANK PLC,Interest Payments,Interest Payable (borrowing),"258,638.40",0,"258,638.40",08/03/2016
Barking Havering & Redbridge NHS Tr,Accommodation,Divisional Director Targeted Services,"2,538.00",507.6,"3,045.60",19/01/2016
Barking Havering & Redbridge NHS Tr,Miscellaneous Supplies & Services Cost,Barnet: Sexual Health Services,972,0,972,04/02/2016
Barnardos,Foster Payments,Childrens Placements,597,0,597,08/02/2016
Barnardos,Foster Payments,Childrens Placements,590,0,590,08/03/2016
Barnardos,Foster Payments,Childrens Placements,594.5,0,594.5,08/03/2016
Barnet & Southgate College,Residential Schools,TU - FE Colleges,"-49,201.73",0,"-49,201.73",24/02/2016
Barnet & Southgate College,Residential Schools,TU - FE Colleges,"49,201.73",0,"49,201.73",24/02/2016
Barnet & Southgate College,Residential Schools,TU - FE Colleges,"49,201.73",0,"49,201.73",24/02/2016
Barnet CCG,Miscellaneous Supplies & Services Cost,Barnet: Drug Misuse,"2,634.86",0,"2,634.86",20/01/2016
Barnet Enfield&HaringeyMentalHealth,Miscellaneous Supplies & Services Cost,Barnet: Sexual Health Services,"5,060.44",0,"5,060.44",15/02/2016
Barnet Sports Development Ltd,Other Professional Fees,Harrow Schools Improvement Partnership,900,180,"1,080.00",17/02/2016
Bartec Auto ID Ltd,"Computer Software, Purchase and Maintenance",,"4,750.00",950,"5,700.00",30/03/2016
Barts Health NHS Trust,Miscellaneous Supplies & Services Cost,Barnet: Sexual Health Services,"22,248.08",0,"22,248.08",04/01/2016
Barts Health NHS Trust,Miscellaneous Supplies & Services Cost,Barnet: Sexual Health Services,"-22,248.08",0,"-22,248.08",09/03/2016
Barts Health NHS Trust,Miscellaneous Supplies & Services Cost,Barnet: Sexual Health Services,"-19,973.56",0,"-19,973.56",09/03/2016
Barts Health NHS Trust,Miscellaneous Supplies & Services Cost,Barnet: Sexual Health Services,"-11,049.96",0,"-11,049.96",09/03/2016
Barts Health NHS Trust,Miscellaneous Supplies & Services Cost,Harrow: Sexual Health Services,"-6,871.32",0,"-6,871.32",09/03/2016
Barts Health NHS Trust,Miscellaneous Supplies & Services Cost,Barnet: Sexual Health Services,"-6,574.00",0,"-6,574.00",09/03/2016
Barts Health NHS Trust,Miscellaneous Supplies & Services Cost,Barnet: Sexual Health Services,"-6,574.00",0,"-6,574.00",09/03/2016
Barts Health NHS Trust,Miscellaneous Supplies & Services Cost,Barnet: Sexual Health Services,"-6,574.00",0,"-6,574.00",09/03/2016
Barts Health NHS Trust,Miscellaneous Supplies & Services Cost,Barnet: Sexual Health Services,"-6,574.00",0,"-6,574.00",09/03/2016
Barts Health NHS Trust,Miscellaneous Supplies & Services Cost,Barnet: Sexual Health Services,"-6,574.00",0,"-6,574.00",09/03/2016
Barts Health NHS Trust,Miscellaneous Supplies & Services Cost,Harrow: Sexual Health Services,"2,072.00",0,"2,072.00",09/03/2016
Barts Health NHS Trust,Miscellaneous Supplies & Services Cost,Barnet: Sexual Health Services,"6,574.00",0,"6,574.00",09/03/2016
Barts Health NHS Trust,Miscellaneous Supplies & Services Cost,Barnet: Sexual Health Services,"6,574.00",0,"6,574.00",09/03/2016
Barts Health NHS Trust,Miscellaneous Supplies & Services Cost,Barnet: Sexual Health Services,"6,574.00",0,"6,574.00",09/03/2016
Barts Health NHS Trust,Miscellaneous Supplies & Services Cost,Barnet: Sexual Health Services,"6,574.00",0,"6,574.00",09/03/2016
Barts Health NHS Trust,Miscellaneous Supplies & Services Cost,Barnet: Sexual Health Services,"6,574.00",0,"6,574.00",09/03/2016
Barts Health NHS Trust,Miscellaneous Supplies & Services Cost,Barnet: Sexual Health Services,"6,574.00",0,"6,574.00",09/03/2016
Barts Health NHS Trust,Miscellaneous Supplies & Services Cost,Harrow: Sexual Health Services,"12,432.00",0,"12,432.00",09/03/2016
Barts Health NHS Trust,Miscellaneous Supplies & Services Cost,Barnet: Sexual Health Services,"39,444.00",0,"39,444.00",09/03/2016
Barts Health NHS Trust,Miscellaneous Supplies & Services Cost,Barnet: Sexual Health Services,"-1,869.85",0,"-1,869.85",24/03/2016
Barts Health NHS Trust,Miscellaneous Supplies & Services Cost,Harrow: Sexual Health Services,559.83,0,559.83,24/03/2016
Barts Health NHS Trust,Miscellaneous Supplies & Services Cost,Barnet: Sexual Health Services,"2,437.48",0,"2,437.48",24/03/2016
Barts Health NHS Trust,Miscellaneous Supplies & Services Cost,Harrow: Sexual Health Services,"2,072.00",0,"2,072.00",29/03/2016
Barts Health NHS Trust,Miscellaneous Supplies & Services Cost,Barnet: Sexual Health Services,"-22,248.08",0,"-22,248.08",31/03/2016
Barts Health NHS Trust,Miscellaneous Supplies & Services Cost,Barnet: Sexual Health Services,"22,248.08",0,"22,248.08",31/03/2016
Bates Wells & Braithwaite,Legal Fees/Advocacy,Harrow Arts Centre,"19,690.00","3,938.00","23,628.00",24/02/2016
Battersea Dogs & Cats Home,Staff training (General),Divisional Director Environment & Cultur,500,100,600,24/02/2016
BAYERISCHE LANDESBANK,Interest Payments,Interest Payable (borrowing),"-270,257.53",0,"-270,257.53",03/03/2016
BAYERISCHE LANDESBANK,Interest Payments,Interest Payable (borrowing),"270,257.53",0,"270,257.53",03/03/2016
BAYERISCHE LANDESBANK,Interest Payments,Interest Payable (borrowing),"271,742.47",0,"271,742.47",23/03/2016
Beacon Care,Residential Placements,Long Term Team - LD,"3,417.17",0,"3,417.17",26/01/2016
Beacon Care,Residential Placements,Long Term Team - LD,"3,196.71",0,"3,196.71",24/02/2016
Beacon Care,Residential Placements,Long Term Team - LD,"3,417.18",0,"3,417.18",24/03/2016
BEAM Clinic,Domiciliary Care,Long Term Team - OP,"3,823.75",0,"3,823.75",22/02/2016
BEAM Clinic,Domiciliary Care,Long Term Team - OP,"5,263.00",0,"5,263.00",22/02/2016
BEAM Clinic,Domiciliary Care,Long Term Team - OP,"5,491.25",0,"5,491.25",22/02/2016
BEAM Clinic,Domiciliary Care,Long Term Team - OP,"5,681.00",0,"5,681.00",22/02/2016
BEAM Clinic,Domiciliary Care,Long Term Team - OP,"6,184.50",0,"6,184.50",22/02/2016
BEAM Clinic,Miscellaneous Supplies & Services Cost,Long Term Team - OP,"1,280.00",0,"1,280.00",02/03/2016
BEAM Clinic,Miscellaneous Supplies & Services Cost,Long Term Team - OP,"1,844.00",0,"1,844.00",02/03/2016
BEAM Clinic,Miscellaneous Supplies & Services Cost,Long Term Team - OP,"5,994.50",0,"5,994.50",02/03/2016
BEAM Clinic,Miscellaneous Supplies & Services Cost,Long Term Team - OP,"6,140.00",0,"6,140.00",02/03/2016
BEAM Clinic,Miscellaneous Supplies & Services Cost,Long Term Team - OP,"6,284.25",0,"6,284.25",02/03/2016
BEAM Clinic,Miscellaneous Supplies & Services Cost,Long Term Team - OP,"6,749.75",0,"6,749.75",02/03/2016
BEAM Clinic,Miscellaneous Supplies & Services Cost,Long Term Team - OP,"8,298.25",0,"8,298.25",02/03/2016
BEAM Clinic,Miscellaneous Supplies & Services Cost,Long Term Team - OP,"9,599.75",0,"9,599.75",02/03/2016
Beech Haven,Residential Placements,Long Term Team - OP,"15,737.14",0,"15,737.14",23/02/2016
Beech Haven,Residential Placements,Long Term Team - OP,"2,982.86",0,"2,982.86",24/02/2016
Beech Haven,Residential Placements,Interim Funding,"3,188.57",0,"3,188.57",24/03/2016
Beech Tree House,Adults & Social - Client Charges,Long Term Team - LD,"4,827.21",0,"4,827.21",05/01/2016
Beech Tree House,Residential Placements,Long Term Team - LD,"6,299.20",0,"6,299.20",26/01/2016
Beech Tree House,Residential Placements,Long Term Team - LD,"5,892.80",0,"5,892.80",24/02/2016
Beech Tree House,Residential Placements,Long Term Team - LD,"14,287.37",0,"14,287.37",24/02/2016
Beech Tree House,Residential Placements,Long Term Team - LD,"6,299.20",0,"6,299.20",24/03/2016
Bell Brush Company,Cleaning and Domestic Materials,Street Cleansing,644.1,128.82,772.92,07/01/2016
Bell Brush Company,Cleaning and Domestic Materials,Street Cleansing,"1,238.60",247.72,"1,486.32",12/01/2016
Bell Brush Company,Cleaning and Domestic Materials,Street Cleansing,745,149,894,26/02/2016
Bell Brush Company,Cleaning and Domestic Materials,Contracts Management,"1,866.50",373.3,"2,239.80",24/03/2016
Bell Brush Company,Cleaning and Domestic Materials,Street Cleansing,796.45,159.29,955.74,30/03/2016
Bell Brush Company,Cleaning and Domestic Materials,Contracts Management,"1,908.00",381.6,"2,289.60",30/03/2016
Belmont Montessori Nursery ( Butter,Voluntary Organisations TPP,2 year old offer,"1,421.75",0,"1,421.75",05/01/2016
Belmont Montessori Nursery ( Butter,Voluntary Organisations TPP,Dsg Nursery Educ Grant 3yrs & 4yrs,"5,527.80",0,"5,527.80",05/01/2016
Belmont Montessori Nursery ( Butter,Voluntary Organisations TPP,2 year old offer,"2,895.75",0,"2,895.75",07/03/2016
Belmont Montessori Nursery ( Butter,Voluntary Organisations TPP,Dsg Nursery Educ Grant 3yrs & 4yrs,"15,432.15",0,"15,432.15",07/03/2016
Bemrose Booth Ltd,"Equipment Lease, Purchase, Maintenance and Repair",Car Parking,"1,579.70",315.94,"1,895.64",04/02/2016
Ben Maltz,Legal Fees/Advocacy,Hounslow Inter Authority Agreement,"1,280.00",256,"1,536.00",09/03/2016
Bentley Priory Battle of Britain Tr,Meeting/conference room hire,Harrow Schools Improvement Partnership,"1,379.00",275.8,"1,654.80",15/01/2016
Bentley Priory Battle of Britain Tr,Conference Fees and Expenses,Divisional Director QACS,427.67,85.53,513.2,02/03/2016
Bentley Wood High School,Grants and Subscriptions,TU In/Out Boro Accadem. Prov.,"23,814.00",0,"23,814.00",25/01/2016
Bentley Wood High School,Grants and Subscriptions,TU In/Out Boro Accadem. Prov.,"30,000.00",0,"30,000.00",25/01/2016
Bentley Wood High School,Grants and Subscriptions,TU In/Out Boro Accadem. Prov.,"8,528.51",0,"8,528.51",02/02/2016
Bentley Wood High School,Grants and Subscriptions,CLA Pupil Premium Grant,500,0,500,21/03/2016
Benwick Primary School,Grants and Subscriptions,CLA Pupil Premium Grant,"1,000.00",0,"1,000.00",12/01/2016
Benwick Primary School,Grants and Subscriptions,CLA Pupil Premium Grant,"1,000.00",0,"1,000.00",21/03/2016
Berrick Computing Ltd,"Computer Software, Purchase and Maintenance",Local Safeguarding Children Board,"2,650.00",530,"3,180.00",22/02/2016
Berrymans Lace Mawer,Legal Fees/Advocacy,Liability Insurance,"-1,273.70",-254.74,"-1,528.44",03/02/2016
Berrymans Lace Mawer,Legal Fees/Advocacy,Liability Insurance,"1,273.70",254.74,"1,528.44",03/02/2016
Berrymans Lace Mawer,Legal Fees/Advocacy,Liability Insurance,"-2,669.50",-533.9,"-3,203.40",05/02/2016
Berrymans Lace Mawer,Legal Fees/Advocacy,Liability Insurance,"2,669.50",533.9,"3,203.40",05/02/2016
Berrymans Lace Mawer,Legal Fees/Advocacy,Liability Insurance,"2,669.50",533.9,"3,203.40",10/02/2016
Berrymans Lace Mawer,Legal Fees/Advocacy,Liability Insurance,"3,001.50",600.3,"3,601.80",10/02/2016
Berrymans Lace Mawer,Legal Fees/Advocacy,Liability Insurance,"-3,001.50",-600.3,"-3,601.80",31/03/2016
Berrymans Lace Mawer,Legal Fees/Advocacy,Liability Insurance,"3,001.50",600.3,"3,601.80",31/03/2016
Bethesdapool Procurement Limited,Consultants Fees,Procurement,"2,505.21",501.04,"3,006.25",17/03/2016
Bethesdapool Procurement Limited,Consultants Fees,Procurement,"2,511.46",502.29,"3,013.75",17/03/2016
BFS Group Ltd,Catering  - Costs and Equipment,Adults Catering,174.05,34.81,208.86,06/01/2016
BFS Group Ltd,Catering  - Costs and Equipment,Adults Catering,507.32,0,507.32,06/01/2016
BFS Group Ltd,Catering  - Costs and Equipment,Adults Catering,211.58,42.32,253.9,06/01/2016
BFS Group Ltd,Catering  - Costs and Equipment,Adults Catering,481.71,0,481.71,06/01/2016
BFS Group Ltd,Catering  - Costs and Equipment,Adults Catering,168.72,33.74,202.46,06/01/2016
BFS Group Ltd,Catering  - Costs and Equipment,Adults Catering,669.76,0,669.76,06/01/2016
BFS Group Ltd,Catering  - Costs and Equipment,Adults Catering,164.64,32.93,197.57,06/01/2016
BFS Group Ltd,Catering  - Costs and Equipment,Adults Catering,740.31,0,740.31,06/01/2016
BFS Group Ltd,Catering  - Costs and Equipment,Adults Catering,402.73,80.55,483.28,06/01/2016
BFS Group Ltd,Catering  - Costs and Equipment,Adults Catering,558.73,0,558.73,06/01/2016
BFS Group Ltd,Catering  - Costs and Equipment,Bedford House,302.28,60.46,362.74,06/01/2016
BFS Group Ltd,Catering  - Costs and Equipment,Bedford House,"1,930.68",0,"1,930.68",06/01/2016
BFS Group Ltd,Catering  - Costs and Equipment,Civic Centre Rest,210.36,42.07,252.43,18/01/2016
BFS Group Ltd,Catering  - Costs and Equipment,Civic Centre Rest,482.06,0,482.06,18/01/2016
BFS Group Ltd,Catering  - Costs and Equipment,Civic Centre Rest,328.39,65.68,394.07,20/01/2016
BFS Group Ltd,Catering  - Costs and Equipment,Civic Centre Rest,780.75,0,780.75,20/01/2016
BFS Group Ltd,Catering  - Costs and Equipment,Civic Centre Rest,120.81,24.16,144.97,26/01/2016
BFS Group Ltd,Catering  - Costs and Equipment,Civic Centre Rest,454.37,0,454.37,26/01/2016
BFS Group Ltd,Catering  - Costs and Equipment,14/15 Kenton Road,284.35,0,284.35,27/01/2016
BFS Group Ltd,Catering  - Costs and Equipment,14/15 Kenton Road,357.83,71.57,429.4,27/01/2016
BFS Group Ltd,Catering  - Costs and Equipment,Civic Centre Rest,150.28,30.06,180.34,17/02/2016
BFS Group Ltd,Catering  - Costs and Equipment,Civic Centre Rest,490.96,0,490.96,17/02/2016
BFS Group Ltd,Catering  - Costs and Equipment,Civic Centre Rest,"-1,105.45",0,"-1,105.45",24/02/2016
BFS Group Ltd,Catering  - Costs and Equipment,Civic Centre Rest,-254.15,-50.83,-304.98,24/02/2016
BFS Group Ltd,Catering  - Costs and Equipment,Civic Centre Rest,-754.31,0,-754.31,24/02/2016
BFS Group Ltd,Catering  - Costs and Equipment,Civic Centre Rest,-231.17,-46.23,-277.4,24/02/2016
BFS Group Ltd,Catering  - Costs and Equipment,Civic Centre Rest,-451.28,0,-451.28,24/02/2016
BFS Group Ltd,Catering  - Costs and Equipment,Civic Centre Rest,-313.52,-62.7,-376.22,24/02/2016
BFS Group Ltd,Catering  - Costs and Equipment,Civic Centre Rest,-534.55,0,-534.55,24/02/2016
BFS Group Ltd,Catering  - Costs and Equipment,Civic Centre Rest,-212.69,-42.54,-255.23,24/02/2016
BFS Group Ltd,Catering  - Costs and Equipment,Civic Centre Rest,-654.53,0,-654.53,24/02/2016
BFS Group Ltd,Catering  - Costs and Equipment,Civic Centre Rest,-89.03,-17.81,-106.84,24/02/2016
BFS Group Ltd,Catering  - Costs and Equipment,Civic Centre Rest,-394.99,0,-394.99,24/02/2016
BFS Group Ltd,Catering  - Costs and Equipment,Civic Centre Rest,-98.31,-19.66,-117.97,24/02/2016
BFS Group Ltd,Catering  - Costs and Equipment,Civic Centre Rest,98.31,19.66,117.97,24/02/2016
BFS Group Ltd,Catering  - Costs and Equipment,Civic Centre Rest,394.99,0,394.99,24/02/2016
BFS Group Ltd,Catering  - Costs and Equipment,Civic Centre Rest,98.31,19.66,117.97,24/02/2016
BFS Group Ltd,Catering  - Costs and Equipment,Civic Centre Rest,394.99,0,394.99,24/02/2016
BFS Group Ltd,Catering  - Costs and Equipment,Civic Centre Rest,120.72,24.14,144.86,24/02/2016
BFS Group Ltd,Catering  - Costs and Equipment,Civic Centre Rest,493.89,0,493.89,24/02/2016
BFS Group Ltd,Catering  - Costs and Equipment,14/15 Kenton Road,253.6,0,253.6,24/02/2016
BFS Group Ltd,Catering  - Costs and Equipment,14/15 Kenton Road,336.32,67.26,403.58,24/02/2016
BFS Group Ltd,Catering  - Costs and Equipment,Civic Centre Rest,195.54,39.11,234.65,24/02/2016
BFS Group Ltd,Catering  - Costs and Equipment,Civic Centre Rest,450.45,0,450.45,24/02/2016
BFS Group Ltd,Catering  - Costs and Equipment,Civic Centre Rest,197.73,39.55,237.28,24/02/2016
BFS Group Ltd,Catering  - Costs and Equipment,Civic Centre Rest,892.31,0,892.31,24/02/2016
BFS Group Ltd,Catering  - Costs and Equipment,Bedford House,334.01,66.8,400.81,24/02/2016
BFS Group Ltd,Catering  - Costs and Equipment,Bedford House,"1,629.41",0,"1,629.41",24/02/2016
BFS Group Ltd,Catering  - Costs and Equipment,Civic Centre Rest,89.03,17.81,106.84,26/02/2016
BFS Group Ltd,Catering  - Costs and Equipment,Civic Centre Rest,654.53,0,654.53,26/02/2016
BFS Group Ltd,Catering  - Costs and Equipment,Civic Centre Rest,212.69,42.54,255.23,26/02/2016
BFS Group Ltd,Catering  - Costs and Equipment,Civic Centre Rest,534.55,0,534.55,26/02/2016
BFS Group Ltd,Catering  - Costs and Equipment,Civic Centre Rest,313.52,62.7,376.22,26/02/2016
BFS Group Ltd,Catering  - Costs and Equipment,Civic Centre Rest,451.28,0,451.28,26/02/2016
BFS Group Ltd,Catering  - Costs and Equipment,Civic Centre Rest,231.17,46.23,277.4,26/02/2016
BFS Group Ltd,Catering  - Costs and Equipment,Civic Centre Rest,754.31,0,754.31,26/02/2016
BFS Group Ltd,Catering  - Costs and Equipment,Civic Centre Rest,254.15,50.83,304.98,26/02/2016
BFS Group Ltd,Catering  - Costs and Equipment,Civic Centre Rest,"1,105.45",0,"1,105.45",26/02/2016
BFS Group Ltd,Catering  - Costs and Equipment,Civic Centre Rest,231.17,46.23,277.4,02/03/2016
BFS Group Ltd,Catering  - Costs and Equipment,Civic Centre Rest,754.31,0,754.31,02/03/2016
BFS Group Ltd,Catering  - Costs and Equipment,Civic Centre Rest,254.15,50.83,304.98,02/03/2016
BFS Group Ltd,Catering  - Costs and Equipment,Civic Centre Rest,"1,105.45",0,"1,105.45",02/03/2016
BFS Group Ltd,Catering  - Costs and Equipment,Civic Centre Rest,313.52,62.7,376.22,09/03/2016
BFS Group Ltd,Catering  - Costs and Equipment,Civic Centre Rest,451.28,0,451.28,09/03/2016
BFS Group Ltd,Catering  - Costs and Equipment,Civic Centre Rest,89.03,17.81,106.84,16/03/2016
BFS Group Ltd,Catering  - Costs and Equipment,Civic Centre Rest,654.53,0,654.53,16/03/2016
BFS Group Ltd,Catering  - Costs and Equipment,Civic Centre Rest,212.69,42.54,255.23,16/03/2016
BFS Group Ltd,Catering  - Costs and Equipment,Civic Centre Rest,534.55,0,534.55,16/03/2016
BFS Group Ltd,Catering  - Costs and Equipment,14/15 Kenton Road,795.74,159.15,954.89,16/03/2016
BFS Group Ltd,Catering  - Costs and Equipment,Civic Centre Rest,224.32,44.86,269.18,22/03/2016
BFS Group Ltd,Catering  - Costs and Equipment,Civic Centre Rest,432.73,0,432.73,22/03/2016
BFS Group Ltd,Catering  - Costs and Equipment,Civic Centre Rest,341,68.2,409.2,22/03/2016
BFS Group Ltd,Catering  - Costs and Equipment,Civic Centre Rest,629.87,0,629.87,22/03/2016
BFS Group Ltd,Catering  - Costs and Equipment,14/15 Kenton Road,87.58,17.52,105.1,30/03/2016
BFS Group Ltd,Catering  - Costs and Equipment,14/15 Kenton Road,405.09,0,405.09,30/03/2016
BFS Group Ltd,Catering  - Costs and Equipment,Bedford House,83.92,16.78,100.7,30/03/2016
BFS Group Ltd,Catering  - Costs and Equipment,Bedford House,"1,170.18",0,"1,170.18",30/03/2016
BFS Interiors,Furniture Purchase and Repair,Harrow Help,"1,365.00",273,"1,638.00",05/02/2016
BFS Interiors,Furniture Purchase and Repair,Harrow Help,"2,510.00",502,"3,012.00",05/02/2016
BFS Interiors,Furniture Purchase and Repair,Harrow Help,"1,375.00",275,"1,650.00",25/02/2016
BFS Interiors,Furniture Purchase and Repair,Harrow Help,"1,010.00",202,"1,212.00",24/03/2016
BFS Interiors,Furniture Purchase and Repair,Harrow Help,"1,015.00",203,"1,218.00",24/03/2016
BFS Interiors,Furniture Purchase and Repair,Harrow Help,"2,040.00",408,"2,448.00",24/03/2016
BFS Interiors,Furniture Purchase and Repair,Harrow Help,"1,445.00",289,"1,734.00",29/03/2016
BHH LIFT Accomodation Services,Rents,PFI - Neighbourhood Resource Centres,"27,550.06","5,510.01","33,060.07",13/01/2016
BHH LIFT Accomodation Services,Rents,PFI - Neighbourhood Resource Centres,"27,550.06","5,510.01","33,060.07",11/02/2016
BHH LIFT Accomodation Services,Rents,PFI - Neighbourhood Resource Centres,"27,550.06","5,510.01","33,060.07",11/03/2016
BHH LIFT Accomodation Services.,Rents,PFI - Neighbourhood Resource Centres,"28,166.92","5,633.38","33,800.30",14/01/2016
BHH LIFT Accomodation Services.,Rents,PFI - Neighbourhood Resource Centres,"28,166.92","5,633.38","33,800.30",11/02/2016
BHH LIFT Accomodation Services.,Rents,PFI - Neighbourhood Resource Centres,"28,166.92","5,633.38","33,800.30",23/03/2016
BHH LIFT Accomodation Services..,Rents,PFI - Neighbourhood Resource Centres,"26,350.72","5,270.14","31,620.86",13/01/2016
BHH LIFT Accomodation Services..,Rents,PFI - Neighbourhood Resource Centres,"26,350.72","5,270.14","31,620.86",11/02/2016
BHH LIFT Accomodation Services..,Rents,PFI - Neighbourhood Resource Centres,"26,350.72","5,270.14","31,620.86",11/03/2016
BHH LIFT Accomodation Services..,Building Maintenance Exit Costs,Kenmore NRC,"4,831.87",966.37,"5,798.24",31/03/2016
Bibi Badejo,Legal Fees/Advocacy,Hounslow Inter Authority Agreement,700,140,840,31/03/2016
Bicknoller Surgery,Miscellaneous Supplies & Services Cost,Barnet: Drug Misuse,866,0,866,24/03/2016
Bicknoller Surgery,Miscellaneous Supplies & Services Cost,Barnet: Drug Misuse,972,0,972,30/03/2016
Bicknoller Surgery,Miscellaneous Supplies & Services Cost,Barnet: Drug Misuse,"1,044.00",0,"1,044.00",30/03/2016
Bilfinger GVA (PMA321),"Equipment Lease, Purchase, Maintenance and Repair",Car Parking,"3,821.43",764.29,"4,585.72",21/01/2016
Bindmans LLP,Accommodation,Divisional Director Targeted Services,"1,000.00",200,"1,200.00",16/02/2016
Bindmans LLP,Accommodation,Divisional Director Targeted Services,"1,362.50",272.5,"1,635.00",16/02/2016
BiP Solutions Ltd,Private Contractors for Back Office Services,New Home Bonus Grant (NHB),"6,000.00","1,200.00","7,200.00",14/03/2016
Birch Tree House,Semi Independent,Leaving Care Placements,"1,021.46",0,"1,021.46",08/01/2016
Birch Tree House,Semi Independent,Childrens Placements,"2,319.60",0,"2,319.60",08/01/2016
Birch Tree House,Semi Independent,Leaving Care Placements,"2,491.47",0,"2,491.47",08/01/2016
Birch Tree House,Semi Independent,Childrens Placements,"3,432.03",0,"3,432.03",08/01/2016
Birch Tree House,Semi Independent,Leaving Care Placements,"2,491.47",0,"2,491.47",08/02/2016
Birch Tree House,Semi Independent,Childrens Placements,"3,135.03",0,"3,135.03",08/02/2016
Birch Tree House,Semi Independent,Leaving Care Placements,"3,226.00",0,"3,226.00",08/02/2016
Birch Tree House,Semi Independent,Leaving Care Placements,"2,089.62",0,"2,089.62",08/03/2016
Birch Tree House,Semi Independent,Leaving Care Placements,"2,932.77",0,"2,932.77",08/03/2016
Birch Tree House,Semi Independent,Childrens Placements,"2,932.77",0,"2,932.77",08/03/2016
Bishop & Keohane Associates Limited,Consultants Fees,Mental Health - Non Pooled/ DoLS,750,0,750,22/03/2016
Bishop & Keohane Associates Limited,Consultants Fees,Mental Health - Non Pooled/ DoLS,850,0,850,22/03/2016
Bishop & Keohane Associates Limited,Consultants Fees,Mental Health - Non Pooled/ DoLS,"2,000.00",0,"2,000.00",22/03/2016
Bishop Ramsey CE School,Residential Schools,Dsg Outborough Placement-Fees,"5,922.15",0,"5,922.15",25/01/2016
Bisley Office Furniture,Furniture Purchase and Repair,,"-10,132.68","-2,026.54","-12,159.22",31/03/2016
Bisley Office Furniture,Furniture Purchase and Repair,,"10,132.68","2,026.54","12,159.22",31/03/2016
Black & White Fire Safety Ltd,Landlord Repairs Exit Costs,Cyclical Maintenance,"1,591.00",318.2,"1,909.20",04/01/2016
Black & White Fire Safety Ltd,Landlord Repairs Exit Costs,,"15,002.22","3,000.44","18,002.66",11/01/2016
Black & White Fire Safety Ltd,Landlord Repairs Exit Costs,,"15,002.22","3,000.44","18,002.66",11/01/2016
Black & White Fire Safety Ltd,Landlord Repairs Exit Costs,Cyclical Maintenance,"2,200.00",440,"2,640.00",04/02/2016
Black & White Fire Safety Ltd,Fire Extinguishers,Cyclical Maintenance,"2,592.75",518.55,"3,111.30",08/03/2016
Black & White Fire Safety Ltd,Fire Extinguishers,Cyclical Maintenance,917,183.4,"1,100.40",16/03/2016
Black & White Fire Safety Ltd,Landlord Repairs Exit Costs,,"15,002.22","3,000.44","18,002.66",22/03/2016
Black & White Fire Safety Ltd,Fire Extinguishers,Cyclical Maintenance,"1,282.00",256.4,"1,538.40",24/03/2016
Black & White Fire Safety Ltd,Fire Extinguishers,Cyclical Maintenance,"2,030.00",406,"2,436.00",24/03/2016
Blake Newport Associates Ltd,Legal Fees/Advocacy,Capital Team,"3,090.00",618,"3,708.00",24/03/2016
Blanche Nevile School,Other Professional Fees,Other LA Special Schools,"33,148.35",0,"33,148.35",25/01/2016
Blaser Mills,Other Agencies/Local Authorities 3rd Party Payment,Liability Insurance,"15,500.00",0,"15,500.00",22/02/2016
Blenheim CDP,Miscellaneous Supplies & Services Cost,Harrow: Drug Misuse,"9,343.75",0,"9,343.75",10/02/2016
Blithe Computer Systems Limited,Miscellaneous Supplies & Services Cost,Harrow: Drug Misuse,925,185,"1,110.00",15/03/2016
Blossom Park Healthcare Ltd,Residential Placements,Long Term Team - LD,"1,020.00",0,"1,020.00",26/01/2016
Blossom Park Healthcare Ltd,Residential Placements,Long Term Team - LD,"1,697.14",0,"1,697.14",24/02/2016
Blossom Park Healthcare Ltd,Residential Placements,Long Term Team - LD,"1,530.00",0,"1,530.00",24/02/2016
Blossom Park Healthcare Ltd,Adults & Social - Client Charges,Long Term Team - LD,-100.4,0,-100.4,24/02/2016
Blossom Park Healthcare Ltd,Residential Placements,Long Term Team - LD,"6,576.43",0,"6,576.43",24/03/2016
Blossom Park Healthcare Ltd,Adults & Social - Client Charges,Long Term Team - LD,-389.05,0,-389.05,24/03/2016
Blue Butterfly Montessori,Voluntary Organisations TPP,Dsg Nursery Educ Grant 3yrs & 4yrs,"4,536.00",0,"4,536.00",05/01/2016
Blue Butterfly Montessori,Voluntary Organisations TPP,Dsg Nursery Educ Grant 3yrs & 4yrs,"10,584.00",0,"10,584.00",07/03/2016
Bluebird Care - ISF,Social Care Personal Budgets,Personalisation - OP,502.84,0,502.84,18/01/2016
Bluebird Care - ISF,Social Care Personal Budgets,Personalisation - OP,562.24,0,562.24,18/01/2016
Bluebird Care - ISF,Social Care Personal Budgets,Personalisation - OP,677.6,0,677.6,18/01/2016
Bluebird Care - ISF,Adults & Social - Net P.B.'s,Personalisation - OP,-163.96,0,-163.96,18/01/2016
Bluebird Care - ISF,Social Care Personal Budgets,Personalisation - OP,876,0,876,18/01/2016
Bluebird Care - ISF,Social Care Personal Budgets,Personalisation - LD,726,0,726,18/01/2016
Bluebird Care - ISF,Social Care Personal Budgets,Personalisation - LD,762.32,0,762.32,18/01/2016
Bluebird Care - ISF,Social Care Personal Budgets,Personalisation - OP,849.16,0,849.16,18/01/2016
Bluebird Care - ISF,Social Care Personal Budgets,Personalisation - OP,"1,352.00",0,"1,352.00",18/01/2016
Bluebird Care - ISF,Social Care Personal Budgets,Personalisation - OP,"1,524.60",0,"1,524.60",18/01/2016
Bluebird Care - ISF,Social Care Personal Budgets,Personalisation - OP,502.84,0,502.84,18/02/2016
Bluebird Care - ISF,Social Care Personal Budgets,Personalisation - PD,532.4,0,532.4,18/02/2016
Bluebird Care - ISF,Social Care Personal Budgets,Personalisation - OP,562.24,0,562.24,18/02/2016
Bluebird Care - ISF,Social Care Personal Budgets,Personalisation - LD,726,0,726,18/02/2016
Bluebird Care - ISF,Social Care Personal Budgets,Personalisation - LD,762.32,0,762.32,18/02/2016
Bluebird Care - ISF,Social Care Personal Budgets,Personalisation - OP,849.16,0,849.16,18/02/2016
Bluebird Care - ISF,Social Care Personal Budgets,Personalisation - OP,"1,352.00",0,"1,352.00",18/02/2016
Bluebird Care - ISF,Social Care Personal Budgets,Personalisation - OP,"1,529.40",0,"1,529.40",18/02/2016
Bluebird Care - ISF,Adults & Social - Net P.B.'s,Personalisation - OP,-163.96,0,-163.96,18/02/2016
Bluebird Care - ISF,Social Care Personal Budgets,Personalisation - OP,"1,524.60",0,"1,524.60",18/02/2016
Bluebird Care - ISF,Social Care Personal Budgets,Personalisation - LD,"2,195.64",0,"2,195.64",18/02/2016
Bluebird Care - ISF,Social Care Personal Budgets,Personalisation - OP,"5,705.15",0,"5,705.15",18/02/2016
Bluebird Care - ISF,Social Care Personal Budgets,Personalisation - OP,562.24,0,562.24,07/03/2016
Bluebird Care - ISF,Social Care Personal Budgets,Personalisation - LD,726,0,726,07/03/2016
Bluebird Care - ISF,Social Care Personal Budgets,Personalisation - LD,762.32,0,762.32,07/03/2016
Bluebird Care - ISF,Social Care Personal Budgets,Personalisation - OP,849.16,0,849.16,07/03/2016
Bluebird Care - ISF,Social Care Personal Budgets,Personalisation - OP,"1,045.40",0,"1,045.40",07/03/2016
Bluebird Care - ISF,Adults & Social - Net P.B.'s,Personalisation - OP,-163.96,0,-163.96,07/03/2016
Bluebird Care - ISF,Social Care Personal Budgets,Personalisation - OP,"1,185.80",0,"1,185.80",07/03/2016
Bluebird Care - ISF,Social Care Personal Budgets,Personalisation - OP,"1,352.00",0,"1,352.00",07/03/2016
Bluebird Care - ISF,Social Care Personal Budgets,Personalisation - OP,"1,524.60",0,"1,524.60",07/03/2016
Bluebird Care - ISF,Social Care Personal Budgets,Personalisation - OP,"-2,845.14",0,"-2,845.14",18/03/2016
Bluebird Care - ISF,Social Care Personal Budgets,Personalisation - OP,562.24,0,562.24,18/03/2016
Bluebird Care - ISF,Social Care Personal Budgets,Personalisation - LD,726,0,726,18/03/2016
Bluebird Care - ISF,Social Care Personal Budgets,Personalisation - LD,762.32,0,762.32,18/03/2016
Bluebird Care - ISF,Social Care Personal Budgets,Personalisation - OP,849.16,0,849.16,18/03/2016
Bluebird Care - ISF,Adults & Social - Net P.B.'s,Personalisation - OP,-163.96,0,-163.96,18/03/2016
Bluebird Care - ISF,Social Care Personal Budgets,Personalisation - OP,"1,045.40",0,"1,045.40",18/03/2016
Bluebird Care - ISF,Social Care Personal Budgets,Personalisation - OP,"1,185.80",0,"1,185.80",18/03/2016
Bluebird Care - ISF,Social Care Personal Budgets,Personalisation - OP,"1,352.00",0,"1,352.00",18/03/2016
Bluebird Care - ISF,Social Care Personal Budgets,Personalisation - OP,"1,524.60",0,"1,524.60",18/03/2016
Bluebird Care (Harrow),Domiciliary Care,Personalisation - OP,"1,638.32",0,"1,638.32",15/02/2016
Bluebird Care (Harrow),Domiciliary Care,Personalisation - OP,"1,638.32",0,"1,638.32",15/02/2016
Bluebird Care (Harrow),Domiciliary Care,Personalisation - OP,"2,047.90",0,"2,047.90",15/02/2016
Bluefrontier,Private Contractors for Back Office Services,Business & Commercial Team,"3,624.00",724.8,"4,348.80",24/03/2016
BM Trada,Grants and Subscriptions,"Traffic, Highway & Asset Management","3,504.96",700.99,"4,205.95",01/03/2016
BMR Construction Ltd,Landlord Repairs Exit Costs,,"35,382.05","7,076.41","42,458.46",14/03/2016
BNP Paribas,Consultants Fees,Development Control,"4,000.00",800,"4,800.00",14/01/2016
BNP Paribas,Consultants Fees,Development Control,"8,000.00","1,600.00","9,600.00",14/01/2016
BNP Paribas,Consultants Fees,Development Control,"5,500.00","1,100.00","6,600.00",22/03/2016
BNP Paribas,Consultants Fees,Development Control,"5,500.00","1,100.00","6,600.00",22/03/2016
BNP Paribas,Consultants Fees,Development Control,"5,250.00","1,050.00","6,300.00",31/03/2016
Boots Pharmacy Brent Cross,Miscellaneous Supplies & Services Cost,Barnet: Tobacco Control,250,0,250,12/02/2016
Boots Pharmacy Brent Cross,Miscellaneous Supplies & Services Cost,Barnet: Tobacco Control,286.77,14.34,301.11,12/02/2016
Boots Pharmacy Golders Green,Miscellaneous Supplies & Services Cost,Barnet: Drug Misuse,565,0,565,24/02/2016
Boots St Georges,Miscellaneous Supplies & Services Cost,Harrow: Tobacco Control,210.85,0,210.85,13/01/2016
Boots St Georges,Miscellaneous Supplies & Services Cost,Harrow: Tobacco Control,766.91,38.35,805.26,13/01/2016
Boots UK Ltd,Miscellaneous Supplies & Services Cost,Health & Safety Services,832,0,832,04/02/2016
Boots UK Ltd,Miscellaneous Supplies & Services Cost,Health & Safety Services,"1,600.00",0,"1,600.00",04/02/2016
Boots UK Ltd,Miscellaneous Supplies & Services Cost,Health & Safety Services,800,0,800,10/02/2016
Bottomline Technologies Ltd,"Computer Software, Purchase and Maintenance",,"6,000.00","1,200.00","7,200.00",07/01/2016
Bouygues E&S Infrastructure UK Limi,"Private Contractors, Third Party Payments",Policy and Research,"2,887.92",577.58,"3,465.50",09/02/2016
Boys & Girls Nursery,Voluntary Organisations TPP,2 year old offer,"1,815.00",0,"1,815.00",05/01/2016
Boys & Girls Nursery,Voluntary Organisations TPP,Dsg Nursery Educ Grant 3yrs & 4yrs,"10,098.00",0,"10,098.00",05/01/2016
Boys & Girls Nursery,Voluntary Organisations TPP,2 year old offer,"2,392.50",0,"2,392.50",07/03/2016
Boys & Girls Nursery,Voluntary Organisations TPP,Dsg Nursery Educ Grant 3yrs & 4yrs,"25,385.25",0,"25,385.25",07/03/2016
Brake Bros Foodservice Ltd,Other Professional Fees,Harrow Museum,236.93,0,236.93,09/03/2016
Brake Bros Foodservice Ltd,Other Professional Fees,Harrow Museum,243.69,48.74,292.43,09/03/2016
Brambles,Residential Placements,Long Term Team - LD,"3,457.21",0,"3,457.21",26/01/2016
Brambles,Adults & Social - Client Charges,Long Term Team - LD,-356.28,0,-356.28,26/01/2016
Brambles,Residential Placements,Long Term Team - LD,"3,234.16",0,"3,234.16",24/02/2016
Brambles,Adults & Social - Client Charges,Long Term Team - LD,-333.29,0,-333.29,24/02/2016
Brambles,Residential Placements,Long Term Team - LD,"3,457.21",0,"3,457.21",24/03/2016
Brambles,Adults & Social - Client Charges,Long Term Team - LD,-356.28,0,-356.28,24/03/2016
Bramford Primary School,Grants and Subscriptions,CLA Pupil Premium Grant,"1,000.00",0,"1,000.00",21/03/2016
Brancaster Care Homes Ltd,Residential Placements,Long Term Team - OP,"3,892.71",0,"3,892.71",28/01/2016
Brancaster Care Homes Ltd,Residential Placements,Long Term Team - OP,"3,641.57",0,"3,641.57",25/02/2016
Brancaster Care Homes Ltd,Residential Placements,Long Term Team - OP,"3,892.72",0,"3,892.72",29/03/2016
Brent Council,Secure Placement  for Children,P-DSG Transport Educ - Ops,"1,304.00",0,"1,304.00",06/01/2016
Brent Council,Secure Placement  for Children,P-DSG Transport Educ - Ops,780,0,780,04/02/2016
Brent Council,Secure Placement  for Children,P-DSG Transport Educ - Ops,"1,170.00",0,"1,170.00",08/03/2016
Brent Council,Other Agencies/Local Authorities 3rd Party Payment,Personalisation 3 Care Management,"3,000.00",0,"3,000.00",14/03/2016
Brian McKenna & Co.,Legal Fees/Advocacy,Hounslow Inter Authority Agreement,720,0,720,08/02/2016
Bridge Networks Ltd,Landlord Repairs Exit Costs,,600,120,720,12/01/2016
Bright Futures Care Ltd,Residential Schools,Ind & Non Maint Res Sch,"8,095.24",0,"8,095.24",23/02/2016
Bright Futures Care Ltd,Residential Placements,Long Term Team - LD,"31,172.29",0,"31,172.29",24/02/2016
Bright Futures Care Ltd,Residential Placements,Long Term Team - LD,"6,710.71",0,"6,710.71",24/03/2016
Bright Kidz Pre-School Ltd,Voluntary Organisations TPP,Dsg Nursery Educ Grant 3yrs & 4yrs,"3,564.00",0,"3,564.00",05/01/2016
Bright Kidz Pre-School Ltd,Voluntary Organisations TPP,Dsg Nursery Educ Grant 3yrs & 4yrs,"8,916.00",0,"8,916.00",14/03/2016
Bright Stars Nursery,Voluntary Organisations TPP,Dsg Nursery Educ Grant 3yrs & 4yrs,700,0,700,05/01/2016
Bright Stars Nursery,Voluntary Organisations TPP,2 year old offer,"2,805.00",0,"2,805.00",25/01/2016
Bright Stars Nursery,Voluntary Organisations TPP,2 year old offer,"3,630.00",0,"3,630.00",07/03/2016
Bright Start Day Care,Voluntary Organisations TPP,2 year old offer,"1,000.00",0,"1,000.00",05/01/2016
Bright Start Day Care,Voluntary Organisations TPP,Dsg Nursery Educ Grant 3yrs & 4yrs,"5,346.00",0,"5,346.00",05/01/2016
Bright Start Day Care,Voluntary Organisations TPP,Dsg Nursery Educ Grant 3yrs & 4yrs,640.2,0,640.2,07/03/2016
Bright Start Day Care,Voluntary Organisations TPP,2 year old offer,"1,815.00",0,"1,815.00",07/03/2016
Bright Start Day Care,Voluntary Organisations TPP,2 year old offer,"3,537.50",0,"3,537.50",07/03/2016
Bright Start Day Care,Voluntary Organisations TPP,Dsg Nursery Educ Grant 3yrs & 4yrs,"5,504.55",0,"5,504.55",07/03/2016
Bright Start Day Care,Voluntary Organisations TPP,2 year old offer,907.5,0,907.5,30/03/2016
British Parking Association,Grants and Subscriptions,Car Parking,"2,158.00",431.6,"2,589.60",08/03/2016
British Red Cross,Staff training (General),Community & Environment,-595,-119,-714,23/03/2016
British Red Cross,Staff training (General),Security & Out of Hours,-582,-116.4,-698.4,19/01/2016
British Red Cross,Staff training (General),Security & Out of Hours,582,116.4,698.4,19/01/2016
British Standards Institution,Other Agencies/Local Authorities 3rd Party Payment,Building Control Chargeable,899,179.8,"1,078.80",23/03/2016
Brook House (Barchester Healthcare),Nursing Care,Long Term Team - PD,"1,285.71",0,"1,285.71",26/01/2016
Brook House (Barchester Healthcare),Adults & Social - Client Charges,Long Term Team - PD,-115.6,0,-115.6,26/01/2016
Brook House (Barchester Healthcare),Recovery of Costs (External - Non Vatable),Long Term Team - PD,-160,0,-160,26/01/2016
Brook House (Barchester Healthcare),Adults & Social - Client Charges,Long Term Team - PD,-443.52,0,-443.52,26/01/2016
Brook House (Barchester Healthcare),Recovery of Costs (External - Non Vatable),Long Term Team - PD,-496,0,-496,26/01/2016
Brook House (Barchester Healthcare),Nursing Care,Long Term Team - PD,"4,212.06",0,"4,212.06",26/01/2016
Brook House (Barchester Healthcare),Adults & Social - Client Charges,Long Term Team - PD,-414.91,0,-414.91,24/02/2016
Brook House (Barchester Healthcare),Recovery of Costs (External - Non Vatable),Long Term Team - PD,-464,0,-464,24/02/2016
Brook House (Barchester Healthcare),Nursing Care,Long Term Team - PD,"3,940.31",0,"3,940.31",24/02/2016
Brook House (Barchester Healthcare),Adults & Social - Client Charges,Long Term Team - PD,-443.52,0,-443.52,24/03/2016
Brook House (Barchester Healthcare),Recovery of Costs (External - Non Vatable),Long Term Team - PD,-496,0,-496,24/03/2016
Brook House (Barchester Healthcare),Nursing Care,Long Term Team - PD,"4,212.06",0,"4,212.06",24/03/2016
Brookdale Healthcare Ltd,Residential Placements,Long Term Team - LD,"11,315.00",0,"11,315.00",28/01/2016
Brookdale Healthcare Ltd,Adults & Social - Client Charges,Long Term Team - LD,-451.63,0,-451.63,28/01/2016
Brookdale Healthcare Ltd,Adults & Social - Client Charges,Long Term Team - LD,-422.49,0,-422.49,25/02/2016
Brookdale Healthcare Ltd,Residential Placements,Long Term Team - LD,"10,585.00",0,"10,585.00",25/02/2016
Brookdale Healthcare Ltd,Residential Placements,Long Term Team - LD,"11,315.00",0,"11,315.00",29/03/2016
Brookdale Healthcare Ltd,Adults & Social - Client Charges,Long Term Team - LD,-451.62,0,-451.62,29/03/2016
Browne Jacobson LLP,Legal Fees/Advocacy,Liability Insurance,"1,288.50",257.7,"1,546.20",01/02/2016
Browne Jacobson LLP,Legal Fees/Advocacy,Liability Insurance,"1,393.00",278.6,"1,671.60",01/02/2016
Browne Jacobson LLP,Legal Fees/Advocacy,Liability Insurance,"1,516.50",303.3,"1,819.80",01/02/2016
Browne Jacobson LLP,Legal Fees/Advocacy,Liability Insurance,"-1,516.50",-303.3,"-1,819.80",09/02/2016
Browne Jacobson LLP,Legal Fees/Advocacy,Liability Insurance,"-1,393.00",-278.6,"-1,671.60",09/02/2016
Browne Jacobson LLP,Legal Fees/Advocacy,Liability Insurance,"-1,288.50",-257.7,"-1,546.20",09/02/2016
Browne Jacobson LLP,Legal Fees/Advocacy,Liability Insurance,"1,288.50",257.7,"1,546.20",09/02/2016
Browne Jacobson LLP,Legal Fees/Advocacy,Liability Insurance,"1,393.00",278.6,"1,671.60",09/02/2016
Browne Jacobson LLP,Legal Fees/Advocacy,Liability Insurance,"1,516.50",303.3,"1,819.80",09/02/2016
Browne Jacobson LLP,Legal Fees/Advocacy,Liability Insurance,150,0,150,09/02/2016
Browne Jacobson LLP,Legal Fees/Advocacy,Liability Insurance,"1,422.00",284.4,"1,706.40",09/02/2016
Browne Jacobson LLP,Legal Fees/Advocacy,Liability Insurance,691,138.2,829.2,04/03/2016
Browne Jacobson LLP,Legal Fees/Advocacy,Liability Insurance,"1,610.00",322,"1,932.00",07/03/2016
Browne Jacobson LLP,Legal Fees/Advocacy,Liability Insurance,-691,-138.2,-829.2,31/03/2016
Browne Jacobson LLP,Legal Fees/Advocacy,Liability Insurance,691,138.2,829.2,31/03/2016
Brunswick Park Medical Practice,Miscellaneous Supplies & Services Cost,Barnet: Health Check Programme,"1,420.00",0,"1,420.00",21/03/2016
Bryn Melyn Care,Residential Placements,Childrens Placements,"22,674.29",0,"22,674.29",06/01/2016
Bryn Melyn Care,Residential Placements,Childrens Placements,711.6,0,711.6,08/02/2016
Bryn Melyn Care,Residential Placements,Childrens Placements,"15,360.00",0,"15,360.00",08/02/2016
Bryn Melyn Care,Residential Placements,Childrens Placements,"6,971.43",0,"6,971.43",08/03/2016
Bryn Melyn Care,Residential Placements,Childrens Placements,"20,217.14",0,"20,217.14",08/03/2016
Bryn Melyn Care,Grants and Subscriptions,CLA Pupil Premium Grant,500,0,500,21/03/2016
BSC Holdings Ltd,Furniture Purchase and Repair,,885.86,177.17,"1,063.03",07/03/2016
BSC Holdings Ltd,Furniture Purchase and Repair,,"6,960.02","1,392.00","8,352.02",30/03/2016
BT CSDP,"Equipment Lease, Purchase, Maintenance and Repair",Divisional Director Environment & Cultur,700,140,840,08/01/2016
BT OpenReach,"Equipment Lease, Purchase, Maintenance and Repair",,"4,041.99",808.4,"4,850.39",04/01/2016
BT OpenReach,"Equipment Lease, Purchase, Maintenance and Repair",,"6,508.93","1,301.79","7,810.72",08/03/2016
BT Payphones,"Private Contractors, Third Party Payments",,"2,621.00",524.2,"3,145.20",08/03/2016
Bt Plc,Mobile Phone Charges,Procurement Bt,"9,817.72","1,963.54","11,781.26",05/01/2016
Bt Plc,Mobile Phone Charges,Procurement Bt,"9,719.41","1,943.88","11,663.29",17/02/2016
Bt Plc,Mobile Phone Charges,Procurement Bt,"28,303.62","5,660.72","33,964.34",17/02/2016
Bt Plc,Mobile Phone Charges,Procurement Bt,"10,850.76","2,170.15","13,020.91",17/03/2016
BT Redcare,"Equipment Lease, Purchase, Maintenance and Repair",Closed Circuit TV Management,"57,259.18","11,451.84","68,711.02",13/01/2016
BT Redcare,"Equipment Lease, Purchase, Maintenance and Repair",Closed Circuit TV Management,"16,509.25","3,301.85","19,811.10",01/02/2016
BT Redcare,"Equipment Lease, Purchase, Maintenance and Repair",Closed Circuit TV Management,924,184.8,"1,108.80",09/03/2016
Bubar Montessori Nursery,Voluntary Organisations TPP,Dsg Nursery Educ Grant 3yrs & 4yrs,"2,673.00",0,"2,673.00",05/01/2016
Bubar Montessori Nursery,Voluntary Organisations TPP,Dsg Nursery Educ Grant 3yrs & 4yrs,"4,405.50",0,"4,405.50",07/03/2016
Bubsy Pre-School,Voluntary Organisations TPP,Dsg Nursery Educ Grant 3yrs & 4yrs,"2,673.00",0,"2,673.00",06/01/2016
Bubsy Pre-School,Voluntary Organisations TPP,2 year old offer,"2,722.50",0,"2,722.50",06/01/2016
Bubsy Pre-School,Voluntary Organisations TPP,2 year old offer,"3,176.25",0,"3,176.25",06/01/2016
Bubsy Pre-School,Voluntary Organisations TPP,Dsg Nursery Educ Grant 3yrs & 4yrs,"4,158.00",0,"4,158.00",06/01/2016
Bubsy Pre-School,Transfers,2 year old offer,"10,500.00",0,"10,500.00",03/03/2016
Bubsy Pre-School,Voluntary Organisations TPP,Dsg Nursery Educ Grant 3yrs & 4yrs,"4,078.80",0,"4,078.80",07/03/2016
Bubsy Pre-School,Voluntary Organisations TPP,2 year old offer,"5,981.25",0,"5,981.25",07/03/2016
Bubsy Pre-School,Voluntary Organisations TPP,Dsg Nursery Educ Grant 3yrs & 4yrs,"7,082.85",0,"7,082.85",07/03/2016
Bubsy Pre-School,Voluntary Organisations TPP,2 year old offer,"8,580.00",0,"8,580.00",07/03/2016
Buckingham Montessori School,Voluntary Organisations TPP,2 year old offer,"4,083.75",0,"4,083.75",05/01/2016
Buckingham Montessori School,Voluntary Organisations TPP,Dsg Nursery Educ Grant 3yrs & 4yrs,"8,019.00",0,"8,019.00",05/01/2016
Buckingham Montessori School,Voluntary Organisations TPP,2 year old offer,"4,496.25",0,"4,496.25",07/03/2016
Buckingham Montessori School,Voluntary Organisations TPP,Dsg Nursery Educ Grant 3yrs & 4yrs,"14,650.35",0,"14,650.35",07/03/2016
Buckinghamshire County Council,Other Professional Fees,HR - Organisational Development,"19,966.67","3,993.33","23,960.00",26/02/2016
Buckinghamshire County Council,Other Professional Fees,HR - Organisational Development,"19,966.67","3,993.33","23,960.00",23/03/2016
Buckinghamshire County Council,Other Professional Fees,HR - Organisational Development,"19,966.67","3,993.33","23,960.00",24/03/2016
Buckinghamshire Healthcare NHS Trus,Miscellaneous Supplies & Services Cost,Harrow: Sexual Health Services,867.3,0,867.3,23/02/2016
Bupa Care Homes,Adults & Social - Client Charges,Long Term Team - OP,-609.24,0,-609.24,26/01/2016
Bupa Care Homes,Residential Placements,Long Term Team - OP,"1,996.40",0,"1,996.40",26/01/2016
Bupa Care Homes,Residential Placements,Long Term Team - OP,"1,867.60",0,"1,867.60",24/02/2016
Bupa Care Homes,Adults & Social - Client Charges,Long Term Team - OP,-569.93,0,-569.93,24/02/2016
Bupa Care Homes,Residential Placements,Long Term Team - OP,"1,996.40",0,"1,996.40",24/03/2016
Bupa Care Homes,Adults & Social - Client Charges,Long Term Team - OP,-609.24,0,-609.24,24/03/2016
Bupa Care Homes,Adults & Social - Client Charges,Long Term Team - OP,-530.81,0,-530.81,26/01/2016
Bupa Care Homes,Nursing Care,Long Term Team - OP,"2,733.36",0,"2,733.36",26/01/2016
Bupa Care Homes,Recovery of Costs (External - Non Vatable),Long Term Team - OP,-496,0,-496,26/01/2016
Bupa Care Homes,Nursing Care,Long Term Team - OP,"2,557.01",0,"2,557.01",24/02/2016
Bupa Care Homes,Recovery of Costs (External - Non Vatable),Long Term Team - OP,-464,0,-464,24/02/2016
Bupa Care Homes,Adults & Social - Client Charges,Long Term Team - OP,-496.56,0,-496.56,24/02/2016
Bupa Care Homes,Nursing Care,Long Term Team - OP,"2,733.36",0,"2,733.36",24/03/2016
Bupa Care Homes,Recovery of Costs (External - Non Vatable),Long Term Team - OP,-496,0,-496,24/03/2016
Bupa Care Homes,Adults & Social - Client Charges,Long Term Team - OP,-530.81,0,-530.81,24/03/2016
Bupa Care Homes,Recovery of Costs (External - Non Vatable),Long Term Team - OP,-192,0,-192,26/01/2016
Bupa Care Homes,Adults & Social - Client Charges,Long Term Team - OP,-223.37,0,-223.37,26/01/2016
Bupa Care Homes,Nursing Care,Long Term Team - OP,"1,056.00",0,"1,056.00",26/01/2016
Bupa Care Homes,Nursing Care,Long Term Team - OP,"2,874.98",0,"2,874.98",26/01/2016
Bupa Care Homes,Recovery of Costs (External - Non Vatable),Long Term Team - OP,-496,0,-496,26/01/2016
Bupa Care Homes,Adults & Social - Client Charges,Long Term Team - OP,-740.68,0,-740.68,26/01/2016
Bupa Care Homes,Adults & Social - Client Charges,Long Term Team - OP,-668.01,0,-668.01,11/02/2016
Bupa Care Homes,Recovery of Costs (External - Non Vatable),Long Term Team - OP,-304,0,-304,11/02/2016
Bupa Care Homes,Nursing Care,Long Term Team - OP,"1,675.01",0,"1,675.01",11/02/2016
Bupa Care Homes,Adults & Social - Client Charges,Long Term Team - OP,"-1,019.60",0,"-1,019.60",24/02/2016
Bupa Care Homes,Recovery of Costs (External - Non Vatable),Long Term Team - OP,-464,0,-464,24/02/2016
Bupa Care Homes,Nursing Care,Long Term Team - OP,"2,556.60",0,"2,556.60",24/02/2016
Bupa Care Homes,Adults & Social - Client Charges,Long Term Team - OP,-692.89,0,-692.89,24/02/2016
Bupa Care Homes,Recovery of Costs (External - Non Vatable),Long Term Team - OP,-464,0,-464,24/02/2016
Bupa Care Homes,Nursing Care,Long Term Team - OP,"2,689.50",0,"2,689.50",24/02/2016
Bupa Care Homes,Adults & Social - Client Charges,Long Term Team - OP,794.13,0,794.13,09/03/2016
Bupa Care Homes,Nursing Care,Long Term Team - OP,"2,874.99",0,"2,874.99",24/03/2016
Bupa Care Homes,Recovery of Costs (External - Non Vatable),Long Term Team - OP,-496,0,-496,24/03/2016
Bupa Care Homes,Adults & Social - Client Charges,Long Term Team - OP,-740.68,0,-740.68,24/03/2016
Bupa Care Homes,Recovery of Costs (External - Non Vatable),Long Term Team - PD,-496,0,-496,28/01/2016
Bupa Care Homes,Nursing Care,Long Term Team - PD,"4,549.07",0,"4,549.07",28/01/2016
Bupa Care Homes,Adults & Social - Client Charges,Long Term Team - PD,-356.28,0,-356.28,28/01/2016
Bupa Care Homes,Adults & Social - Client Charges,Long Term Team - PD,-333.29,0,-333.29,25/02/2016
Bupa Care Homes,Nursing Care,Long Term Team - PD,"4,255.58",0,"4,255.58",25/02/2016
Bupa Care Homes,Recovery of Costs (External - Non Vatable),Long Term Team - PD,-464,0,-464,25/02/2016
Bupa Care Homes,Adults & Social - Client Charges,Long Term Team - PD,-356.28,0,-356.28,29/03/2016
Bupa Care Homes,Recovery of Costs (External - Non Vatable),Long Term Team - PD,-496,0,-496,29/03/2016
Bupa Care Homes,Nursing Care,Long Term Team - PD,"4,549.08",0,"4,549.08",29/03/2016
Buro Happold Limited,Legal Fees/Advocacy,Harrow Arts Centre,"4,450.00",890,"5,340.00",08/02/2016
Bushey Academy,Other Professional Fees,Dsg Outborough Placement-Fees,"-3,750.00",0,"-3,750.00",10/02/2016
Bushey Academy,Other Professional Fees,Dsg Outborough Placement-Fees,"1,250.00",0,"1,250.00",10/02/2016
Bushey Academy,Other Professional Fees,Dsg Outborough Placement-Fees,"1,250.00",0,"1,250.00",10/02/2016
Bushey Academy,Other Professional Fees,Dsg Outborough Placement-Fees,"1,250.00",0,"1,250.00",10/02/2016
Bushey Academy,Other Professional Fees,Dsg Outborough Placement-Fees,"3,750.00",0,"3,750.00",10/02/2016
Bushey House Beaumont,Residential Placements,Long Term Team - OP,"2,063.71",0,"2,063.71",26/01/2016
Bushey House Beaumont,Adults & Social - Client Charges,Long Term Team - OP,-570.8,0,-570.8,26/01/2016
Bushey House Beaumont,Residential Placements,Long Term Team - OP,"2,063.71",0,"2,063.71",26/01/2016
Bushey House Beaumont,Adults & Social - Client Charges,Long Term Team - OP,-546.04,0,-546.04,26/01/2016
Bushey House Beaumont,Adults & Social - Client Charges,Long Term Team - OP,-533.97,0,-533.97,24/02/2016
Bushey House Beaumont,Residential Placements,Long Term Team - OP,"1,930.57",0,"1,930.57",24/02/2016
Bushey House Beaumont,Residential Placements,Long Term Team - OP,"1,930.57",0,"1,930.57",24/02/2016
Bushey House Beaumont,Adults & Social - Client Charges,Long Term Team - OP,-510.81,0,-510.81,24/02/2016
Bushey House Beaumont,Adults & Social - Client Charges,Long Term Team - OP,-570.8,0,-570.8,24/03/2016
Bushey House Beaumont,Residential Placements,Long Term Team - OP,"2,063.72",0,"2,063.72",24/03/2016
Bushey House Beaumont,Residential Placements,Long Term Team - OP,"2,063.72",0,"2,063.72",24/03/2016
Bushey House Beaumont,Adults & Social - Client Charges,Long Term Team - OP,-546.05,0,-546.05,24/03/2016
Bushey Meads School,Residential Schools,Dsg Outborough Placement-Fees,"3,250.00",0,"3,250.00",08/03/2016
Busy Bees Pre-School,Voluntary Organisations TPP,2 year old offer,"1,815.00",0,"1,815.00",05/01/2016
Busy Bees Pre-School,Voluntary Organisations TPP,Dsg Nursery Educ Grant 3yrs & 4yrs,"2,290.50",0,"2,290.50",05/01/2016
Busy Bees Pre-School,Voluntary Organisations TPP,2 year old offer,"2,640.00",0,"2,640.00",07/03/2016
Busy Bees Pre-School,Voluntary Organisations TPP,Dsg Nursery Educ Grant 3yrs & 4yrs,"5,183.40",0,"5,183.40",07/03/2016
BUTE LTD,Staff training (General),The Firs,"1,700.00",340,"2,040.00",02/03/2016
Buttress,Consultants Fees,,"12,890.97","2,578.19","15,469.16",27/01/2016
Buttress,Consultants Fees,,"12,890.97","2,578.19","15,469.16",24/03/2016
Buzy Bees Montessori School,Voluntary Organisations TPP,2 year old offer,"1,663.75",0,"1,663.75",05/01/2016
Buzy Bees Montessori School,Voluntary Organisations TPP,Dsg Nursery Educ Grant 3yrs & 4yrs,"3,267.00",0,"3,267.00",05/01/2016
Buzy Bees Montessori School,Voluntary Organisations TPP,2 year old offer,"7,411.25",0,"7,411.25",07/03/2016
Buzy Bees Montessori School,Voluntary Organisations TPP,Dsg Nursery Educ Grant 3yrs & 4yrs,"8,865.45",0,"8,865.45",07/03/2016
BYRON COURT PRIMARY SCHOOL,Grants and Subscriptions,CLA Pupil Premium Grant,"1,500.00",0,"1,500.00",12/01/2016
BYRON COURT PRIMARY SCHOOL,Grants and Subscriptions,CLA Pupil Premium Grant,"1,500.00",0,"1,500.00",21/03/2016
C & K Healthcare Ltd,Adults & Social - Client Charges,Long Term Team - OP,451.07,0,451.07,26/01/2016
C & K Healthcare Ltd,Residential Placements,Long Term Team - OP,"-1,910.71",0,"-1,910.71",26/01/2016
C & K Healthcare Ltd,Adults & Social - Client Charges,Long Term Team - OP,-636.16,0,-636.16,26/01/2016
C & K Healthcare Ltd,Residential Placements,Long Term Team - OP,"2,391.43",0,"2,391.43",26/01/2016
C & K Healthcare Ltd,Adults & Social - Client Charges,Long Term Team - OP,-559.33,0,-559.33,26/01/2016
C & K Healthcare Ltd,Residential Placements,Long Term Team - OP,"2,347.14",0,"2,347.14",26/01/2016
C & K Healthcare Ltd,Respite Costs,Long Term Team - OP,925.72,0,925.72,24/02/2016
C & K Healthcare Ltd,Adults & Social - Client Charges,Long Term Team - OP,-400.79,0,-400.79,24/02/2016
C & K Healthcare Ltd,Adults & Social - Client Charges,Long Term Team - OP,-595.12,0,-595.12,24/02/2016
C & K Healthcare Ltd,Residential Placements,Long Term Team - OP,"2,237.14",0,"2,237.14",24/02/2016
C & K Healthcare Ltd,Residential Placements,Long Term Team - OP,"2,195.71",0,"2,195.71",24/02/2016
C & K Healthcare Ltd,Adults & Social - Client Charges,Long Term Team - OP,-523.24,0,-523.24,24/02/2016
C & K Healthcare Ltd,Adults & Social - Client Charges,Long Term Team - OP,-559.33,0,-559.33,24/03/2016
C & K Healthcare Ltd,Residential Placements,Long Term Team - OP,"2,347.15",0,"2,347.15",24/03/2016
C E Flynn Builders & Decorators,Landlord Repairs Exit Costs,,"5,479.00",0,"5,479.00",03/02/2016
C E Flynn Builders & Decorators,Landlord Repairs Exit Costs,,"5,791.60",0,"5,791.60",22/03/2016
Cadmap Ltd,Other Professional Fees,Drainage Maintenance,"2,250.00",450,"2,700.00",07/03/2016
Cadmap Ltd,Other Professional Fees,Drainage Maintenance,850,170,"1,020.00",15/03/2016
Cadmap Ltd,Other Professional Fees,,"1,650.00",330,"1,980.00",22/03/2016
Caitlin Ferris,Legal Fees/Advocacy,Hounslow Inter Authority Agreement,550,110,660,16/03/2016
Caitlin Ferris,Legal Fees/Advocacy,Hounslow Inter Authority Agreement,725,145,870,30/03/2016
Caitlin Ferris,Legal Fees/Advocacy,Barnet Council Legal Services,725,145,870,30/03/2016
Calderbrook Construction Ltd,Highways - Enforcement,Environmental Compliance,500,0,500,17/02/2016
Callcredit Limited,Grants and Subscriptions,Tenant Services,"1,500.00",300,"1,800.00",02/03/2016
CALM Training Services,Miscellaneous Supplies & Services Cost,In House Provided Services Management,245.38,0,245.38,25/02/2016
CALM Training Services,Miscellaneous Supplies & Services Cost,In House Provided Services Management,"1,411.37",282.27,"1,693.64",25/02/2016
CALM Training Services,Miscellaneous Supplies & Services Cost,In House Provided Services Management,131.93,0,131.93,16/03/2016
CALM Training Services,Miscellaneous Supplies & Services Cost,In House Provided Services Management,670.96,134.19,805.15,16/03/2016
CALM Training Services,Miscellaneous Supplies & Services Cost,In House Provided Services Management,131.44,0,131.44,16/03/2016
CALM Training Services,Miscellaneous Supplies & Services Cost,In House Provided Services Management,672.21,134.44,806.65,16/03/2016
Cambian Childcare Ltd,Residential Placements,Long Term Team - LD,"2,037.14",0,"2,037.14",26/01/2016
Cambian Childcare Ltd,Residential Placements,Long Term Team - LD,"3,372.80",0,"3,372.80",26/01/2016
Cambian Childcare Ltd,Adults & Social - Client Charges,Long Term Team - LD,-356.28,0,-356.28,26/01/2016
Cambian Childcare Ltd,Residential Placements,Long Term Team - LD,"1,905.71",0,"1,905.71",24/02/2016
Cambian Childcare Ltd,Residential Placements,Long Term Team - LD,"3,155.20",0,"3,155.20",24/02/2016
Cambian Childcare Ltd,Adults & Social - Client Charges,Long Term Team - LD,-333.29,0,-333.29,24/02/2016
Cambian Childcare Ltd,Residential Placements,Long Term Team - LD,"2,037.15",0,"2,037.15",24/03/2016
Cambian Childcare Ltd,Residential Placements,Long Term Team - LD,"3,372.80",0,"3,372.80",24/03/2016
Cambian Childcare Ltd,Adults & Social - Client Charges,Long Term Team - LD,-356.28,0,-356.28,24/03/2016
Cameron Makenzie Bathrooms by Desig,Landlord Repairs Exit Costs,,"7,172.16",0,"7,172.16",06/01/2016
Cameron Makenzie Bathrooms by Desig,Landlord Repairs Exit Costs,,"5,850.00","1,170.00","7,020.00",14/01/2016
Cameron Makenzie Bathrooms by Desig,Landlord Repairs Exit Costs,,"6,600.00","1,320.00","7,920.00",24/02/2016
Cameron Makenzie Bathrooms by Desig,Landlord Repairs Exit Costs,,"6,080.00","1,216.00","7,296.00",04/03/2016
Cameron Makenzie Bathrooms by Desig,Landlord Repairs Exit Costs,,720,0,720,10/03/2016
Cameron Makenzie Bathrooms by Desig,Landlord Repairs Exit Costs,,"4,320.00",0,"4,320.00",10/03/2016
Cameron Makenzie Bathrooms by Desig,Landlord Repairs Exit Costs,,"6,290.00","1,258.00","7,548.00",11/03/2016
Cameron Makenzie Bathrooms by Desig,Landlord Repairs Exit Costs,,"5,710.00",0,"5,710.00",29/03/2016
Camphill Devon Community Ltd,Residential Placements,Long Term Team - LD,"2,110.04",0,"2,110.04",26/01/2016
Camphill Devon Community Ltd,Adults & Social - Client Charges,Long Term Team - LD,-356.28,0,-356.28,26/01/2016
Camphill Devon Community Ltd,Adults & Social - Client Charges,Long Term Team - LD,-333.29,0,-333.29,24/02/2016
Camphill Devon Community Ltd,Residential Placements,Long Term Team - LD,"1,973.91",0,"1,973.91",24/02/2016
Camphill Devon Community Ltd,Adults & Social - Client Charges,Long Term Team - LD,-356.28,0,-356.28,24/03/2016
Camphill Devon Community Ltd,Residential Placements,Long Term Team - LD,"2,110.03",0,"2,110.03",24/03/2016
CANDLE COURT NURSING HOME,Nursing Care,Long Term Team - OP,"-1,660.72",0,"-1,660.72",13/01/2016
CANDLE COURT NURSING HOME,Nursing Care,Long Term Team - OP,"3,321.43",0,"3,321.43",13/01/2016
CANDLE COURT NURSING HOME,Recovery of Costs (External - Non Vatable),Long Term Team - OP,-496,0,-496,13/01/2016
CANDLE COURT NURSING HOME,Nursing Care,Long Term Team - OP,"3,321.43",0,"3,321.43",13/01/2016
CANDLE COURT NURSING HOME,Adults & Social - Client Charges,Long Term Team - OP,-577.84,0,-577.84,13/01/2016
CANDLE COURT NURSING HOME,Nursing Care,Long Term Team - OP,"2,657.15",0,"2,657.15",13/01/2016
CANDLE COURT NURSING HOME,Recovery of Costs (External - Non Vatable),Long Term Team - OP,-496,0,-496,13/01/2016
CANDLE COURT NURSING HOME,Nursing Care,Long Term Team - OP,"3,736.43",0,"3,736.43",13/01/2016
CANDLE COURT NURSING HOME,Nursing Care,Long Term Team - OP,"-1,660.71",0,"-1,660.71",17/02/2016
CANDLE COURT NURSING HOME,Nursing Care,Long Term Team - OP,"3,321.43",0,"3,321.43",17/02/2016
CANDLE COURT NURSING HOME,Recovery of Costs (External - Non Vatable),Long Term Team - OP,-496,0,-496,17/02/2016
CANDLE COURT NURSING HOME,Nursing Care,Long Term Team - OP,"3,321.43",0,"3,321.43",17/02/2016
CANDLE COURT NURSING HOME,Adults & Social - Client Charges,Long Term Team - OP,-624.79,0,-624.79,17/02/2016
CANDLE COURT NURSING HOME,Nursing Care,Long Term Team - OP,"2,657.14",0,"2,657.14",17/02/2016
CANDLE COURT NURSING HOME,Recovery of Costs (External - Non Vatable),Long Term Team - OP,-496,0,-496,17/02/2016
CANDLE COURT NURSING HOME,Nursing Care,Long Term Team - OP,"3,736.43",0,"3,736.43",17/02/2016
CANDLE COURT NURSING HOME,Nursing Care,Long Term Team - OP,"-1,553.57",0,"-1,553.57",21/03/2016
CANDLE COURT NURSING HOME,Nursing Care,Long Term Team - OP,"3,107.14",0,"3,107.14",21/03/2016
CANDLE COURT NURSING HOME,Adults & Social - Client Charges,Long Term Team - OP,-605.4,0,-605.4,21/03/2016
CANDLE COURT NURSING HOME,Nursing Care,Long Term Team - OP,"3,107.14",0,"3,107.14",21/03/2016
CANDLE COURT NURSING HOME,Recovery of Costs (External - Non Vatable),Long Term Team - OP,-464,0,-464,21/03/2016
CANDLE COURT NURSING HOME,Nursing Care,Long Term Team - OP,"2,485.71",0,"2,485.71",21/03/2016
CANDLE COURT NURSING HOME,Nursing Care,Long Term Team - OP,"3,495.37",0,"3,495.37",21/03/2016
CANDLE COURT NURSING HOME,Recovery of Costs (External - Non Vatable),Long Term Team - OP,-464,0,-464,21/03/2016
Cannon Barn Montessori School,Voluntary Organisations TPP,Dsg Nursery Educ Grant 3yrs & 4yrs,"10,692.00",0,"10,692.00",05/01/2016
Cannon Barn Montessori School,Voluntary Organisations TPP,Dsg Nursery Educ Grant 3yrs & 4yrs,"25,146.15",0,"25,146.15",07/03/2016
Cannon Barn Montessori School,Voluntary Organisations TPP,Dsg Nursery Educ Grant 3yrs & 4yrs,"2,851.20",0,"2,851.20",31/03/2016
Cannon Lane Pre-School,Residential Schools,Dsg Outborough Placement-Fees,772.16,0,772.16,06/01/2016
Cannon Lane Pre-School,Residential Schools,Dsg Outborough Placement-Fees,"1,436.57",0,"1,436.57",18/01/2016
Cannon Lane Pre-School,Residential Schools,Dsg Outborough Placement-Fees,"1,508.40",0,"1,508.40",18/01/2016
Cannon Lane Pre-School,Voluntary Organisations TPP,Dsg Nursery Educ Grant 3yrs & 4yrs,"6,088.50",0,"6,088.50",05/01/2016
Cannon Lane Pre-School,Voluntary Organisations TPP,2 year old offer,586.67,0,586.67,07/03/2016
Cannon Lane Pre-School,Voluntary Organisations TPP,Dsg Nursery Educ Grant 3yrs & 4yrs,"14,544.75",0,"14,544.75",07/03/2016
Canons Day Nursery,Voluntary Organisations TPP,2 year old offer,"6,352.50",0,"6,352.50",05/01/2016
Canons Day Nursery,Voluntary Organisations TPP,Dsg Nursery Educ Grant 3yrs & 4yrs,"7,722.00",0,"7,722.00",05/01/2016
Canons Day Nursery,Voluntary Organisations TPP,2 year old offer,"9,322.50",0,"9,322.50",07/03/2016
Canons Day Nursery,Voluntary Organisations TPP,Dsg Nursery Educ Grant 3yrs & 4yrs,"14,301.15",0,"14,301.15",07/03/2016
Canons High School,Grants and Subscriptions,CLA Pupil Premium Grant,500,0,500,12/01/2016
Canons High School,Grants and Subscriptions,TU In/Out Boro Accadem. Prov.,"31,611.25",0,"31,611.25",02/02/2016
Canons High School,Grants and Subscriptions,CLA Pupil Premium Grant,500,0,500,21/03/2016
Capel Manor College,Residential Schools,TU - FE Colleges,"2,108.82",0,"2,108.82",27/01/2016
Capel Manor College,Residential Schools,TU - FE Colleges,"2,890.80",0,"2,890.80",27/01/2016
Capel Manor College,Residential Schools,TU - FE Colleges,"3,032.05",0,"3,032.05",27/01/2016
Capel Manor College,Residential Schools,TU - FE Colleges,"6,652.86",0,"6,652.86",27/01/2016
Capita Business Services Ltd,Consultants Fees,Revenues - Dso,"-4,631.77",-926.35,"-5,558.12",05/02/2016
Capita Business Services Ltd,Staff training (General),Procurement,"1,154.34",230.87,"1,385.21",05/02/2016
Capita Business Services Ltd,Consultants Fees,Revenues - Dso,"4,631.77",926.35,"5,558.12",05/02/2016
Capita Business Services Ltd,"Computer Repair, Maintenance",CSI Hub,"1,000.00",200,"1,200.00",10/02/2016
Capita Business Services Ltd,Staff training (General),Learning and Development,620,124,744,12/02/2016
Capita Business Services Ltd,Consultants Fees,Hsg & Com Chg Ben Adm,"20,149.00","4,029.80","24,178.80",18/02/2016
Capita Business Services Ltd,Consultants Fees,Hsg & Com Chg Ben Adm,"44,515.00","8,903.00","53,418.00",23/03/2016
Capita Business Services Ltd,"Computer Software, Purchase and Maintenance",It/Sims Team,"1,350.00",270,"1,620.00",30/03/2016
Capita Business Services Ltd,"Computer Repair, Maintenance",Personalisation 2 Care Management,"1,166.24",233.25,"1,399.49",08/01/2016
Capita Business Services Ltd,"Computer Software, Purchase and Maintenance",,"6,000.00","1,200.00","7,200.00",22/02/2016
Capita Business Travel Ltd,Travel Expenses (Staff),Council Business Travel,997.06,0,997.06,27/01/2016
Capita Business Travel Ltd,Travel Expenses (Staff),Council Business Travel,-610.63,-122.13,-732.76,17/02/2016
Capita Business Travel Ltd,Travel Expenses (Staff),Council Business Travel,610.63,122.13,732.76,17/02/2016
Capita Business Travel Ltd,Travel Expenses (Staff),Council Business Travel,610.63,122.13,732.76,18/02/2016
Capita Business Travel Ltd,Travel Expenses (Staff),Council Business Travel,332.42,66.48,398.9,18/02/2016
Capita Business Travel Ltd,Travel Expenses (Staff),Council Business Travel,545.4,0,545.4,18/02/2016
Capita Business Travel Ltd,Travel Expenses (Staff),Council Business Travel,196.55,0,196.55,18/02/2016
Capita Business Travel Ltd,Travel Expenses (Staff),Council Business Travel,776.13,155.23,931.36,18/02/2016
Capita Business Travel Ltd,Travel Expenses (Staff),Council Business Travel,817.21,0,817.21,24/02/2016
Capita Business Travel Ltd,Travel Expenses (Staff),Council Business Travel,"1,703.87",0,"1,703.87",29/03/2016
Capita Resourcing Ltd,Agency Staff,CRB,"1,565.00",313,"1,878.00",18/01/2016
Capita Resourcing Ltd,Agency Staff,CRB,"7,940.00",0,"7,940.00",18/01/2016
Capita Resourcing Ltd,Agency Staff,CRB,"1,475.00",295,"1,770.00",24/02/2016
Capita Resourcing Ltd,Agency Staff,CRB,"6,996.00",0,"6,996.00",24/02/2016
Capita Resourcing Ltd,Agency Staff,CRB,"1,652.00",330.4,"1,982.40",22/03/2016
Capita Resourcing Ltd,Agency Staff,CRB,"7,242.00",0,"7,242.00",22/03/2016
Capital Home Care,Domiciliary Care,Long Term Team - OP,338.86,0,338.86,29/02/2016
Capital Home Care,Domiciliary Care,Personalisation - OP,188.24,0,188.24,29/02/2016
Capital Home Care,Domiciliary Care,Personalisation - LD,527.1,0,527.1,29/02/2016
Capital Home Care,Domiciliary Care,Personalisation - OP,529.23,0,529.23,29/02/2016
Capital Home Care,Domiciliary Care,Personalisation - OP,577.3,0,577.3,29/02/2016
Capital Home Care,Domiciliary Care,Personalisation - OP,578.56,0,578.56,29/02/2016
Capital Home Care,Domiciliary Care,Personalisation - OP,585.71,0,585.71,29/02/2016
Capital Home Care,Domiciliary Care,Personalisation - OP,598.13,0,598.13,29/02/2016
Capital Home Care,Domiciliary Care,Personalisation - OP,644.19,0,644.19,29/02/2016
Capital Home Care,Domiciliary Care,Personalisation - OP,644.32,0,644.32,29/02/2016
Capital Home Care,Domiciliary Care,Personalisation - OP,644.32,0,644.32,29/02/2016
Capital Home Care,Domiciliary Care,Personalisation - OP,677.7,0,677.7,29/02/2016
Capital Home Care,Domiciliary Care,Personalisation - OP,702.8,0,702.8,29/02/2016
Capital Home Care,Domiciliary Care,Personalisation - OP,819.89,0,819.89,29/02/2016
Capital Home Care,Domiciliary Care,Personalisation - OP,830.43,0,830.43,29/02/2016
Capital Home Care,Domiciliary Care,Personalisation - PD,878.5,0,878.5,29/02/2016
Capital Home Care,Domiciliary Care,Personalisation - OP,962.21,0,962.21,29/02/2016
Capital Home Care,Domiciliary Care,Personalisation - OP,"1,417.40",0,"1,417.40",29/02/2016
Capital Home Care,Domiciliary Care,Personalisation - OP,"1,522.69",0,"1,522.69",29/02/2016
Capital Home Care,Domiciliary Care,Personalisation - PD,"1,522.69",0,"1,522.69",29/02/2016
Capital Home Care,Domiciliary Care,Personalisation - OP,"1,546.16",0,"1,546.16",29/02/2016
Capital Home Care,Domiciliary Care,Personalisation - OP,"1,581.30",0,"1,581.30",29/02/2016
Capital Home Care,Domiciliary Care,Personalisation - OP,"1,639.91",0,"1,639.91",29/02/2016
Capital Home Care,Domiciliary Care,Personalisation - OP,"1,723.49",0,"1,723.49",29/02/2016
Capital Home Care,Domiciliary Care,Personalisation - OP,"1,757.00",0,"1,757.00",29/02/2016
Capital Home Care,Domiciliary Care,Personalisation - OP,"1,991.31",0,"1,991.31",29/02/2016
Capital Home Care,Domiciliary Care,Personalisation - OP,"2,668.88",0,"2,668.88",29/02/2016
Capital Home Care,Domiciliary Care,Personalisation - OP,"3,338.30",0,"3,338.30",29/02/2016
Capital Home Care (UK) Ltd - ISF,Social Care Personal Budgets,Personalisation - OP,564.64,0,564.64,18/01/2016
Capital Home Care (UK) Ltd - ISF,Adults & Social - Net P.B.'s,Personalisation - OP,-25.16,0,-25.16,18/01/2016
Capital Home Care (UK) Ltd - ISF,Social Care Personal Budgets,Personalisation - OP,553.16,0,553.16,18/01/2016
Capital Home Care (UK) Ltd - ISF,Social Care Personal Budgets,Personalisation - OP,556.6,0,556.6,18/01/2016
Capital Home Care (UK) Ltd - ISF,Social Care Personal Budgets,Personalisation - PD,572.56,0,572.56,18/01/2016
Capital Home Care (UK) Ltd - ISF,Social Care Personal Budgets,Personalisation - OP,677.6,0,677.6,18/01/2016
Capital Home Care (UK) Ltd - ISF,Adults & Social - Net P.B.'s,Personalisation - OP,-103.96,0,-103.96,18/01/2016
Capital Home Care (UK) Ltd - ISF,Social Care Personal Budgets,Personalisation - PD,645.16,0,645.16,18/01/2016
Capital Home Care (UK) Ltd - ISF,Social Care Personal Budgets,Personalisation - OP,664.68,0,664.68,18/01/2016
Capital Home Care (UK) Ltd - ISF,Social Care Personal Budgets,Personalisation - OP,750.2,0,750.2,18/01/2016
Capital Home Care (UK) Ltd - ISF,Social Care Personal Budgets,Personalisation - OP,790.36,0,790.36,18/01/2016
Capital Home Care (UK) Ltd - ISF,Social Care Personal Budgets,Personalisation - OP,903.44,0,903.44,18/01/2016
Capital Home Care (UK) Ltd - ISF,Social Care Personal Budgets,Personalisation - OP,903.6,0,903.6,18/01/2016
Capital Home Care (UK) Ltd - ISF,Social Care Personal Budgets,Personalisation - OP,927.8,0,927.8,18/01/2016
Capital Home Care (UK) Ltd - ISF,Social Care Personal Budgets,Personalisation - OP,"1,129.16",0,"1,129.16",18/01/2016
Capital Home Care (UK) Ltd - ISF,Social Care Personal Budgets,Personalisation - PD,"1,137.40",0,"1,137.40",18/01/2016
Capital Home Care (UK) Ltd - ISF,Adults & Social - Net P.B.'s,Personalisation - OP,-210.2,0,-210.2,18/01/2016
Capital Home Care (UK) Ltd - ISF,Social Care Personal Budgets,Personalisation - OP,"1,468.00",0,"1,468.00",18/01/2016
Capital Home Care (UK) Ltd - ISF,Social Care Personal Budgets,Personalisation - OP,"1,488.30",0,"1,488.30",18/01/2016
Capital Home Care (UK) Ltd - ISF,Adults & Social - Net P.B.'s,Personalisation - OP,-203.36,0,-203.36,18/01/2016
Capital Home Care (UK) Ltd - ISF,Social Care Personal Budgets,Personalisation - OP,"1,355.20",0,"1,355.20",18/01/2016
Capital Home Care (UK) Ltd - ISF,Adults & Social - Net P.B.'s,Personalisation - OP,-53.96,0,-53.96,18/01/2016
Capital Home Care (UK) Ltd - ISF,Adults & Social - Net P.B.'s,Personalisation - PD,-71.92,0,-71.92,18/01/2016
Capital Home Care (UK) Ltd - ISF,Social Care Personal Budgets,Personalisation - PD,"1,379.40",0,"1,379.40",18/01/2016
Capital Home Care (UK) Ltd - ISF,Social Care Personal Budgets,Personalisation - OP,"1,694.00",0,"1,694.00",18/01/2016
Capital Home Care (UK) Ltd - ISF,Adults & Social - Net P.B.'s,Personalisation - OP,-68.4,0,-68.4,18/01/2016
Capital Home Care (UK) Ltd - ISF,Social Care Personal Budgets,Personalisation - OP,"1,863.40",0,"1,863.40",18/01/2016
Capital Home Care (UK) Ltd - ISF,Adults & Social - Net P.B.'s,Personalisation - OP,-61.44,0,-61.44,18/01/2016
Capital Home Care (UK) Ltd - ISF,Social Care Personal Budgets,Personalisation - OP,"2,436.56",0,"2,436.56",18/01/2016
Capital Home Care (UK) Ltd - ISF,Social Care Personal Budgets,Personalisation - OP,"5,154.75",0,"5,154.75",18/01/2016
Capital Home Care (UK) Ltd - ISF,Adults & Social - Net P.B.'s,Personalisation - OP,-25.16,0,-25.16,18/02/2016
Capital Home Care (UK) Ltd - ISF,Social Care Personal Budgets,Personalisation - OP,564.64,0,564.64,18/02/2016
Capital Home Care (UK) Ltd - ISF,Social Care Personal Budgets,Personalisation - OP,553.16,0,553.16,18/02/2016
Capital Home Care (UK) Ltd - ISF,Social Care Personal Budgets,Personalisation - OP,556.6,0,556.6,18/02/2016
Capital Home Care (UK) Ltd - ISF,Social Care Personal Budgets,Personalisation - PD,572.56,0,572.56,18/02/2016
Capital Home Care (UK) Ltd - ISF,Adults & Social - Net P.B.'s,Personalisation - OP,-103.96,0,-103.96,18/02/2016
Capital Home Care (UK) Ltd - ISF,Social Care Personal Budgets,Personalisation - OP,677.6,0,677.6,18/02/2016
Capital Home Care (UK) Ltd - ISF,Social Care Personal Budgets,Personalisation - PD,645.16,0,645.16,18/02/2016
Capital Home Care (UK) Ltd - ISF,Social Care Personal Budgets,Personalisation - OP,664.68,0,664.68,18/02/2016
Capital Home Care (UK) Ltd - ISF,Social Care Personal Budgets,Personalisation - OP,750.2,0,750.2,18/02/2016
Capital Home Care (UK) Ltd - ISF,Social Care Personal Budgets,Personalisation - OP,790.36,0,790.36,18/02/2016
Capital Home Care (UK) Ltd - ISF,Social Care Personal Budgets,Personalisation - OP,903.44,0,903.44,18/02/2016
Capital Home Care (UK) Ltd - ISF,Social Care Personal Budgets,Personalisation - OP,903.6,0,903.6,18/02/2016
Capital Home Care (UK) Ltd - ISF,Social Care Personal Budgets,Personalisation - OP,927.8,0,927.8,18/02/2016
Capital Home Care (UK) Ltd - ISF,Social Care Personal Budgets,Personalisation - OP,"1,129.16",0,"1,129.16",18/02/2016
Capital Home Care (UK) Ltd - ISF,Social Care Personal Budgets,Personalisation - PD,"1,137.40",0,"1,137.40",18/02/2016
Capital Home Care (UK) Ltd - ISF,Social Care Personal Budgets,Personalisation - PD,"1,253.49",0,"1,253.49",18/02/2016
Capital Home Care (UK) Ltd - ISF,Social Care Personal Budgets,Personalisation - OP,"1,468.00",0,"1,468.00",18/02/2016
Capital Home Care (UK) Ltd - ISF,Adults & Social - Net P.B.'s,Personalisation - OP,-210.2,0,-210.2,18/02/2016
Capital Home Care (UK) Ltd - ISF,Adults & Social - Net P.B.'s,Personalisation - OP,-53.96,0,-53.96,18/02/2016
Capital Home Care (UK) Ltd - ISF,Social Care Personal Budgets,Personalisation - OP,"1,355.20",0,"1,355.20",18/02/2016
Capital Home Care (UK) Ltd - ISF,Adults & Social - Net P.B.'s,Personalisation - OP,-68.4,0,-68.4,18/02/2016
Capital Home Care (UK) Ltd - ISF,Social Care Personal Budgets,Personalisation - OP,"1,694.00",0,"1,694.00",18/02/2016
Capital Home Care (UK) Ltd - ISF,Social Care Personal Budgets,Personalisation - OP,"1,659.00",0,"1,659.00",18/02/2016
Capital Home Care (UK) Ltd - ISF,Social Care Personal Budgets,Personalisation - OP,"1,863.40",0,"1,863.40",18/02/2016
Capital Home Care (UK) Ltd - ISF,Adults & Social - Net P.B.'s,Personalisation - OP,-61.44,0,-61.44,18/02/2016
Capital Home Care (UK) Ltd - ISF,Social Care Personal Budgets,Personalisation - PD,"2,079.93",0,"2,079.93",18/02/2016
Capital Home Care (UK) Ltd - ISF,Social Care Personal Budgets,Personalisation - PD,"2,413.95",0,"2,413.95",18/02/2016
Capital Home Care (UK) Ltd - ISF,Social Care Personal Budgets,Personalisation - OP,"2,436.56",0,"2,436.56",18/02/2016
Capital Home Care (UK) Ltd - ISF,Social Care Personal Budgets,Personalisation - PD,"4,779.50",0,"4,779.50",18/02/2016
Capital Home Care (UK) Ltd - ISF,Social Care Personal Budgets,Personalisation - PD,508.2,0,508.2,07/03/2016
Capital Home Care (UK) Ltd - ISF,Adults & Social - Net P.B.'s,Personalisation - OP,-25.16,0,-25.16,07/03/2016
Capital Home Care (UK) Ltd - ISF,Social Care Personal Budgets,Personalisation - OP,564.64,0,564.64,07/03/2016
Capital Home Care (UK) Ltd - ISF,Social Care Personal Budgets,Personalisation - PD,548.4,0,548.4,07/03/2016
Capital Home Care (UK) Ltd - ISF,Social Care Personal Budgets,Personalisation - OP,553.16,0,553.16,07/03/2016
Capital Home Care (UK) Ltd - ISF,Social Care Personal Budgets,Personalisation - OP,556.6,0,556.6,07/03/2016
Capital Home Care (UK) Ltd - ISF,Social Care Personal Budgets,Personalisation - PD,572.56,0,572.56,07/03/2016
Capital Home Care (UK) Ltd - ISF,Social Care Personal Budgets,Personalisation - OP,677.6,0,677.6,07/03/2016
Capital Home Care (UK) Ltd - ISF,Adults & Social - Net P.B.'s,Personalisation - OP,-103.96,0,-103.96,07/03/2016
Capital Home Care (UK) Ltd - ISF,Social Care Personal Budgets,Personalisation - PD,645.16,0,645.16,07/03/2016
Capital Home Care (UK) Ltd - ISF,Social Care Personal Budgets,Personalisation - OP,664.68,0,664.68,07/03/2016
Capital Home Care (UK) Ltd - ISF,Social Care Personal Budgets,Personalisation - OP,750.2,0,750.2,07/03/2016
Capital Home Care (UK) Ltd - ISF,Social Care Personal Budgets,Personalisation - OP,790.36,0,790.36,07/03/2016
Capital Home Care (UK) Ltd - ISF,Social Care Personal Budgets,Personalisation - OP,903.44,0,903.44,07/03/2016
Capital Home Care (UK) Ltd - ISF,Social Care Personal Budgets,Personalisation - OP,903.6,0,903.6,07/03/2016
Capital Home Care (UK) Ltd - ISF,Social Care Personal Budgets,Personalisation - OP,927.8,0,927.8,07/03/2016
Capital Home Care (UK) Ltd - ISF,Social Care Personal Budgets,Personalisation - OP,"1,129.16",0,"1,129.16",07/03/2016
Capital Home Care (UK) Ltd - ISF,Social Care Personal Budgets,Personalisation - PD,"1,137.40",0,"1,137.40",07/03/2016
Capital Home Care (UK) Ltd - ISF,Adults & Social - Net P.B.'s,Personalisation - OP,-210.2,0,-210.2,07/03/2016
Capital Home Care (UK) Ltd - ISF,Social Care Personal Budgets,Personalisation - OP,"1,468.00",0,"1,468.00",07/03/2016
Capital Home Care (UK) Ltd - ISF,Social Care Personal Budgets,Personalisation - PD,"1,282.60",0,"1,282.60",07/03/2016
Capital Home Care (UK) Ltd - ISF,Adults & Social - Net P.B.'s,Personalisation - OP,-53.96,0,-53.96,07/03/2016
Capital Home Care (UK) Ltd - ISF,Social Care Personal Budgets,Personalisation - OP,"1,355.20",0,"1,355.20",07/03/2016
Capital Home Care (UK) Ltd - ISF,Social Care Personal Budgets,Personalisation - OP,"1,694.00",0,"1,694.00",07/03/2016
Capital Home Care (UK) Ltd - ISF,Adults & Social - Net P.B.'s,Personalisation - OP,-68.4,0,-68.4,07/03/2016
Capital Home Care (UK) Ltd - ISF,Social Care Personal Budgets,Personalisation - OP,"1,659.00",0,"1,659.00",07/03/2016
Capital Home Care (UK) Ltd - ISF,Social Care Personal Budgets,Personalisation - OP,"1,863.40",0,"1,863.40",07/03/2016
Capital Home Care (UK) Ltd - ISF,Adults & Social - Net P.B.'s,Personalisation - OP,-61.44,0,-61.44,07/03/2016
Capital Home Care (UK) Ltd - ISF,Social Care Personal Budgets,Personalisation - OP,"2,436.56",0,"2,436.56",07/03/2016
Capital Home Care (UK) Ltd - ISF,Social Care Personal Budgets,Personalisation - PD,508.2,0,508.2,18/03/2016
Capital Home Care (UK) Ltd - ISF,Social Care Personal Budgets,Personalisation - OP,564.64,0,564.64,18/03/2016
Capital Home Care (UK) Ltd - ISF,Adults & Social - Net P.B.'s,Personalisation - OP,-25.16,0,-25.16,18/03/2016
Capital Home Care (UK) Ltd - ISF,Adults & Social - Net P.B.'s,Personalisation - OP,-268.08,0,-268.08,18/03/2016
Capital Home Care (UK) Ltd - ISF,Social Care Personal Budgets,Personalisation - OP,809.64,0,809.64,18/03/2016
Capital Home Care (UK) Ltd - ISF,Social Care Personal Budgets,Personalisation - PD,548.4,0,548.4,18/03/2016
Capital Home Care (UK) Ltd - ISF,Social Care Personal Budgets,Personalisation - OP,553.16,0,553.16,18/03/2016
Capital Home Care (UK) Ltd - ISF,Social Care Personal Budgets,Personalisation - PD,572.56,0,572.56,18/03/2016
Capital Home Care (UK) Ltd - ISF,Social Care Personal Budgets,Personalisation - OP,677.6,0,677.6,18/03/2016
Capital Home Care (UK) Ltd - ISF,Adults & Social - Net P.B.'s,Personalisation - OP,-103.96,0,-103.96,18/03/2016
Capital Home Care (UK) Ltd - ISF,Social Care Personal Budgets,Personalisation - PD,645.16,0,645.16,18/03/2016
Capital Home Care (UK) Ltd - ISF,Social Care Personal Budgets,Personalisation - OP,664.68,0,664.68,18/03/2016
Capital Home Care (UK) Ltd - ISF,Social Care Personal Budgets,Personalisation - OP,750.2,0,750.2,18/03/2016
Capital Home Care (UK) Ltd - ISF,Social Care Personal Budgets,Personalisation - OP,790.36,0,790.36,18/03/2016
Capital Home Care (UK) Ltd - ISF,Social Care Personal Budgets,Personalisation - OP,903.44,0,903.44,18/03/2016
Capital Home Care (UK) Ltd - ISF,Social Care Personal Budgets,Personalisation - OP,903.6,0,903.6,18/03/2016
Capital Home Care (UK) Ltd - ISF,Social Care Personal Budgets,Personalisation - OP,927.8,0,927.8,18/03/2016
Capital Home Care (UK) Ltd - ISF,Social Care Personal Budgets,Personalisation - OP,927.95,0,927.95,18/03/2016
Capital Home Care (UK) Ltd - ISF,Social Care Personal Budgets,Personalisation - OP,"1,129.16",0,"1,129.16",18/03/2016
Capital Home Care (UK) Ltd - ISF,Social Care Personal Budgets,Personalisation - PD,"1,137.40",0,"1,137.40",18/03/2016
Capital Home Care (UK) Ltd - ISF,Social Care Personal Budgets,Personalisation - OP,"1,468.00",0,"1,468.00",18/03/2016
Capital Home Care (UK) Ltd - ISF,Adults & Social - Net P.B.'s,Personalisation - OP,-210.2,0,-210.2,18/03/2016
Capital Home Care (UK) Ltd - ISF,Social Care Personal Budgets,Personalisation - OP,"1,355.20",0,"1,355.20",18/03/2016
Capital Home Care (UK) Ltd - ISF,Adults & Social - Net P.B.'s,Personalisation - OP,-53.96,0,-53.96,18/03/2016
Capital Home Care (UK) Ltd - ISF,Social Care Personal Budgets,Personalisation - PD,"1,355.20",0,"1,355.20",18/03/2016
Capital Home Care (UK) Ltd - ISF,Social Care Personal Budgets,Personalisation - OP,"1,694.00",0,"1,694.00",18/03/2016
Capital Home Care (UK) Ltd - ISF,Adults & Social - Net P.B.'s,Personalisation - OP,-68.4,0,-68.4,18/03/2016
Capital Home Care (UK) Ltd - ISF,Social Care Personal Budgets,Personalisation - OP,"1,659.00",0,"1,659.00",18/03/2016
Capital Home Care (UK) Ltd - ISF,Social Care Personal Budgets,Personalisation - OP,"1,923.90",0,"1,923.90",18/03/2016
Capital Home Care (UK) Ltd - ISF,Adults & Social - Net P.B.'s,Personalisation - OP,-131.44,0,-131.44,18/03/2016
Capital Home Care (UK) Ltd - ISF,Social Care Personal Budgets,Personalisation - OP,"1,863.40",0,"1,863.40",18/03/2016
Capital Home Care (UK) Ltd - ISF,Adults & Social - Net P.B.'s,Personalisation - OP,-61.44,0,-61.44,18/03/2016
Capital Home Care (UK) Ltd - ISF,Social Care Personal Budgets,Personalisation - OP,"2,436.56",0,"2,436.56",18/03/2016
Capital Home Care (UK) Ltd - ISF,Adults & Social - Net P.B.'s,Personalisation - PD,"-1,856.56",0,"-1,856.56",18/03/2016
Capital Home Care (UK) Ltd - ISF,Social Care Personal Budgets,Personalisation - PD,"23,897.50",0,"23,897.50",18/03/2016
Capstan Security Ltd,Security Costs,Cedars Childrens Centre,766,153.2,919.2,10/02/2016
Capwell Grange Nursing Home,Recovery of Costs (External - Non Vatable),Long Term Team - PD,-496,0,-496,26/01/2016
Capwell Grange Nursing Home,Adults & Social - Client Charges,Long Term Team - PD,-431.03,0,-431.03,26/01/2016
Capwell Grange Nursing Home,Nursing Care,Long Term Team - PD,"3,809.46",0,"3,809.46",26/01/2016
Capwell Grange Nursing Home,Recovery of Costs (External - Non Vatable),Long Term Team - PD,-464,0,-464,24/02/2016
Capwell Grange Nursing Home,Adults & Social - Client Charges,Long Term Team - PD,-403.22,0,-403.22,24/02/2016
Capwell Grange Nursing Home,Nursing Care,Long Term Team - PD,"3,563.69",0,"3,563.69",24/02/2016
Capwell Grange Nursing Home,Recovery of Costs (External - Non Vatable),Long Term Team - PD,-496,0,-496,24/03/2016
Capwell Grange Nursing Home,Adults & Social - Client Charges,Long Term Team - PD,-431.04,0,-431.04,24/03/2016
Capwell Grange Nursing Home,Nursing Care,Long Term Team - PD,"3,809.45",0,"3,809.45",24/03/2016
Care Accommodation (London) Ltd,Foster Payments,Asylum Client Expenditure,"1,298.70",0,"1,298.70",04/01/2016
Care Accommodation (London) Ltd,Foster Payments,Asylum Client Expenditure,"1,640.04",0,"1,640.04",04/01/2016
Care Accommodation (London) Ltd,Foster Payments,Asylum Client Expenditure,"3,260.60",0,"3,260.60",04/01/2016
Care Accommodation (London) Ltd,Foster Payments,Asylum Client Expenditure,"3,266.10",0,"3,266.10",04/01/2016
Care Accommodation (London) Ltd,Foster Payments,Asylum Client Expenditure,"3,280.70",0,"3,280.70",04/01/2016
Care Accommodation (London) Ltd,Foster Payments,Asylum Client Expenditure,"4,224.67",0,"4,224.67",04/01/2016
Care Accommodation (London) Ltd,Foster Payments,Asylum Client Expenditure,"2,697.00",0,"2,697.00",05/02/2016
Care Accommodation (London) Ltd,Foster Payments,Asylum Client Expenditure,"2,933.10",0,"2,933.10",05/02/2016
Care Accommodation (London) Ltd,Foster Payments,Asylum Client Expenditure,"3,268.10",0,"3,268.10",05/02/2016
Care Accommodation (London) Ltd,Foster Payments,Asylum Client Expenditure,"1,659.68",0,"1,659.68",05/02/2016
Care Accommodation (London) Ltd,Foster Payments,Asylum Client Expenditure,"1,651.42",0,"1,651.42",05/02/2016
Care Accommodation (London) Ltd,Foster Payments,Asylum Client Expenditure,"3,406.76",0,"3,406.76",05/02/2016
Care Accommodation (London) Ltd,Foster Payments,Asylum Client Expenditure,"3,587.10",0,"3,587.10",05/02/2016
Care Accommodation (London) Ltd,Foster Payments,Asylum Client Expenditure,"4,227.49",0,"4,227.49",05/02/2016
Care Accommodation (London) Ltd,Foster Payments,Asylum Client Expenditure,"1,916.60",0,"1,916.60",29/03/2016
Care Accommodation (London) Ltd,Foster Payments,Asylum Client Expenditure,"2,610.00",0,"2,610.00",29/03/2016
Care Accommodation (London) Ltd,Foster Payments,Asylum Client Expenditure,"3,009.50",0,"3,009.50",29/03/2016
Care Accommodation (London) Ltd,Foster Payments,Asylum Client Expenditure,"3,079.54",0,"3,079.54",29/03/2016
Care Accommodation (London) Ltd,Foster Payments,Asylum Client Expenditure,"3,153.20",0,"3,153.20",29/03/2016
Care Accommodation (London) Ltd,Foster Payments,Asylum Client Expenditure,"3,215.10",0,"3,215.10",29/03/2016
Care Assist Limited,Supptd Accommodation for Social Care Clients,Long Term Team - LD,"1,542.86",0,"1,542.86",12/02/2016
Care Assist Limited,Supptd Accommodation for Social Care Clients,Long Term Team - LD,"1,328.57",0,"1,328.57",22/02/2016
Care Assist Limited,Supptd Accommodation for Social Care Clients,Long Term Team - LD,"1,242.86",0,"1,242.86",25/02/2016
Care Assist Limited,Supptd Accommodation for Social Care Clients,Long Term Team - LD,"1,328.57",0,"1,328.57",24/03/2016
Care Quality Commission,Other Agencies/Local Authorities 3rd Party Payment,In House Provided Services Management,"-1,438.00",0,"-1,438.00",28/01/2016
Care Quality Commission,Other Agencies/Local Authorities 3rd Party Payment,In House Provided Services Management,"7,215.00",0,"7,215.00",28/01/2016
Care South (Leybourne House),Residential Placements,Long Term Team - OP,"2,834.29",0,"2,834.29",26/01/2016
Care South (Leybourne House),Residential Placements,Long Term Team - OP,"2,651.43",0,"2,651.43",24/02/2016
Care South (Leybourne House),Adults & Social - Client Charges,Long Term Team - OP,"-4,193.44",0,"-4,193.44",09/03/2016
Care South (Leybourne House),Residential Placements,Long Term Team - OP,"6,480.00",0,"6,480.00",09/03/2016
Care South (Leybourne House),Residential Placements,Long Term Team - OP,"2,834.28",0,"2,834.28",24/03/2016
Care UK,Adults & Social - Client Charges,Long Term Team - OP,"-3,460.22",0,"-3,460.22",05/01/2016
Care UK,Nursing Care,Long Term Team - OP,"4,857.14",0,"4,857.14",05/01/2016
Care UK,Nursing Care,Long Term Team - OP,"2,170.00",0,"2,170.00",05/01/2016
Care UK,Nursing Care,Long Term Team - OP,770,0,770,26/01/2016
Care UK,Nursing Care,Long Term Team - OP,"1,771.43",0,"1,771.43",26/01/2016
Care UK,Adults & Social - Client Charges,Long Term Team - OP,"-1,261.97",0,"-1,261.97",26/01/2016
Care UK,Adults & Social - Client Charges,Long Term Team - OP,-563.76,0,-563.76,28/01/2016
Care UK,Nursing Care,Long Term Team - OP,"2,794.92",0,"2,794.92",28/01/2016
Care UK,Recovery of Costs (External - Non Vatable),Long Term Team - OP,-496,0,-496,28/01/2016
Care UK,Adults & Social - Client Charges,Long Term Team - OP,-559.33,0,-559.33,28/01/2016
Care UK,Nursing Care,Long Term Team - OP,"4,495.93",0,"4,495.93",28/01/2016
Care UK,Recovery of Costs (External - Non Vatable),Long Term Team - OP,-496,0,-496,28/01/2016
Care UK,Recovery of Costs (External - Non Vatable),Interim Funding,-496,0,-496,28/01/2016
Care UK,Nursing Care,Interim Funding,"5,115.00",0,"5,115.00",28/01/2016
Care UK,Recovery of Costs (External - Non Vatable),Long Term Team - OP,-464,0,-464,25/02/2016
Care UK,Nursing Care,Long Term Team - OP,"2,614.60",0,"2,614.60",25/02/2016
Care UK,Adults & Social - Client Charges,Long Term Team - OP,-527.39,0,-527.39,25/02/2016
Care UK,Nursing Care,Long Term Team - OP,"4,205.87",0,"4,205.87",25/02/2016
Care UK,Adults & Social - Client Charges,Long Term Team - OP,-523.24,0,-523.24,25/02/2016
Care UK,Recovery of Costs (External - Non Vatable),Long Term Team - OP,-464,0,-464,25/02/2016
Care UK,Recovery of Costs (External - Non Vatable),Interim Funding,-464,0,-464,25/02/2016
Care UK,Nursing Care,Interim Funding,"4,785.00",0,"4,785.00",25/02/2016
Care UK,Adults & Social - Client Charges,Long Term Team - OP,-563.75,0,-563.75,29/03/2016
Care UK,Nursing Care,Long Term Team - OP,"2,794.91",0,"2,794.91",29/03/2016
Care UK,Recovery of Costs (External - Non Vatable),Long Term Team - OP,-496,0,-496,29/03/2016
Care UK,Recovery of Costs (External - Non Vatable),Long Term Team - OP,-496,0,-496,29/03/2016
Care UK,Nursing Care,Long Term Team - OP,"4,495.93",0,"4,495.93",29/03/2016
Care UK,Adults & Social - Client Charges,Long Term Team - OP,-559.33,0,-559.33,29/03/2016
Care UK,Recovery of Costs (External - Non Vatable),Interim Funding,-496,0,-496,29/03/2016
Care UK,Nursing Care,Interim Funding,"5,115.00",0,"5,115.00",29/03/2016
Care UK,Adults & Social - Client Charges,Long Term Team - OP,-719.91,0,-719.91,26/01/2016
Care UK,Residential Placements,Long Term Team - OP,"2,037.14",0,"2,037.14",26/01/2016
Care UK,Residential Placements,Long Term Team - OP,"2,325.00",0,"2,325.00",26/01/2016
Care UK,Residential Placements,Long Term Team - OP,"2,369.29",0,"2,369.29",28/01/2016
Care UK,Adults & Social - Client Charges,Long Term Team - OP,-681.69,0,-681.69,28/01/2016
Care UK,Residential Placements,Long Term Team - OP,"2,391.43",0,"2,391.43",28/01/2016
Care UK,Recovery of Costs (External - Non Vatable),Long Term Team - OP,-496,0,-496,28/01/2016
Care UK,Nursing Care,Long Term Team - OP,"3,875.00",0,"3,875.00",28/01/2016
Care UK,Adults & Social - Client Charges,Long Term Team - OP,-559.33,0,-559.33,28/01/2016
Care UK,Residential Placements,Long Term Team - OP,"1,905.71",0,"1,905.71",24/02/2016
Care UK,Adults & Social - Client Charges,Long Term Team - OP,-673.46,0,-673.46,24/02/2016
Care UK,Residential Placements,Long Term Team - OP,"2,175.00",0,"2,175.00",24/02/2016
Care UK,Residential Placements,Long Term Team - OP,"2,216.43",0,"2,216.43",25/02/2016
Care UK,Adults & Social - Client Charges,Long Term Team - OP,-637.71,0,-637.71,25/02/2016
Care UK,Residential Placements,Long Term Team - OP,"2,237.14",0,"2,237.14",25/02/2016
Care UK,Adults & Social - Client Charges,Long Term Team - OP,-523.24,0,-523.24,25/02/2016
Care UK,Nursing Care,Long Term Team - OP,"3,625.00",0,"3,625.00",25/02/2016
Care UK,Recovery of Costs (External - Non Vatable),Long Term Team - OP,-464,0,-464,25/02/2016
Care UK,Residential Placements,Long Term Team - OP,"2,037.15",0,"2,037.15",24/03/2016
Care UK,Adults & Social - Client Charges,Long Term Team - OP,-719.91,0,-719.91,24/03/2016
Care UK,Residential Placements,Long Term Team - OP,"2,325.00",0,"2,325.00",24/03/2016
Care UK,Residential Placements,Long Term Team - OP,"2,369.28",0,"2,369.28",29/03/2016
Care UK,Adults & Social - Client Charges,Long Term Team - OP,-681.69,0,-681.69,29/03/2016
Care UK,Residential Placements,Long Term Team - OP,"2,391.43",0,"2,391.43",29/03/2016
Care UK,Adults & Social - Client Charges,Long Term Team - OP,-559.33,0,-559.33,29/03/2016
Care UK,Nursing Care,Long Term Team - OP,"3,875.00",0,"3,875.00",29/03/2016
Care UK,Recovery of Costs (External - Non Vatable),Long Term Team - OP,-496,0,-496,29/03/2016
CAREBASE BURNT OAK LTD,Adults & Social - Client Charges,Long Term Team - OP,-559.33,0,-559.33,26/01/2016
CAREBASE BURNT OAK LTD,Nursing Care,Long Term Team - OP,"2,781.59",0,"2,781.59",26/01/2016
CAREBASE BURNT OAK LTD,Recovery of Costs (External - Non Vatable),Long Term Team - OP,-496,0,-496,26/01/2016
CAREBASE BURNT OAK LTD,Adults & Social - Client Charges,Long Term Team - OP,-543.03,0,-543.03,26/01/2016
CAREBASE BURNT OAK LTD,Recovery of Costs (External - Non Vatable),Long Term Team - OP,-496,0,-496,26/01/2016
CAREBASE BURNT OAK LTD,Nursing Care,Long Term Team - OP,"2,799.79",0,"2,799.79",26/01/2016
CAREBASE BURNT OAK LTD,Recovery of Costs (External - Non Vatable),Long Term Team - OP,-496,0,-496,26/01/2016
CAREBASE BURNT OAK LTD,Nursing Care,Long Term Team - OP,"2,848.06",0,"2,848.06",26/01/2016
CAREBASE BURNT OAK LTD,Adults & Social - Client Charges,Long Term Team - OP,-559.33,0,-559.33,26/01/2016
CAREBASE BURNT OAK LTD,Nursing Care,Long Term Team - OP,"2,816.08",0,"2,816.08",26/01/2016
CAREBASE BURNT OAK LTD,Recovery of Costs (External - Non Vatable),Long Term Team - OP,-496,0,-496,26/01/2016
CAREBASE BURNT OAK LTD,Recovery of Costs (External - Non Vatable),Long Term Team - OP,-464,0,-464,24/02/2016
CAREBASE BURNT OAK LTD,Nursing Care,Long Term Team - OP,"2,602.13",0,"2,602.13",24/02/2016
CAREBASE BURNT OAK LTD,Adults & Social - Client Charges,Long Term Team - OP,-523.24,0,-523.24,24/02/2016
CAREBASE BURNT OAK LTD,Nursing Care,Long Term Team - OP,"2,619.16",0,"2,619.16",24/02/2016
CAREBASE BURNT OAK LTD,Recovery of Costs (External - Non Vatable),Long Term Team - OP,-464,0,-464,24/02/2016
CAREBASE BURNT OAK LTD,Adults & Social - Client Charges,Long Term Team - OP,-508,0,-508,24/02/2016
CAREBASE BURNT OAK LTD,Adults & Social - Client Charges,Long Term Team - OP,-523.24,0,-523.24,24/02/2016
CAREBASE BURNT OAK LTD,Nursing Care,Long Term Team - OP,"2,664.31",0,"2,664.31",24/02/2016
CAREBASE BURNT OAK LTD,Recovery of Costs (External - Non Vatable),Long Term Team - OP,-464,0,-464,24/02/2016
CAREBASE BURNT OAK LTD,Recovery of Costs (External - Non Vatable),Long Term Team - OP,-464,0,-464,24/02/2016
CAREBASE BURNT OAK LTD,Nursing Care,Long Term Team - OP,"2,634.40",0,"2,634.40",24/02/2016
CAREBASE BURNT OAK LTD,Recovery of Costs (External - Non Vatable),Long Term Team - OP,-496,0,-496,24/03/2016
CAREBASE BURNT OAK LTD,Adults & Social - Client Charges,Long Term Team - OP,-559.33,0,-559.33,24/03/2016
CAREBASE BURNT OAK LTD,Nursing Care,Long Term Team - OP,"2,781.58",0,"2,781.58",24/03/2016
CAREBASE BURNT OAK LTD,Adults & Social - Client Charges,Long Term Team - OP,-543.03,0,-543.03,24/03/2016
CAREBASE BURNT OAK LTD,Recovery of Costs (External - Non Vatable),Long Term Team - OP,-496,0,-496,24/03/2016
CAREBASE BURNT OAK LTD,Nursing Care,Long Term Team - OP,"2,799.78",0,"2,799.78",24/03/2016
CAREBASE BURNT OAK LTD,Adults & Social - Client Charges,Long Term Team - OP,-559.33,0,-559.33,24/03/2016
CAREBASE BURNT OAK LTD,Nursing Care,Long Term Team - OP,"2,848.06",0,"2,848.06",24/03/2016
CAREBASE BURNT OAK LTD,Recovery of Costs (External - Non Vatable),Long Term Team - OP,-496,0,-496,24/03/2016
CAREBASE BURNT OAK LTD,Nursing Care,Long Term Team - OP,"2,816.09",0,"2,816.09",24/03/2016
CAREBASE BURNT OAK LTD,Recovery of Costs (External - Non Vatable),Long Term Team - OP,-496,0,-496,24/03/2016
Caremark - ISF,Social Care Personal Budgets,Personalisation - OP,"1,482.00",0,"1,482.00",18/01/2016
Caremark - ISF,Social Care Personal Budgets,Personalisation - PD,"2,900.00",0,"2,900.00",18/01/2016
Caremark - ISF,Social Care Personal Budgets,Personalisation - PD,"2,900.00",0,"2,900.00",18/02/2016
Caremark - ISF,Social Care Personal Budgets,Personalisation - OP,949.64,0,949.64,07/03/2016
Caremark - ISF,Social Care Personal Budgets,Personalisation - PD,"2,900.00",0,"2,900.00",07/03/2016
Caremark - ISF,Social Care Personal Budgets,Personalisation - OP,949.64,0,949.64,18/03/2016
Caremark - ISF,Social Care Personal Budgets,Personalisation - PD,"2,900.00",0,"2,900.00",18/03/2016
Caremark (Harrow),Reablement for Care Clients,Reablement - OP,546,0,546,05/01/2016
Caremark (Harrow),Reablement for Care Clients,Reablement - OP,965.74,0,965.74,05/01/2016
Caretech Community Services Limited,Residential Placements,Long Term Team - LD,"2,037.14",0,"2,037.14",26/01/2016
Caretech Community Services Limited,Residential Placements,Long Term Team - LD,"2,525.57",0,"2,525.57",26/01/2016
Caretech Community Services Limited,Adults & Social - Client Charges,Long Term Team - LD,-356.28,0,-356.28,26/01/2016
Caretech Community Services Limited,Residential Placements,Long Term Team - LD,"5,620.30",0,"5,620.30",26/01/2016
Caretech Community Services Limited,Residential Placements,Long Term Team - LD,"7,152.14",0,"7,152.14",26/01/2016
Caretech Community Services Limited,Adults & Social - Client Charges,Long Term Team - LD,-417.08,0,-417.08,26/01/2016
Caretech Community Services Limited,Adults & Social - Client Charges,Long Term Team - LD,-333.29,0,-333.29,24/02/2016
Caretech Community Services Limited,Residential Placements,Long Term Team - LD,"2,362.63",0,"2,362.63",24/02/2016
Caretech Community Services Limited,Residential Placements,Long Term Team - LD,"1,905.71",0,"1,905.71",24/02/2016
Caretech Community Services Limited,Residential Placements,Long Term Team - LD,"5,257.70",0,"5,257.70",24/02/2016
Caretech Community Services Limited,Residential Placements,Long Term Team - LD,"6,690.71",0,"6,690.71",24/02/2016
Caretech Community Services Limited,Adults & Social - Client Charges,Long Term Team - LD,-390.17,0,-390.17,24/02/2016
Caretech Community Services Limited,Residential Placements,Long Term Team - LD,"2,037.15",0,"2,037.15",24/03/2016
Caretech Community Services Limited,Residential Placements,Long Term Team - LD,"2,525.57",0,"2,525.57",24/03/2016
Caretech Community Services Limited,Adults & Social - Client Charges,Long Term Team - LD,-356.28,0,-356.28,24/03/2016
Caretech Community Services Limited,Residential Placements,Long Term Team - LD,"5,620.30",0,"5,620.30",24/03/2016
Caretech Community Services Limited,Residential Placements,Long Term Team - LD,"7,152.15",0,"7,152.15",24/03/2016
Caretech Community Services Limited,Adults & Social - Client Charges,Long Term Team - LD,-417.09,0,-417.09,24/03/2016
Carewatch - ISF,Social Care Personal Budgets,Personalisation - OP,508.2,0,508.2,18/01/2016
Carewatch - ISF,Social Care Personal Budgets,Personalisation - OP,620.96,0,620.96,18/01/2016
Carewatch - ISF,Social Care Personal Budgets,Personalisation - OP,621.12,0,621.12,18/01/2016
Carewatch - ISF,Social Care Personal Budgets,Personalisation - OP,734.24,0,734.24,18/01/2016
Carewatch - ISF,Social Care Personal Budgets,Personalisation - PD,983.96,0,983.96,18/01/2016
Carewatch - ISF,Adults & Social - Net P.B.'s,Personalisation - PD,-236.76,0,-236.76,18/01/2016
Carewatch - ISF,Social Care Personal Budgets,Personalisation - PD,"2,605.64",0,"2,605.64",18/01/2016
Carewatch - ISF,Social Care Personal Budgets,Personalisation - OP,508.2,0,508.2,18/02/2016
Carewatch - ISF,Social Care Personal Budgets,Personalisation - OP,620.96,0,620.96,18/02/2016
Carewatch - ISF,Social Care Personal Budgets,Personalisation - OP,621.12,0,621.12,18/02/2016
Carewatch - ISF,Social Care Personal Budgets,Personalisation - OP,734.24,0,734.24,18/02/2016
Carewatch - ISF,Social Care Personal Budgets,Personalisation - PD,983.96,0,983.96,18/02/2016
Carewatch - ISF,Social Care Personal Budgets,Personalisation - PD,"2,605.64",0,"2,605.64",18/02/2016
Carewatch - ISF,Adults & Social - Net P.B.'s,Personalisation - PD,-236.76,0,-236.76,18/02/2016
Carewatch - ISF,Social Care Personal Budgets,Personalisation - OP,508.2,0,508.2,07/03/2016
Carewatch - ISF,Social Care Personal Budgets,Personalisation - OP,620.96,0,620.96,07/03/2016
Carewatch - ISF,Social Care Personal Budgets,Personalisation - OP,621.12,0,621.12,07/03/2016
Carewatch - ISF,Social Care Personal Budgets,Personalisation - OP,734.24,0,734.24,07/03/2016
Carewatch - ISF,Social Care Personal Budgets,Personalisation - PD,983.96,0,983.96,07/03/2016
Carewatch - ISF,Adults & Social - Net P.B.'s,Personalisation - PD,-236.76,0,-236.76,07/03/2016
Carewatch - ISF,Social Care Personal Budgets,Personalisation - PD,"2,605.64",0,"2,605.64",07/03/2016
Carewatch - ISF,Social Care Personal Budgets,Personalisation - OP,508.2,0,508.2,18/03/2016
Carewatch - ISF,Social Care Personal Budgets,Personalisation - OP,620.96,0,620.96,18/03/2016
Carewatch - ISF,Social Care Personal Budgets,Personalisation - OP,621.12,0,621.12,18/03/2016
Carewatch - ISF,Social Care Personal Budgets,Personalisation - OP,734.24,0,734.24,18/03/2016
Carewatch - ISF,Social Care Personal Budgets,Personalisation - PD,983.96,0,983.96,18/03/2016
Carewatch - ISF,Social Care Personal Budgets,Personalisation - OP,"1,189.41",0,"1,189.41",18/03/2016
Carewatch - ISF,Adults & Social - Net P.B.'s,Personalisation - PD,-236.76,0,-236.76,18/03/2016
Carewatch - ISF,Social Care Personal Budgets,Personalisation - PD,"2,605.64",0,"2,605.64",18/03/2016
Carewatch (Harrow),Domiciliary Care,Personalisation - PD,536.43,0,536.43,05/01/2016
Carewatch (Harrow),Domiciliary Care,Personalisation - OP,609.88,0,609.88,05/01/2016
Carewatch (Harrow),Domiciliary Care,Personalisation - OP,658.04,0,658.04,05/01/2016
Carewatch (Harrow),Domiciliary Care,Personalisation - OP,713.02,0,713.02,05/01/2016
Carewatch (Harrow),Domiciliary Care,Personalisation - OP,966.01,0,966.01,05/01/2016
Carewatch (Harrow),Domiciliary Care,Personalisation - OP,"1,333.89",0,"1,333.89",05/01/2016
Carewatch (Harrow),Domiciliary Care,Personalisation - OP,"1,843.15",0,"1,843.15",05/01/2016
Carewatch (Harrow),Domiciliary Care,Children With Disabilities Client Costs,561.74,0,561.74,08/01/2016
Carewatch (Harrow),Domiciliary Care,Personalisation - LD,"1,722.58",0,"1,722.58",08/01/2016
Carewatch (Harrow),Domiciliary Care,Personalisation - OP,596.79,0,596.79,15/02/2016
Carewatch (Harrow),Domiciliary Care,Personalisation - OP,596.88,0,596.88,15/02/2016
Carewatch (Harrow),Domiciliary Care,Personalisation - OP,707.81,0,707.81,15/02/2016
Carewatch (Harrow),Domiciliary Care,Personalisation - OP,"1,068.31",0,"1,068.31",15/02/2016
Carewatch (Harrow),Domiciliary Care,Personalisation - OP,"1,272.14",0,"1,272.14",15/02/2016
Carewatch (Harrow),Domiciliary Care,Personalisation - OP,"1,816.84",0,"1,816.84",15/02/2016
Carewatch (Harrow),Domiciliary Care,Children With Disabilities Client Costs,616.68,0,616.68,29/02/2016
Carewatch (Harrow),Domiciliary Care,Children With Disabilities Client Costs,732.68,0,732.68,01/03/2016
Carewatch (Harrow),Domiciliary Care,Personalisation - OP,662.03,0,662.03,11/03/2016
Carewatch (Harrow),Domiciliary Care,Personalisation - OP,682.04,0,682.04,11/03/2016
Carewatch (Harrow),Domiciliary Care,Personalisation - OP,756.56,0,756.56,11/03/2016
Carewatch (Harrow),Domiciliary Care,Personalisation - OP,"1,052.48",0,"1,052.48",11/03/2016
Carewatch (Harrow),Domiciliary Care,Personalisation - OP,"1,294.39",0,"1,294.39",11/03/2016
Carewatch (Harrow),Domiciliary Care,Personalisation - OP,"1,343.10",0,"1,343.10",11/03/2016
Carewatch (Harrow),Domiciliary Care,Personalisation - OP,"1,761.24",0,"1,761.24",11/03/2016
Carewatch (Harrow),Domiciliary Care,Personalisation - OP,538.13,0,538.13,31/03/2016
Carewatch (Harrow),Domiciliary Care,Personalisation - OP,650.43,0,650.43,31/03/2016
Carewatch (Harrow),Domiciliary Care,Personalisation - OP,813.47,0,813.47,31/03/2016
Carewatch (Harrow),Domiciliary Care,Personalisation - OP,"1,065.76",0,"1,065.76",31/03/2016
Carewatch (Harrow),Domiciliary Care,Personalisation - OP,"1,245.70",0,"1,245.70",31/03/2016
Carewatch (Harrow),Domiciliary Care,Personalisation - OP,"1,860.40",0,"1,860.40",31/03/2016
Carford Group Ltd,Catering  - Costs and Equipment,Milmans Day Centre,-661.03,-132.21,-793.24,14/01/2016
Carford Group Ltd,Catering  - Costs and Equipment,Milmans Day Centre,661.03,132.21,793.24,14/01/2016
Carillion Integrated Services Ltd,Other Professional Fees,Library Projects,"153,576.00","30,715.20","184,291.20",01/02/2016
Carillion Integrated Services Ltd,Other Professional Fees,Library Projects,"-47,033.30","-9,406.66","-56,439.96",03/02/2016
Carillion Integrated Services Ltd,Other Professional Fees,,"-5,063.16","-1,012.63","-6,075.79",03/02/2016
Carillion Integrated Services Ltd,Other Professional Fees,Library Projects,"153,576.00","30,715.20","184,291.20",03/02/2016
Carillion Integrated Services Ltd,Other Professional Fees,Library Administration,"223,153.40","44,630.68","267,784.08",29/02/2016
Carillion Integrated Services Ltd,Other Professional Fees,Library Projects,"153,576.00","30,715.20","184,291.20",03/03/2016
Caring with a Difference - ISF,Adults & Social - Net P.B.'s,Personalisation - PD,-8.08,0,-8.08,18/01/2016
Caring with a Difference - ISF,Social Care Personal Budgets,Personalisation - PD,"1,694.12",0,"1,694.12",18/01/2016
Caring with a Difference - ISF,Reablement for Care Clients,Reablement - OP,533.13,0,533.13,26/01/2016
Caring with a Difference - ISF,Reablement for Care Clients,Reablement - OP,607.7,0,607.7,26/01/2016
Caring with a Difference - ISF,Reablement for Care Clients,Reablement - OP,612.13,0,612.13,26/01/2016
Caring with a Difference - ISF,Reablement for Care Clients,Reablement - OP,653.87,0,653.87,26/01/2016
Caring with a Difference - ISF,Reablement for Care Clients,Reablement - OP,656.38,0,656.38,26/01/2016
Caring with a Difference - ISF,Reablement for Care Clients,Reablement - OP,722.75,0,722.75,26/01/2016
Caring with a Difference - ISF,Reablement for Care Clients,Reablement - OP,730.13,0,730.13,26/01/2016
Caring with a Difference - ISF,Reablement for Care Clients,Reablement - OP,767,0,767,26/01/2016
Caring with a Difference - ISF,Reablement for Care Clients,Reablement - OP,855.5,0,855.5,26/01/2016
Caring with a Difference - ISF,Reablement for Care Clients,Reablement - PD,"1,969.13",0,"1,969.13",01/02/2016
Caring with a Difference - ISF,Domiciliary Care,Personalisation - OP,597.38,0,597.38,02/02/2016
Caring with a Difference - ISF,Domiciliary Care,Personalisation - OP,818.63,0,818.63,02/02/2016
Caring with a Difference - ISF,Domiciliary Care,Personalisation - OP,"1,865.88",0,"1,865.88",02/02/2016
Caring with a Difference - ISF,Adults & Social - Net P.B.'s,Personalisation - PD,-8.08,0,-8.08,18/02/2016
Caring with a Difference - ISF,Social Care Personal Budgets,Personalisation - PD,"1,694.12",0,"1,694.12",18/02/2016
Caring with a Difference - ISF,Domiciliary Care,Personalisation - PD,"8,365.47",0,"8,365.47",26/02/2016
Caring with a Difference - ISF,Adults & Social - Net P.B.'s,Personalisation - PD,-8.08,0,-8.08,07/03/2016
